Workbook

Sheet Accueil
D14: Annexe au calcul des taux des traitements non commerciaux 2020-2021 Forêt publique
C16: L'activation du contenu de ce fichier est requise afin d'assurer l'exécution des macro-commandes qui sont nécessaires à son bon fonctionnement.
D19: https://support.office.com/fr-fr/article/activer-ou-d%C3%A9sactiver-les-macros-dans-les-fichiers-office-12b036fd-d140-4e74-b45e-16fed1a7e5c6

Sheet Préparation de terrain (hidden)
A2: Annexe au calcul des taux des traitements non commerciaux 2020-2021 Préparation de terrain Forêt publique
A3: *** Veuillez saisir les informations dans les cellules blanches seulement *** | G3: Version 3 : 2020-04-02
A4: Identification
A5: Unité d'aménagement (UA)
A6: Secteur d'intervention
A7: Unité de compilation
A8: Numéro de la prescription
A9: Traitement (code DICA)
A10: Traitement (code RATF) | E10: =IFERROR(VLOOKUP($G$9,Menus!$A$180:$D$224,3,FALSE),Menus!$C$225) -> PRT_Codes_RATF
A11: Traitement de préparation de terrain à taux fixe ou variable
A12: Traitement | F12: =IFERROR((VLOOKUP($G$12,Menus!$A$4:$B$11,2,FALSE)),"") ->  | G12: Inscrire une valeur
A13: Équipement ou modalité | F13: =IF($G$13=Menus!$D$6,Menus!$E$6,IF($G$13=Menus!$D$11,Menus!$E$11,"")) ->  | G13: Inscrire une valeur
A14: =IFERROR(IF(OR($G$13=Menus!$D$15,$G$13=Menus!$D$16,$G$13=Menus!$D$18,$G$13=Menus!$D$19),"Taux de base en fonction d'une distance entre les passages de 5 mètres - Voir majoration PA0","Taux de base"),"Taux de base") -> Taux de base | G14: =IF($G$13=Menus!$D$4,Menus!$H$4,IF($G$13=Menus!$D$5,Menus!$H$5,IF($G$13=Menus!$D$6,Menus!$H$6,IF($G$13=Menus!$D$7,Menus!$H$7,IF($G$13=Menus!$D$8,Menus!$H$8,IF($G$13=Menus!$D$9,Menus!$H$9,IF($G$13=Menus!$D$10,Menus!$H$10,IF($G$13=Menus!$D$11,Menus!$H$11,IF($G$13=Menus!$D$12,Menus!$H$12,IF($G$13=Menus!$D$13,Menus!$H$13,IF($G$13=Menus!$D$14,Menus!$H$14,IF($G$13=Menus!$D$15,Menus!$H$15,IF($G$13=Menus!$D$16,Menus!$H$16,IF($G$13=Menus!$D$17,Menus!$H$17,IF(G13=Menus!$D$18,Menus!$H$18,IF($G$13=Menus!$D$19,Menus!$H$19,IF($G$13=Menus!$D$20,Menus!$H$20,""))))))))))))))))) -> 0
A15: Unité de mesure | G15: =IF($G$13=Menus!$D$4,Menus!$I$4,IF($G$13=Menus!$D$5,Menus!$I$5,IF($G$13=Menus!$D$6,Menus!$I$6,IF($G$13=Menus!$D$7,Menus!$I$7,IF($G$13=Menus!$D$8,Menus!$I$8,IF($G$13=Menus!$D$9,Menus!$I$9,IF($G$13=Menus!$D$10,Menus!$I$10,IF($G$13=Menus!$D$11,Menus!$I$11,IF($G$13=Menus!$D$12,Menus!$I$12,IF($G$13=Menus!$D$13,Menus!$I$13,IF($G$13=Menus!$D$14,Menus!$I$14,IF($G$13=Menus!$D$15,Menus!$I$15,IF($G$13=Menus!$D$16,Menus!$I$16,IF($G$13=Menus!$D$17,Menus!$I$17,IF($G$13=Menus!$D$18,Menus!$I$18,IF($G$13=Menus!$D$19,Menus!$I$19,IF($G$13=Menus!$D$20,Menus!$I$20,""))))))))))))))))) -> -
A16: ="Formule (e=Constante "&Menus!$C$64&")" -> Formule (e=Constante 2,718) | C16: =IF($G$13=Formules!$B$8,Formules!$D$8,IF($G$13=Formules!$B$9,Formules!$D$9,"")) -> 
A17: Est-ce que la délimitation des secteurs est effectuée par la même entreprise que celle qui réalise le traitement (en régie) de préparation de terrain ? | F17: =IFERROR(VLOOKUP($G$17,Menus!$A$88:$B$89,2,FALSE),"") -> 
A18: ="Valeurs spécifiques à remplir selon le traitement - "&$G$12&" - "&$G$13 -> Valeurs spécifiques à remplir selon le traitement - Inscrire une valeur - Inscrire une valeur
A19: Taux variable - Déblaiement des résidus de coupe (Excavatrice ou débusqueuse ou abatteuse) et Scarifiage par monticule ou inversion par placeau ou décapage par placeau
A20: R | B20: Superficie préparée | F20: =VLOOKUP($G$12,Menus!$A$4:$J$20,10,FALSE) -> 0
A21: TP | B21: Type de couvert | E21: =IF($G$13=Menus!$D$6,Menus!$F$6,IF($G$13=Menus!$D$11,Menus!$F$11,"")) ->  | F21: =IF($G$21=Menus!$B$65,Menus!$C$65,IF($G$21=Menus!$B$66,Menus!$C$66,IF($G$21=Menus!$B$67,Menus!$C$67,""))) -> 
A22: TR | B22: Type de procédé de récolte | E22: =IF($G$22=Menus!$B$68,Menus!$D$68,IF($G$22=Menus!$B$69,Menus!$D$69,IF($G$22=Menus!$B$70,Menus!$D$70,IF($G$22=Menus!$B$71,Menus!$D$71,"")))) ->  | F22: =IF($G$22=Menus!$B$68,Menus!$C$68,IF($G$22=Menus!$B$69,Menus!$C$69,IF($G$22=Menus!$B$70,Menus!$C$70,IF($G$22=Menus!$B$71,Menus!$C$71,"")))) -> 
A23: PER | B23: Type de perturbation | F23: =IF($G$23=Menus!$B$72,Menus!$C$72,IF($G$23=Menus!$B$73,Menus!$C$73,"")) -> 
A24: VEH | B24: Type d'engin forestier | E24: =IF($G$13=Menus!$D$6,Menus!$G$6,IF($G$13=Menus!$D$11,Menus!$G$11,"")) ->  | F24: =IF($G$24=Menus!$B$74,Menus!$C$74,IF($G$24=Menus!$B$75,Menus!$C$75,IF($G$24=Menus!$B$76,Menus!$C$76,""))) -> 
A25: Valeur | B25: VEH utilisée dans la formule | E25: =IF($G$21=Menus!$B$65,Menus!$D$65,IF($G$21=Menus!$B$66,Menus!$D$66,IF($G$21=Menus!$B$67,Menus!$D$67,""))) ->  | F25: =IFERROR((IF($F$24="","",IF($F$24=3,0.33,IF($F$24=2,1,(1/(1.4063*POWER($G$20,0.069))*0.85))))),"") -> 
A26: Taux calculé à partir de l'équation et des variables reliées au traitement | G26: =IFERROR(IF($G$20="",0,IF(ISNUMBER($G$20)=FALSE,"Valeur R non valide",IF(AND((ROUND($G$20,2)=$G$20),$G$20>=0.01,$G$20<=1),((('Calculs grille'!$M$17*'Préparation de terrain'!$G$20)/EXP(1.683*'Préparation de terrain'!$G$20-0.299*'Préparation de terrain'!$F$21-0.313*'Préparation de terrain'!$F$22+0.17*'Préparation de terrain'!$F$23+2.014))*'Préparation de terrain'!$F$25),"Valeur R non valide"))),0) -> 0
A27: ="Majorations et/ou réduction applicables à l'exécution - "&$G$12&" - "&$G$13&" - Voir l'onglet « Étapes calcul majoration »" -> Majorations et/ou réduction applicables à l'exécution - Inscrire une valeur - Inscrire une valeur - Voir l'onglet « Étapes calcul majoration »
A28: =IF($G$13='Majorations applicables'!$C$2,'Majorations applicables'!$K$2,IF($G$13='Majorations applicables'!$C$3,'Majorations applicables'!$K$3,IF($G$13='Majorations applicables'!$C$4,'Majorations applicables'!$K$4,IF($G$13='Majorations applicables'!$C$5,'Majorations applicables'!$K$5,IF($G$13='Majorations applicables'!$C$6,'Majorations applicables'!$K$6,IF($G$13='Majorations applicables'!$C$7,'Majorations applicables'!$K$7,IF($G$13='Majorations applicables'!$C$8,'Majorations applicables'!$K$8,IF($G$13='Majorations applicables'!$C$9,'Majorations applicables'!$K$9,IF($G$13='Majorations applicables'!$C$10,'Majorations applicables'!$K$10,IF($G$13='Majorations applicables'!$C$11,'Majorations applicables'!$K$11,IF($G$12='Majorations applicables'!$C$12,'Majorations applicables'!$K$12,IF($G$13='Majorations applicables'!$C$13,'Majorations applicables'!$K$13,IF($G$13='Majorations applicables'!$C$14,'Majorations applicables'!$K$14,IF($G$13='Majorations applicables'!$C$15,'Majorations applicables'!$K$15,IF($G$13='Majorations applicables'!$C$16,'Majorations applicables'!$K$16,IF($G$13='Majorations applicables'!$C$17,'Majorations applicables'!$K$17,"")))))))))))))))) -> 
A29: Majoration pour la distance entre les passages de l'engin forestier (PA0)
A30: Majoration pour la distance entre les passages de l'engin forestier (PA0) - Disque-Bracke-Wadell
A31: Distance entre les passages de l'engin forestier « DP » (Valeur de 3,50 m à 5,00 m inclusivement)
A32: Nombre de microsite par hectare désiré calculé à partir d'une valeur standard de distance entre les passages de l'engin forestier | G32: =IFERROR((IF($G$31="","",IF('Préparation de terrain'!$G$31=Menus!A24,Menus!$B$24,IF('Préparation de terrain'!$G$31=Menus!$A$25,Menus!$B$25,IF('Préparation de terrain'!$G$31=Menus!$A$26,Menus!$B$26,IF('Préparation de terrain'!$G$31=Menus!$A$27,Menus!$B$27,"La valeur de distance entre les passages est différente des valeurs standards (classes de 50 cm), calcul à titre indicatif seulement : « "&ROUND(10000/$G$31,0)& " » microsites par hectare")))))),"") -> 
A33: =IF($G$31="","Majoration du taux d'exécution de base calculé à partir de la valeur inscrite de distance entre les passages de l'engin forestier",IF(ROUND($G$31,2)<>$G$31,"Majoration du taux d'exécution de base calculé à partir de la valeur inscrite de distance entre les passages de l'engin forestier - Valeur « Distance entre les passages » non valide",IF(AND($G$31>=3.5,$G$31<=5),"Majoration du taux d'exécution de base calculé à partir de la valeur inscrite de distance entre les passages de l'engin forestier selon la formule suivante : "&Menus!$B$31,"Majoration du taux d'exécution de base calculé à partir de la valeur inscrite de distance entre les passages de l'engin forestier - Valeur « Distance entre les passages » non valide"))) -> Majoration du taux d'exécution de base calculé à partir de la valeur inscrite de distance entre les passages de l'engin forestier | G33: =IF($G$31="","",IF(ROUND($G$31,2)<>$G$31,"Valeur « Distance entre les passages » non valide",IF(AND($G$31>=Menus!$A$24,$G$31<=Menus!$A$27),ROUND(Menus!$B$29*EXP(Menus!$B$30*ROUND('Préparation de terrain'!$G$31,2)),4),"Valeur « Distance entre les passages » non valide"))) -> 
A34: Majoration pour la pente (PE1)
A35: Majoration pour la pente (PE1) - Disque-Bracke-Wadell-M36
A36: Classe de pente numérique | C36: Taux calculé | E36: Écart | G36: Superficie (ha)
A37: Pente A | C37: =IFERROR($G$14*(1+VLOOKUP($A$37,'Majorations applicables'!$A$42:$B$46,2,FALSE)),0) -> 0 | E37: =IFERROR($C$37-$G$14,0) -> 0
A38: Pente B | C38: =IFERROR($G$14*(1+VLOOKUP($A$38,'Majorations applicables'!$A$42:$B$46,2,FALSE)),0) -> 0 | E38: =IFERROR($C$38-$G$14,0) -> 0
A39: Pente C | C39: =IFERROR($G$14*(1+VLOOKUP($A$39,'Majorations applicables'!$A$42:$B$46,2,FALSE)),0) -> 0 | E39: =IFERROR($C$39-$G$14,0) -> 0
A40: Pente D | C40: =IFERROR($G$14*(1+VLOOKUP($A$40,'Majorations applicables'!$A$42:$B$46,2,FALSE)),0) -> 0 | E40: =IFERROR($C$40-$G$14,0) -> 0
A41: Pente E et plus | C41: =IFERROR($G$14*(1+VLOOKUP($A$41,'Majorations applicables'!$A$42:$B$46,2,FALSE)),0) -> 0 | E41: =IFERROR($C$41-$G$14,0) -> 0
A42: Total | G42: =IFERROR(SUM($G$37:$G$41),0) -> 0
A43: Majoration pour la pente (PE2)
A44: Majoration pour la pente (PE2) - Abatteuse-Rouleau et Fertilisation PEH
A45: Classe de pente numérique | C45: Taux calculé | E45: Écart | G45: Superficie (ha)
A46: Pente A | C46: =IFERROR($G$14*(1+VLOOKUP($A$46,'Majorations applicables'!$A$49:$B$53,2,FALSE)),0) -> 0 | E46: =IFERROR($C$46-$G$14,0) -> 0
A47: Pente B | C47: =IFERROR($G$14*(1+VLOOKUP($A$47,'Majorations applicables'!$A$49:$B$53,2,FALSE)),0) -> 0 | E47: =IFERROR($C$47-$G$14,0) -> 0
A48: Pente C | C48: =IFERROR($G$14*(1+VLOOKUP($A$48,'Majorations applicables'!$A$49:$B$53,2,FALSE)),0) -> 0 | E48: =IFERROR($C$48-$G$14,0) -> 0
A49: Pente D | C49: =IFERROR($G$14*(1+VLOOKUP($A$49,'Majorations applicables'!$A$49:$B$53,2,FALSE)),0) -> 0 | E49: =IFERROR($C$49-$G$14,0) -> 0
A50: Pente E et plus | C50: =IFERROR($G$14*(1+VLOOKUP($A$50,'Majorations applicables'!$A$49:$B$53,2,FALSE)),0) -> 0 | E50: =IFERROR($C$50-$G$14,0) -> 0
A51: Total | G51: =IFERROR(SUM($G$46:$G$50),0) -> 0
A52: Majoration pour la pente (PE4)
A53: Majoration pour la pente (PE4) - Bouteur
A54: Classe de pente numérique | C54: Taux calculé | E54: Écart | G54: Superficie (ha)
A55: Pente A | C55: =IFERROR($G$14*(1+VLOOKUP($A$55,'Majorations applicables'!$A$63:$B$67,2,FALSE)),0) -> 0 | E55: =IFERROR($C$55-$G$14,0) -> 0
A56: Pente B | C56: =IFERROR($G$14*(1+VLOOKUP($A$56,'Majorations applicables'!$A$63:$B$67,2,FALSE)),0) -> 0 | E56: =IFERROR($C$56-$G$14,0) -> 0
A57: Pente C | C57: =IFERROR($G$14*(1+VLOOKUP($A$57,'Majorations applicables'!$A$63:$B$67,2,FALSE)),0) -> 0 | E57: =IFERROR($C$57-$G$14,0) -> 0
A58: Pente D | C58: =IFERROR($G$14*(1+VLOOKUP($A$58,'Majorations applicables'!$A$63:$B$67,2,FALSE)),0) -> 0 | E58: =IFERROR($C$58-$G$14,0) -> 0
A59: Pente E et plus | C59: =IFERROR($G$14*(1+VLOOKUP($A$59,'Majorations applicables'!$A$63:$B$67,2,FALSE)),0) -> 0 | E59: =IFERROR($C$59-$G$14,0) -> 0
A60: Total | G60: =IFERROR(SUM($G$55:$G$59),0) -> 0
A61: Majoration pour le nombre de passage et la pente (PA1 et PE1)
A62: Majoration pour le nombre de passage et la pente (PA1 et PE1) - Disque-Bracke-Wadell
A63: Superficie (hectares)
A64: Classe de pente numérique | D64: Simple passage | E64: Double passage | F64: Triple passage | G64: Total
A65: Pente A | G65: =SUM($D$65:$F$65) -> 0
A66: Pente B | G66: =SUM($D$66:$F$66) -> 0
A67: Pente C | G67: =SUM($D$67:$F$67) -> 0
A68: Pente D | G68: =SUM($D$68:$F$68) -> 0
A69: Pente E et plus | G69: =SUM($D$69:$F$69) -> 0
A70: Total | D70: =IFERROR(SUM($D$65:$D$69),0) -> 0 | E70: =IFERROR(SUM($E$65:$E$69),0) -> 0 | F70: =IFERROR(SUM($F$65:$F$69),0) -> 0 | G70: =IFERROR(SUM($G$65:$G$69),0) -> 0
A71: Taux calculé ($/hectare)
A72: Nombre de passage | C72: 1 | E72: 2 | G72: 3
A73: Pente A | C73: =IFERROR(SUM($G$146:$G$147)*(1+VLOOKUP($A$73,'Majorations applicables'!$A$42:$B$46,2,FALSE)),0) -> 0 | E73: =IFERROR(SUM($G$146:$G$147)*(1+VLOOKUP($A$73,'Majorations applicables'!$A$42:$B$46,2,FALSE))+SUM($G$146:$G$147)*(1+VLOOKUP($A$73,'Majorations applicables'!$A$42:$B$46,2,FALSE))*'Majorations applicables'!$A$36,0) -> 0 | G73: =IFERROR(SUM($G$146:$G$147)*(1+VLOOKUP($A$73,'Majorations applicables'!$A$42:$B$46,2,FALSE))+SUM($G$146:$G$147)*(1+VLOOKUP($A$73,'Majorations applicables'!$A$42:$B$46,2,FALSE))*'Majorations applicables'!$A$36+SUM($G$146:$G$147)*(1+VLOOKUP($A$73,'Majorations applicables'!$A$42:$B$46,2,FALSE))*POWER('Majorations applicables'!$A$36,2),0) -> 0
A74: Pente B | C74: =IFERROR(SUM($G$146:$G$147)*(1+VLOOKUP($A$74,'Majorations applicables'!$A$42:$B$46,2,FALSE)),0) -> 0 | E74: =IFERROR(SUM($G$146:$G$147)*(1+VLOOKUP($A$74,'Majorations applicables'!$A$42:$B$46,2,FALSE))+SUM($G$146:$G$147)*(1+VLOOKUP($A$74,'Majorations applicables'!$A$42:$B$46,2,FALSE))*'Majorations applicables'!$A$36,0) -> 0 | G74: =IFERROR(SUM($G$146:$G$147)*(1+VLOOKUP($A$74,'Majorations applicables'!$A$42:$B$46,2,FALSE))+SUM($G$146:$G$147)*(1+VLOOKUP($A$74,'Majorations applicables'!$A$42:$B$46,2,FALSE))*'Majorations applicables'!$A$36+SUM($G$146:$G$147)*(1+VLOOKUP($A$74,'Majorations applicables'!$A$42:$B$46,2,FALSE))*POWER('Majorations applicables'!$A$36,2),0) -> 0
A75: Pente C | C75: =IFERROR(SUM($G$146:$G$147)*(1+VLOOKUP($A$75,'Majorations applicables'!$A$42:$B$46,2,FALSE)),0) -> 0 | E75: =IFERROR(SUM($G$146:$G$147)*(1+VLOOKUP($A$75,'Majorations applicables'!$A$42:$B$46,2,FALSE))+SUM($G$146:$G$147)*(1+VLOOKUP($A$75,'Majorations applicables'!$A$42:$B$46,2,FALSE))*'Majorations applicables'!$A$36,0) -> 0 | G75: =IFERROR(SUM($G$146:$G$147)*(1+VLOOKUP($A$75,'Majorations applicables'!$A$42:$B$46,2,FALSE))+SUM($G$146:$G$147)*(1+VLOOKUP($A$75,'Majorations applicables'!$A$42:$B$46,2,FALSE))*'Majorations applicables'!$A$36+SUM($G$146:$G$147)*(1+VLOOKUP($A$75,'Majorations applicables'!$A$42:$B$46,2,FALSE))*POWER('Majorations applicables'!$A$36,2),0) -> 0
A76: Pente D | C76: =IFERROR(SUM($G$146:$G$147)*(1+VLOOKUP($A$76,'Majorations applicables'!$A$42:$B$46,2,FALSE)),0) -> 0 | E76: =IFERROR(SUM($G$146:$G$147)*(1+VLOOKUP($A$76,'Majorations applicables'!$A$42:$B$46,2,FALSE))+SUM($G$146:$G$147)*(1+VLOOKUP($A$76,'Majorations applicables'!$A$42:$B$46,2,FALSE))*'Majorations applicables'!$A$36,0) -> 0 | G76: =IFERROR(SUM($G$146:$G$147)*(1+VLOOKUP($A$76,'Majorations applicables'!$A$42:$B$46,2,FALSE))+SUM($G$146:$G$147)*(1+VLOOKUP($A$76,'Majorations applicables'!$A$42:$B$46,2,FALSE))*'Majorations applicables'!$A$36+SUM($G$146:$G$147)*(1+VLOOKUP($A$76,'Majorations applicables'!$A$42:$B$46,2,FALSE))*POWER('Majorations applicables'!$A$36,2),0) -> 0
A77: Pente E et plus | C77: =SUM($G$146:$G$147)*(1+VLOOKUP($A$77,'Majorations applicables'!$A$42:$B$46,2,FALSE)) -> 0 | E77: =IFERROR(SUM($G$146:$G$147)*(1+VLOOKUP($A$77,'Majorations applicables'!$A$42:$B$46,2,FALSE))+SUM($G$146:$G$147)*(1+VLOOKUP($A$77,'Majorations applicables'!$A$42:$B$46,2,FALSE))*'Majorations applicables'!$A$36,0) -> 0 | G77: =IFERROR(SUM($G$146:$G$147)*(1+VLOOKUP($A$77,'Majorations applicables'!$A$42:$B$46,2,FALSE))+SUM($G$146:$G$147)*(1+VLOOKUP($A$77,'Majorations applicables'!$A$42:$B$46,2,FALSE))*'Majorations applicables'!$A$36+SUM($G$146:$G$147)*(1+VLOOKUP($A$77,'Majorations applicables'!$A$42:$B$46,2,FALSE))*POWER('Majorations applicables'!$A$36,2),0) -> 0
A78: Majoration pour le nombre de passage et la pente (PA2 et PE2)
A79: Majoration pour le nombre de passage et la pente (PA2 et PE2) - Herse
A80: Superficie (hectares)
A81: Classe de pente numérique | D81: Simple passage | E81: Double passage | F81: Triple passage | G81: Total
A82: Pente A | G82: =SUM($D$82:$F$82) -> 0
A83: Pente B | G83: =SUM($D$83:$F$83) -> 0
A84: Pente C | G84: =SUM($D$84:$F$84) -> 0
A85: Pente D | G85: =SUM($D$85:$F$85) -> 0
A86: Pente E et plus | G86: =SUM($D$86:$F$86) -> 0
A87: Total | D87: =IFERROR(SUM($D$82:$D$86),0) -> 0 | E87: =IFERROR(SUM($E$82:$E$86),0) -> 0 | F87: =IFERROR(SUM($F$82:$F$86),0) -> 0 | G87: =IFERROR(SUM($G$82:$G$86),0) -> 0
A88: Taux calculé ($/hectare)
A89: Nombre de passage | C89: 1 | E89: 2 | G89: 3
A90: Pente A | C90: =IFERROR($G$14*(1+VLOOKUP($A$90,'Majorations applicables'!$A$49:$B$53,2,FALSE)),0) -> 0 | E90: =IFERROR($G$14*(1+VLOOKUP($A$90,'Majorations applicables'!$A$49:$B$53,2,FALSE))+$G$14*'Majorations applicables'!$A$39,0) -> 0 | G90: =IFERROR($G$14*(1+VLOOKUP($A$90,'Majorations applicables'!$A$49:$B$53,2,FALSE))+$G$14*(1+VLOOKUP($A$90,'Majorations applicables'!$A$49:$B$53,2,FALSE))*'Majorations applicables'!$A$39+$G$14*(1+VLOOKUP($A$90,'Majorations applicables'!$A$49:$B$53,2,FALSE))*POWER('Majorations applicables'!$A$39,2),0) -> 0
A91: Pente B | C91: =IFERROR($G$14*(1+VLOOKUP($A$91,'Majorations applicables'!$A$49:$B$53,2,FALSE)),0) -> 0 | E91: =IFERROR($G$14*(1+VLOOKUP($A$91,'Majorations applicables'!$A$49:$B$53,2,FALSE))+$G$14*'Majorations applicables'!$A$39,0) -> 0 | G91: =IFERROR($G$14*(1+VLOOKUP($A$91,'Majorations applicables'!$A$49:$B$53,2,FALSE))+$G$14*(1+VLOOKUP($A$91,'Majorations applicables'!$A$49:$B$53,2,FALSE))*'Majorations applicables'!$A$39+$G$14*(1+VLOOKUP($A$91,'Majorations applicables'!$A$49:$B$53,2,FALSE))*POWER('Majorations applicables'!$A$39,2),0) -> 0
A92: Pente C | C92: =IFERROR($G$14*(1+VLOOKUP($A$92,'Majorations applicables'!$A$49:$B$53,2,FALSE)),0) -> 0 | E92: =IFERROR($G$14*(1+VLOOKUP($A$92,'Majorations applicables'!$A$49:$B$53,2,FALSE))+$G$14*(1+VLOOKUP($A$92,'Majorations applicables'!$A$49:$B$53,2,FALSE))*'Majorations applicables'!$A$39,0) -> 0 | G92: =IFERROR($G$14*(1+VLOOKUP($A$92,'Majorations applicables'!$A$49:$B$53,2,FALSE))+$G$14*(1+VLOOKUP($A$92,'Majorations applicables'!$A$49:$B$53,2,FALSE))*'Majorations applicables'!$A$39+$G$14*(1+VLOOKUP($A$92,'Majorations applicables'!$A$49:$B$53,2,FALSE))*POWER('Majorations applicables'!$A$39,2),0) -> 0
A93: Pente D | C93: =IFERROR($G$14*(1+VLOOKUP($A$93,'Majorations applicables'!$A$49:$B$53,2,FALSE)),0) -> 0 | E93: =IFERROR($G$14*(1+VLOOKUP($A$93,'Majorations applicables'!$A$49:$B$53,2,FALSE))+$G$14*(1+VLOOKUP($A$93,'Majorations applicables'!$A$49:$B$53,2,FALSE))*'Majorations applicables'!$A$39,0) -> 0 | G93: =IFERROR($G$14*(1+VLOOKUP($A$93,'Majorations applicables'!$A$49:$B$53,2,FALSE))+$G$14*(1+VLOOKUP($A$93,'Majorations applicables'!$A$49:$B$53,2,FALSE))*'Majorations applicables'!$A$39+$G$14*(1+VLOOKUP($A$93,'Majorations applicables'!$A$49:$B$53,2,FALSE))*POWER('Majorations applicables'!$A$39,2),0) -> 0
A94: Pente E et plus | C94: =IFERROR($G$14*(1+VLOOKUP($A$94,'Majorations applicables'!$A$49:$B$53,2,FALSE)),0) -> 0 | E94: =IFERROR($G$14*(1+VLOOKUP($A$94,'Majorations applicables'!$A$49:$B$53,2,FALSE))+$G$14*(1+VLOOKUP($A$94,'Majorations applicables'!$A$49:$B$53,2,FALSE))*'Majorations applicables'!$A$39,0) -> 0 | G94: =IFERROR($G$14*(1+VLOOKUP($A$94,'Majorations applicables'!$A$49:$B$53,2,FALSE))+$G$14*(1+VLOOKUP($A$94,'Majorations applicables'!$A$49:$B$53,2,FALSE))*'Majorations applicables'!$A$39+$G$14*(1+VLOOKUP($A$94,'Majorations applicables'!$A$49:$B$53,2,FALSE))*POWER('Majorations applicables'!$A$39,2),0) -> 0
A95: =IFERROR(IF($G$24="","Majoration pour la pente (PE2 ou PE3 selon le type d'équipement)",IF($G$24<>Menus!$B$76,"Majoration pour la pente (PE2)","Majoration pour la pente (PE3)")),"Majoration pour la pente (PE2 ou PE3 selon le type d'équipement)") -> Majoration pour la pente (PE2 ou PE3 selon le type d'équipement)
A96: Majoration pour la pente (PE2 ou PE3 selon le type d'équipement) - Variable
A97: Classe de pente numérique | C97: Taux calculé | E97: Écart | G97: Superficie (hectare)
A98: Pente A | C98: =IFERROR(IF($F$24=1,$G$26*(1+VLOOKUP($A$98,'Majorations applicables'!$A$56:$B$60,2,FALSE)),$G$26*(1+VLOOKUP($A$98,'Majorations applicables'!$A$49:$B$53,2,FALSE))),0) -> 0 | E98: =IFERROR($C$98-$G$26,0) -> 0
A99: Pente B | C99: =IFERROR(IF($F$24=1,$G$26*(1+VLOOKUP($A$99,'Majorations applicables'!$A$56:$B$60,2,FALSE)),$G$26*(1+VLOOKUP($A$99,'Majorations applicables'!$A$49:$B$53,2,FALSE))),0) -> 0 | E99: =IFERROR($C$99-$G$26,0) -> 0
A100: Pente C | C100: =IFERROR(IF($F$24=1,$G$26*(1+VLOOKUP($A$100,'Majorations applicables'!$A$56:$B$60,2,FALSE)),$G$26*(1+VLOOKUP($A$100,'Majorations applicables'!$A$49:$B$53,2,FALSE))),0) -> 0 | E100: =IFERROR($C$100-$G$26,0) -> 0
A101: Pente D | C101: =IFERROR(IF($F$24=1,$G$26*(1+VLOOKUP($A$101,'Majorations applicables'!$A$56:$B$60,2,FALSE)),$G$26*(1+VLOOKUP($A$101,'Majorations applicables'!$A$49:$B$53,2,FALSE))),0) -> 0 | E101: =IFERROR($C$101-$G$26,0) -> 0
A102: Pente E et plus | C102: =IFERROR(IF($F$24=1,$G$26*(1+VLOOKUP($A$102,'Majorations applicables'!$A$56:$B$60,2,FALSE)),$G$26*(1+VLOOKUP($A$102,'Majorations applicables'!$A$49:$B$53,2,FALSE))),0) -> 0 | E102: =IFERROR($C$102-$G$26,0) -> 0
A103: Total | G103: =IFERROR(SUM($G$98:$G$102),0) -> 0
A104: ="Unités de mesure pour le traitement "&$D$13 -> Unités de mesure pour le traitement
A105: Unités de mesure pour le traitement - Drainage-Taupe
A106: Nombre de kilomètres ou de milliers de mètres cubes
A107: Nombre de milliers de microsites
A108: Majoration pour l'indice de dispersion (DRAP ou DMOD)
A109: Majoration pour l'indice de dispersion (DRAP ou DMOD) - Tous sauf Taupe et Drainage
A110: Unité d'aménagement (UA) | G110: =IF($G$5<>"",$G$5,"") -> 
A111: =IFERROR(IF(ISBLANK($G$13),"Indice relatif de dispersion",IF(OR(EXACT($G$13,Menus!$D$7),EXACT($G$13,Menus!$D$8),EXACT($G$13,Menus!$D$12),EXACT($G$13,Menus!$D$15),EXACT($G$13,Menus!$D$16),EXACT($G$13,Menus!$D$17),EXACT($G$13,Menus!$D$18),EXACT($G$13,Menus!$D$19)),"Indice relatif de dispersion (DRAP)",IF(OR(EXACT($G$13,Menus!$D$4),EXACT($G$13,Menus!$D$5),EXACT($G$13,Menus!$D$6),EXACT($G$13,Menus!$D$11)),"Indice relatif de dispersion (DMOD)"))),"Indice relatif de dispersion") -> FALSE | G111: =IFERROR(IF(ISBLANK($G$13),"Inscrire une valeur à G5",IF(OR(EXACT($G$13,Menus!$D$7),EXACT($G$13,Menus!$D$8),EXACT($G$13,Menus!$D$12),EXACT($G$13,Menus!$D$15),EXACT($G$13,Menus!$D$16),EXACT($G$13,Menus!$D$17),EXACT($G$13,Menus!$D$18),EXACT($G$13,Menus!$D$19)),VLOOKUP($G$110,'Dispersion 2020-2021'!$B$6:$F$64,2,FALSE),IF(OR(EXACT($G$13,Menus!$D$4),EXACT($G$13,Menus!$D$5),EXACT($G$13,Menus!$D$6),EXACT($G$13,Menus!$D$11)),VLOOKUP($G$110,'Dispersion 2020-2021'!$B$6:$F$64,3,FALSE)))),"Inscrire une valeur à G5") -> FALSE
A112: Dispersion (DRAP) | G112: =IFERROR(VLOOKUP($G$110,'Dispersion 2020-2021'!$B$6:$F$64,4,FALSE),0) -> 0
A113: Dispersion (DMOD) | G113: =IFERROR(VLOOKUP($G$110,'Dispersion 2020-2021'!$B$6:$F$64,5,FALSE),0) -> 0
A114: Majoration pour l'hébergement et la distance ou la durée du déplacement (HPT ou HRA et DTEXE)
A115: Majoration pour l'hébergement et la distance ou la durée du déplacement (HPT ou HRA et DTEXE) - HPT pour mécanisé et HRA et DTEXE pour manuel (Taupe et Fertilisation PEH)
A116: =IFERROR(IF(OR(EXACT($G$13,Menus!$D$13),EXACT($G$13,Menus!$D$14)),"Hébergement (HRA)","Hébergement (HPT)"),"Hébergement") -> Hébergement (HPT) | E116: =IF(OR(EXACT($G$13,Menus!$D$13),EXACT($G$13,Menus!$D$14)),Menus!$B$38,Menus!$B$33) -> PRT_Majoration_HPT | F116: =IF(OR(EXACT($G$13,Menus!$D$13),EXACT($G$13,Menus!$D$14)),IF($G$116="","",IF($G$116=Menus!$A$39,Menus!$B$39,IF($G$116=Menus!$A$40,Menus!$B$40,IF($G$116=Menus!$A$41,Menus!$B$41,IF($G$116<=Menus!$B$40,ROUND($G$116,4),"Max "&TEXT(Menus!$B$40,"0,00%")))))),IF($G$116="","",IF($G$116=Menus!$A$34,Menus!$B$34,IF($G$116=Menus!$A$35,Menus!$B$35,IF($G$116=Menus!$A$36,Menus!$B$36,IF($G$116<=Menus!$B$35,ROUND($G$116,4),"Max "&TEXT(Menus!$B$35,"0,00%"))))))) -> 
A117: Distance ou durée du déplacement (DTEXE) | F117: =IFERROR(VLOOKUP($G$117,Menus!$A$49:$B$51,2,FALSE),"") -> 
A118: Majoration pour la certification (CEAF1 ou ISO1)
A119: Majoration pour la certification (CEAF1 ou ISO1) - Tous
A120: Certification (CEAF1 ou ISO1) | F120: =IF($G$120=Menus!$A$59,Menus!$B$59,IF($G$120=Menus!$A$60,Menus!$B$60,IF($G$120=Menus!$A$61,Menus!$B$61,""))) -> 
A121: Vérification
A122: Vérification - Tous
A123: =IF(EXACT(UPPER($G$17),UPPER(Menus!$A$88)),"Délimitation des secteurs systématiquement inclue dans le taux de vérification",IF(EXACT(UPPER($G$17),UPPER(Menus!$A$89)),"Délimitation des secteurs (taux par kilomètre délimité par une tierce partie)","Délimitation des secteurs - Inscrire une valeur à G17")) -> Délimitation des secteurs - Inscrire une valeur à G17
A124: Nombre de kilomètres délimités
A125: Vérification - Disque-Bracke-Wadell/M36/Variable/Herse/Bouteur/Abatteuse-Rouleau
A126: Inventaire après traitement (taux par placette inventoriée)
A127: Nombre de placettes inventoriées
A128: Critère 1 | B128: Coefficient de distribution des microsites propices ou des placeaux propices à l'ensemencement | E128: =IFERROR(SUM($F$128:$F$133)*'Calculs grille'!$M$129,0) -> 0 | F128: =IF($G$128="Oui",1,IF($G$128="Non",0,"")) -> 
B129: Coefficient de distribution des tiges naturelles complémentaires | F129: =IF($G$129="Oui",1,IF($G$129="Non",0,"")) -> 
B130: Espacement entre les sillons ou les passages | F130: =IF($G$130="Oui",1,IF($G$130="Non",0,"")) -> 
B131: Localisation des microsites propices | F131: =IF($G$131="Oui",1,IF($G$131="Non",0,"")) -> 
B132: Coefficient de distribution des microplacettes décapées sévèrement | F132: =IF($G$132="Oui",1,IF($G$132="Non",0,"")) -> 
B133: Type de plant | F133: =IF($G$133="Oui",1,IF($G$133="Non",0,"")) -> 
A134: Critère 2 | B134: Nombre de microsites propices à la mise en terre incluant le coefficient de distribution | E134: =IFERROR(SUM($F$134)*'Calculs grille'!$M$130,0) -> 0 | F134: =IF($G$134="Oui",1,IF($G$134="Non",0,"")) -> 
A135: Nombre total de critères | G135: =IFERROR(SUM($F$128:$F$134),0) -> 0
A136: Vérification - Drainage
A137: Inventaire après traitement (taux par kilomètre ou par millier de mètres cubes)
A138: Vérification - Taupe et Fertilisation PEH
A139: Inventaire après traitement (taux par placette inventoriée)
A140: Nombre de placettes inventoriées
A141: Vérification - Majoration pour l'hébergement et la distance ou la durée du déplacement (HPVTM et DTPVTM)
A142: Hébergement (HPVTM) | F142: =IF($G$142="","",IF($G$142=Menus!$A$44,Menus!$B$44,IF($G$142=Menus!$A$45,Menus!$B$45,IF($G$142=Menus!$A$46,Menus!$B$46,IF($G$142<=Menus!$B$45,ROUND($G$142,4),"Max "&TEXT(Menus!B45,"0,00%")))))) -> 
A143: Distance ou durée du déplacement (DTPVTM) | F143: =IFERROR(VLOOKUP($G$143,Menus!$A$54:$B$56,2,FALSE),"") -> 
A144: Totaux
A145: Calculs - Disque-Bracke-Wadell
A146: Taux d'exécution de base | G146: =IFERROR(IF($G$14="",0,IF($G$33="Valeur « Distance entre les passages » non valide","Valeur « Distance entre les passages » non valide",$G$14)),0) -> 0
A147: Taux PA0 | G147: =IFERROR(IF($G$31="",0,-($G$14*(1-$G$33))),0) -> 0
A148: Taux PA1 et PE1 | G148: =IFERROR(((SUMPRODUCT($C$73:$C$77,$D$65:$D$69)+SUMPRODUCT($E$73:$E$77,$E$65:$E$69)+SUMPRODUCT($G$73:$G$77,$F$65:$F$69))/$G$70)-($G$146+$G$147),0) -> 0
A149: Taux sous-total exécution | G149: =IFERROR(SUM($G$146:$G$148),0) -> 0
A150: Taux DRAP | G150: =IFERROR(($G$149*$G$112),0) -> 0
A151: Taux HPT | G151: =IFERROR((SUM($G$149:$G$150)*$F$116),0) -> 0
A152: Taux CEAF1 ou ISO1 | G152: =IFERROR((SUM($G$149:$G$151)*$F$120),0) -> 0
A153: Taux exécution total et majorations et réduction admissibles | G153: =IFERROR(ROUND(SUM($G$149:$G$152),2),0) -> 0
A154: =IFERROR(IF(EXACT(UPPER($G$17),UPPER(Menus!$A$88)),"Taux de vérification (incluant le paiement pour la délimitation des secteurs en régie)","Taux de vérification"),"Taux de vérification") -> Taux de vérification | G154: =IFERROR(IF(EXACT($G$123,PRT_Delimitation_des_secteurs_en_regie)=FALSE,(($G$123*$G$124)+($G$126*$G$127)+SUM($F$128:$F$133)*'Calculs grille'!$M$129*$G$127+SUM($F$134)*'Calculs grille'!$M$130*$G$127)/$G$157,(((Menus!$A$97*$G$157)+(G$126*$G$127)+SUM($F$128:$F$133)*'Calculs grille'!$M$129*$G$127+SUM($F$134)*'Calculs grille'!$M$130*$G$127)/$G$157)),0) -> 0
A155: Taux HPVTM et/ou DTPVTM | G155: =IFERROR((SUM($F$142:$F$143)*$G$154),0) -> 0
A156: Taux exécution et vérification total | G156: =IFERROR(ROUND(SUM($G$153:$G$155),2),0) -> 0
A157: Superficie | G157: =IFERROR(ROUND($G$70,2),0) -> 0
A158: Total exécution | G158: =IFERROR(ROUND($G$153*$G$157,2),0) -> 0
A159: Total vérification | G159: =IFERROR(ROUND(SUM($G$154:$G$155)*$G$157,2),0) -> 0
A160: Grand total admissible | G160: =IFERROR(SUM($G$158:$G$159),0) -> 0
A161: Calculs - M36
A162: Taux d'exécution de base | G162: =IFERROR(IF($G$14="",0,$G$14),0) -> 0
A163: Taux PE1 | G163: =IFERROR((SUMPRODUCT($E$37:$E$41,$G$37:$G$41)/$G$42),0) -> 0
A164: Taux sous-total exécution | G164: =IFERROR(SUM($G$162:$G$163),0) -> 0
A165: Taux DRAP | G165: =IFERROR(($G$164*$G$112),0) -> 0
A166: Taux HPT | G166: =IFERROR((SUM($G$164:$G$165)*$F$116),0) -> 0
A167: Taux CEAF1 ou ISO1 | G167: =IFERROR((SUM($G$164:$G$166)*$F$120),0) -> 0
A168: Taux exécution total et majoration(s) admissible(s) | G168: =IFERROR(ROUND(SUM($G$164:$G$167),2),0) -> 0
A169: =IFERROR(IF(EXACT(UPPER($G$17),UPPER(Menus!$A$88)),"Taux de vérification (incluant le paiement pour la délimitation des secteurs en régie)","Taux de vérification"),"Taux de vérification") -> Taux de vérification | G169: =IFERROR(IF(EXACT($G$123,PRT_Delimitation_des_secteurs_en_regie)=FALSE,(($G$123*$G$124)+($G$126*$G$127)+SUM($F$128:$F$133)*'Calculs grille'!$M$129*$G$127+SUM($F$134)*'Calculs grille'!$M$130*$G$127)/$G$172,(((Menus!$A$97*$G$172)+($G$126*$G$127)+SUM($F$128:$F$133)*'Calculs grille'!$M$129*$G$127+SUM($F$134)*'Calculs grille'!$M$130*$G$127)/$G$172)),0) -> 0
A170: Taux HPVTM et/ou DTPVTM | G170: =IFERROR((SUM($F$142:$F$143)*$G$169),0) -> 0
A171: Taux exécution et vérification total | G171: =IFERROR(ROUND(SUM($G$168:$G$170),2),0) -> 0
A172: Superficie | G172: =IFERROR(ROUND($G$42,2),0) -> 0
A173: Total exécution | G173: =IFERROR(ROUND($G$168*$G$172,2),0) -> 0
A174: Total vérification | G174: =IFERROR(ROUND(SUM($G$169:$G$170)*$G$172,2),0) -> 0
A175: Grand total admissible | G175: =IFERROR(SUM($G$173:$G$174),0) -> 0
A176: Calculs - Herse
A177: Taux d'exécution de base | G177: =IFERROR(IF($G$14="",0,$G$14),0) -> 0
A178: Taux PA2 et PE2 | G178: =IFERROR(((SUMPRODUCT($C$90:$C$94,$D$82:$D$86)+SUMPRODUCT($E$90:$E$94,$E$82:$E$86)+SUMPRODUCT($G$90:$G$94,$F$82:$F$86))/$G$87)-($G$177),0) -> 0
A179: Taux sous-total exécution | G179: =IFERROR(SUM($G$177:$G$178),0) -> 0
A180: Taux DRAP | G180: =IFERROR(($G$179*$G$112),0) -> 0
A181: Taux HPT | G181: =IFERROR((SUM($G$179:$G$180)*$F$116),0) -> 0
A182: Taux CEAF1 ou ISO1 | G182: =IFERROR((SUM($G$179:$G$181)*$F$120),0) -> 0
A183: Taux exécution total et majoration(s) admissible(s) | G183: =IFERROR((ROUND(SUM($G$179:$G$182),2)),0) -> 0
A184: =IFERROR(IF(EXACT(UPPER($G$17),UPPER(Menus!$A$88)),"Taux de vérification (incluant le paiement pour la délimitation des secteurs en régie)","Taux de vérification"),"Taux de vérification") -> Taux de vérification | G184: =IFERROR(IF(EXACT($G$123,PRT_Delimitation_des_secteurs_en_regie)=FALSE,(($G$123*$G$124)+($G$126*$G$127)+SUM($F$128:$F$133)*'Calculs grille'!$M$129*$G$127+SUM($F$134)*'Calculs grille'!$M$130*$G$127)/$G$187,(((Menus!$A$97*$G$187)+($G$126*$G$127)+SUM($F$128:$F$133)*'Calculs grille'!$M$129*$G$127+SUM($F$134)*'Calculs grille'!$M$130*$G$127)/$G$187)),0) -> 0
A185: Taux HPVTM et/ou DTPVTM | G185: =IFERROR((SUM($F$142:$F$143)*$G$184),0) -> 0
A186: Taux exécution et vérification total | G186: =IFERROR((ROUND(SUM($G$183:$G$185),2)),0) -> 0
A187: Superficie | G187: =IFERROR(ROUND($G$87,2),0) -> 0
A188: Total exécution | G188: =IFERROR(ROUND($G$183*$G$187,2),0) -> 0
A189: Total vérification | G189: =IFERROR(ROUND(SUM($G$184:$G$185)*$G$187,2),0) -> 0
A190: Grand total admissible | G190: =IFERROR(SUM($G$188:$G$189),0) -> 0
A191: Calculs - Bouteur
A192: Taux d'exécution de base | G192: =IFERROR(IF($G$14="",0,$G$14),0) -> 0
A193: Taux PE4 | G193: =IFERROR((SUMPRODUCT($E$55:$E$59,$G$55:$G$59)/$G$60),0) -> 0
A194: Taux sous-total exécution | G194: =IFERROR(SUM($G$192:$G$193),0) -> 0
A195: Taux DMOD | G195: =IFERROR(($G$194*$G$113),0) -> 0
A196: Taux HPT | G196: =IFERROR((SUM($G$194:$G$195)*$F$116),0) -> 0
A197: Taux CEAF1 ou ISO1 | G197: =IFERROR((SUM($G$194:$G$196)*$F$120),0) -> 0
A198: Taux exécution total et majoration(s) admissible(s) | G198: =IFERROR((ROUND(SUM($G$194:$G$197),2)),0) -> 0
A199: =IFERROR(IF(EXACT(UPPER($G$17),UPPER(Menus!$A$88)),"Taux de vérification (incluant le paiement pour la délimitation des secteurs en régie)","Taux de vérification"),"Taux de vérification") -> Taux de vérification | G199: =IFERROR(IF(EXACT($G$123,PRT_Delimitation_des_secteurs_en_regie)=FALSE,(($G$123*$G$124)+($G$126*$G$127)+SUM($F$128:$F$133)*'Calculs grille'!$M$129*$G$127+SUM($F$134)*'Calculs grille'!$M$130*$G$127)/$G$202,(((Menus!$A$97*$G$202)+($G$126*$G$127)+SUM($F$128:$F$133)*'Calculs grille'!$M$129*$G$127+SUM($F$134)*'Calculs grille'!$M$130*$G$127)/$G$202)),0) -> 0
A200: Taux HPVTM et/ou DTPVTM | G200: =IFERROR((SUM($F$142:$F$143)*$G$199),0) -> 0
A201: Taux exécution et vérification total | G201: =IFERROR((ROUND(SUM($G$198:$G$200),2)),0) -> 0
... 97 more rows

Sheet Régénération artificielle (hidden)
A2: Annexe au calcul des taux des traitements non commerciaux 2020-2021 Régénération artificielle Forêt publique
A3: *** Veuillez saisir les informations dans les cellules blanches seulement *** | G3: Version 3 : 2020-04-02
A4: Identification
A5: Unité d'aménagement (UA)
A6: Secteur d'intervention
A7: Unité de compilation
A8: Numéro de la prescription
A9: Traitement (code DICA)
A10: Traitement (code RATF) | D10: =IFERROR(VLOOKUP($G$9,Menus!$A$332:$D$385,3,FALSE),Menus!$C$385) -> RA_Codes_RATF
A11: Traitement de régénération artificielle à taux fixe ou variable
A12: Traitement | G12: Inscrire une valeur
A13: Taux de base | G13: =IFERROR(VLOOKUP($G$12,Menus!$A$230:$C$236,2,FALSE),0) -> 0
A14: Unité de mesure | G14: =IFERROR(VLOOKUP($G$12,Menus!$A$230:$C$236,3,FALSE),"") -> -
A15: Taux d'exécution à déterminer selon la formule suivante
A16: =IF($G$12=Formules!$B$10,Formules!$D$10,IF($G$12=Formules!$B$11,Formules!$D$11,IF($G$12=Formules!$B$12,Formules!$D$12,""))) -> 
A17: Majoration pour le type de préparation de terrain (RAPM)
A18: Majoration pour le type de préparation de terrain (RAPM) - Tous sauf Ensemencement terrestre manuel et Plantation uniforme et regarni mécanique (Scarificateur-planteur Bracke P-11a)
A19: Type de préparation de terrain (RAPM) | F19: =IFERROR(VLOOKUP($G$19,Menus!$A$388:$B$389,2,FALSE),"") ->  | G19: Inscrire une valeur
A20: ="Valeurs spécifiques à remplir selon le traitement - "&$G$12 -> Valeurs spécifiques à remplir selon le traitement - Inscrire une valeur
A21: Valeurs spécifiques à remplir selon le traitement - Plantation uniforme et regarni en plein manuel sauf PEH
A22: PR | B22: Préparation de terrain | F22: =IF($G$22=Menus!$A$239,Menus!$B$239,IF($G$22=Menus!$A$240,Menus!$B$240,"")) -> 
A23: DE | B23: Densité totale (nombre de plants à mettre en terre par hectare)
A24: DS | B24: Distance entre les rangées de plants (sillons si disponible) | C24: Objectif de densité de plantation à terme : Outil de calcul afin de permettre d'afficher une valeur suggérée pour DS
C25: Outil de calcul de la valeur de la variable DS en fonction de « Objectif de densité de plantation à terme ». Une valeur différente peut être inscrite. | F25: =IFERROR(ROUND(SQRT(10000/$G$24),2),0) -> 0
A26: Gabarit | B26: Constante liée au gabarit retenu | F26: =IFERROR(VLOOKUP($G$26,Menus!$A$243:$B$248,2,FALSE),"") -> 
A27: Nombre total de milliers de plants à mettre en terre
A28: Taux calculé à partir de l'équation et des variables reliées au traitement | G28: =IFERROR(('Calculs grille'!$M$35+'Calculs grille'!$M$36*$F$22+('Calculs grille'!$M$37/($G$23*$G$25))+$F$26)*SUM(1,$F$19),0) -> 0
A29: Valeurs spécifiques à remplir selon le traitement - Regarni de sentier et plantation d'enrichissement manuel sauf PEH
A30: PR | B30: Préparation de terrain | F30: =IFERROR(VLOOKUP($G$30,Menus!$A$239:$B$240,2,FALSE),"") -> 
A31: DE | B31: Densité totale (nombre de plants à mettre en terre par hectare)
A32: DS | B32: Distance entre les rangées de plants (sillons si disponible) | C32: Objectif de densité de plantation uniforme à terme
C33: Outil de calcul de la valeur de la variable DS en fonction de « Objectif de densité de plantation à terme ». Une valeur différente peut être inscrite. | F33: =IFERROR(ROUND(SQRT(10000/$G$32),2),"") -> 
C34: Calcul de la distance ajustée entre les plants (DSA), en fonction de « Objectif de densité de plantation à terme » et de « Pourcentage d'occupation des sentiers (regarni) ou proportion de la superficie traitée (enrichissement) ». La valeur DSA calculée et la valeur DS inscrite par l'utilisateur seront utilisées pour établir le taux. | G34: =IFERROR(($F$33/$G$36),"") -> 
A35: Gabarit | B35: Constante liée au gabarit retenu | F35: =IFERROR(VLOOKUP($G$35,Menus!$A$243:$B$248,2,FALSE),"") -> 
A36: Pourcentage d'occupation des sentiers (regarni) ou proportion de la superficie traitée (enrichissement)
A37: Nombre total de milliers de plants à mettre en terre
A38: Taux calculé à partir de l'équation et des variables reliées au traitement | G38: =IFERROR(IF($G$36="",('Calculs grille'!$M$35+'Calculs grille'!$M$36*$F$30+('Calculs grille'!$M$37/($G$31*$G$33))+$F$35)*SUM(1,$F$19),('Calculs grille'!$M$35+'Calculs grille'!$M$36*$F$30+('Calculs grille'!$M$37/($G$31*$G$34))+$F$35)*SUM(1,$F$19)*(1+((('Calculs grille'!$M$35+'Calculs grille'!$M$36*$F$30+('Calculs grille'!$M$37/($G$32*$G$33))+$F$35)-('Calculs grille'!$M$35+'Calculs grille'!$M$36*$F$30+('Calculs grille'!$M$37/($G$32*$G$34))+$F$35))/('Calculs grille'!$M$35+'Calculs grille'!$M$36*$F$30+('Calculs grille'!$M$37/($G$32*$G$34))+$F$35)))),0) -> 0
A39: Valeurs spécifiques à remplir selon le traitement - Plantation uniforme et regarni en plein manuel sentier préparé sauf PEH
A40: DE | B40: Densité totale (indiquer le nombre de plants à mettre en terre par hectare)
A41: DS | B41: Distance entre les rangées de plants (sillons si disponible) | C41: Objectif de densité de plantation à terme : Outil de calcul afin de permettre d'afficher une valeur suggérée pour DS
C42: Outil de calcul de la valeur de la variable DS en fonction de « Objectif de densité de plantation à terme ». Une valeur différente peut être inscrite. | F42: =IFERROR(ROUND(SQRT(10000/$G$41),2),0) -> 0
A43: Gabarit | B43: Constante liée au gabarit retenu | F43: =IFERROR(VLOOKUP($G$43,Menus!$A$243:$B$248,2,FALSE),"") -> 
A44: Nombre total de milliers de plants à mettre en terre dans les sentiers
A45: Nombre total de milliers de plants à mettre en terre dans les bandes
A46: Taux calculé à partir de l'équation et des variables reliées au traitement AVEC préparation de terrain | G46: =IFERROR(('Calculs grille'!$M$35+'Calculs grille'!$M$36*1+('Calculs grille'!$M$37/($G$40*$G$42))+$F$43)*SUM(1,$F$19),0) -> 0
A47: Taux calculé à partir de l'équation et des variables reliées au traitement SANS préparation de terrain | G47: =IFERROR(('Calculs grille'!$M$35+'Calculs grille'!$M$36*0+('Calculs grille'!$M$37/($G$40*$G$42))+$F$43)*SUM(1,$F$19),0) -> 0
A48: Valeurs spécifiques à remplir selon le traitement - Plantation uniforme PEH
A49: Nombre de milliers de plants à mettre en terre
A50: Valeurs spécifiques à remplir selon le traitement - Plantation uniforme et regarni mécanique (Scarificateur-planteur Bracke P-11a)
A51: Spécification
A52: Nombre de milliers de plants à mettre en terre
A53: Taux | G53: =IFERROR(VLOOKUP($G$51,Menus!$A$251:$B$254,2,FALSE),0) -> 0
A54: ="Majorations applicables à l'exécution - "&$G$12&" - Voir l'onglet « Étapes calcul majoration »" -> Majorations applicables à l'exécution - Inscrire une valeur - Voir l'onglet « Étapes calcul majoration »
A55: =IF($G$12='Majorations applicables'!$C$24,'Majorations applicables'!$K$24,IF($G$12='Majorations applicables'!$C$25,'Majorations applicables'!$K$25,IF($G$12='Majorations applicables'!$C$26,'Majorations applicables'!$K$26,IF($G$12='Majorations applicables'!$C$27,'Majorations applicables'!$K$27,IF($G$12='Majorations applicables'!$C$28,'Majorations applicables'!$K$28,IF($G$12='Majorations applicables'!$C$29,'Majorations applicables'!$K$29,"")))))) -> 
A56: Majoration pour la pente (PE2)
A57: Majoration pour la pente (PE2) - Ensemencement terrestre manuel
A58: Classe de pente numérique | B58: Taux calculé | D58: Écart | G58: Superficie (hectare)
A59: Pente A | B59: =IFERROR($G$13*(1+VLOOKUP($A$59,'Majorations applicables'!$A$49:$B$53,2,FALSE)),0) -> 0 | C59: =B59-$G$12 ->  | D59: =IFERROR($B$59-$G$13,0) -> 0
A60: Pente B | B60: =IFERROR($G$13*(1+VLOOKUP($A$60,'Majorations applicables'!$A$49:$B$53,2,FALSE)),0) -> 0 | C60: =B60-$G$12 ->  | D60: =IFERROR($B$60-$G$13,0) -> 0
A61: Pente C | B61: =IFERROR($G$13*(1+VLOOKUP($A$61,'Majorations applicables'!$A$49:$B$53,2,FALSE)),0) -> 0 | C61: =B61-$G$12 ->  | D61: =IFERROR($B$61-$G$13,0) -> 0
A62: Pente D | B62: =IFERROR($G$13*(1+VLOOKUP($A$62,'Majorations applicables'!$A$49:$B$53,2,FALSE)),0) -> 0 | C62: =B62-$G$12 ->  | D62: =IFERROR($B$62-$G$13,0) -> 0
A63: Pente E et plus | B63: =IFERROR($G$13*(1+VLOOKUP($A$63,'Majorations applicables'!$A$49:$B$53,2,FALSE)),0) -> 0 | C63: =B63-$G$12 ->  | D63: =IFERROR($B$63-$G$13,0) -> 0
D64: Total | G64: =IFERROR(SUM($G$59:$G$63),0) -> 0
A65: Majoration pour l'hébergement, le transport collectif et la distance ou la durée du déplacement (HRA ou HPT, TC et DTEXE)
A66: Majoration pour l'hébergement, le transport collectif et la distance ou la durée du déplacement (HRA ou HPT, TC et DTEXE) - Tous sauf TC et DTEXE pour Plantation uniforme et regarni mécanique (Scarificateur-planteur Bracke P-11a)
A67: =IFERROR(IF(EXACT($G$12,Menus!$A$233),"Hébergement (HPT)","Hébergement (HRA) ou transport collectif (TC)"),"Hébergement") -> Hébergement (HRA) ou transport collectif (TC) | D67: =IF(EXACT($G$12,Menus!$A$233),Menus!$B$262,Menus!$B$256) -> RA_Majoration_HRA_ou_TC | E67: =IF(EXACT($G$12,Menus!$A$233),IF($G$67="","",IF($G$67=Menus!$A$263,Menus!$B$263,IF($G$67=Menus!$A$264,Menus!$B$264,IF($G$67=Menus!$A$265,Menus!$B$265,IF($G$67<=Menus!$B$264,ROUND($G$67,4),"Max "&TEXT(Menus!$B$264,"0,00%")))))),IF($G$67="","",IF($G$67=Menus!$A$257,Menus!$B$257,IF($G$67=Menus!$A$258,Menus!$B$258,IF($G$67=Menus!$A$259,Menus!$B$259,IF($G$67=Menus!$A$260,Menus!$B$260,IF($G$67<=Menus!$B$258,ROUND($G$67,4),"Max "&TEXT(Menus!$B$258,"0,00%")))))))) -> 
A68: Distance ou durée du déplacement (DTEXE) | E68: =IFERROR(VLOOKUP($G$68,Menus!$A$273:$B$275,2,FALSE),"") -> 
A69: Majoration pour la certification (CEAF2 ou ISO2)
A70: Majoration pour la certification (CEAF2 ou ISO2) - Tous
A71: Certification (CEAF2 ou ISO2) | E71: =IFERROR(VLOOKUP($G$71,Menus!$A$283:$B$285,2,FALSE),"") -> 
A72: Vérification
A73: Vérification - Tous
A74: Inventaire après traitement (taux par placette inventoriée)
A75: Nombre de placettes inventoriées
A76: Critère 3 | B76: Alignement des plants reboisés | E76: =IFERROR(SUM($F$76:$F$77)*'Calculs grille'!$M$134,0) -> 0 | F76: =IF($G$76="Oui",1,IF($G$76="Non",0,"")) -> 
B77: Nombre de microplacettes localisées en partie ou en totalité sur un andain | F77: =IF($G$77="Oui",1,IF($G$77="Non",0,"")) -> 
A78: Vérification - Majoration pour l'hébergement, la distance ou la durée du déplacement et la traçabilité des plants (HPVTM, DTPVTM et TRA)
A79: Vérification - Majoration pour l'hébergement, la distance ou la durée du déplacement et la traçabilité des plants (HPVTM, DTPVTM et TRA) - Tous sauf TRA pour Ensemencement terrestre manuel
A80: Hébergement (HPVTM) | E80: =IF($G$80="","",IF($G$80=Menus!$A$268,Menus!$B$268,IF($G$80=Menus!$A$269,Menus!$B$269,IF($G$80=Menus!$A$270,Menus!$B$270,IF($G$80<=Menus!$B$269,ROUND($G$80,4),"Max "&TEXT(Menus!$B$269,"0,0%")))))) -> 
A81: Distance ou durée du déplacement (DTPVTM) | E81: =IFERROR(VLOOKUP($G$81,Menus!$A$278:$B$280,2,FALSE),"") -> 
A82: Traçabilité (TRA) | E82: =IFERROR(VLOOKUP($G$82,Menus!$A$296:$B$297,2,FALSE),"") -> 
A83: Totaux
A84: Calculs - Plantation uniforme et regarni en plein manuel sauf PEH
A85: =IFERROR(IF(EXACT($G$19,Menus!$A$510),"Taux d'exécution de base incluant la majoration RAPM de "&TEXT($F$19*1000,"##,0# %"),"Taux d'exécution de base"),"Taux d'exécution de base") -> Taux d'exécution de base | G85: =IFERROR($G$28,0) -> 0
A86: Taux HRA ou TC | G86: =IFERROR(($G$85*$E$67),0) -> 0
A87: Taux DTEXE | G87: =IFERROR(($G$85*$E$68),0) -> 0
A88: Taux CEAF2 ou ISO2 | G88: =IFERROR((SUM($G$85:$G$87)*$E$71),0) -> 0
A89: Taux exécution total et majoration(s) admissible(s) | G89: =IFERROR((ROUND(SUM($G$85:$G$88),2)),0) -> 0
A90: Taux vérification | G90: =IFERROR((+($G$74*$G$75)+SUM($F$76)*'Calculs grille'!$M$134*$G$75+SUM($F$77)*'Calculs grille'!$M$134*$G$75)/$G$94,0) -> 0
A91: Taux HPVTM et/ou DTPVTM | G91: =IFERROR(($G$90*SUM($E$80:$F$81)),0) -> 0
A92: Taux TRA | G92: =IFERROR(SUM($E$82),0) -> 0
A93: Taux exécution et vérification total | G93: =IFERROR(ROUND(SUM($G$89:$G$92),2),0) -> 0
A94: Nombre de milliers de plants | G94: =IFERROR(ROUND($G$27,3),0) -> 0
A95: Total exécution | G95: =IFERROR(ROUND($G$89*$G$94,2),0) -> 0
A96: Total vérification | G96: =IFERROR(ROUND(SUM($G$90:$G$92)*$G$94,2),0) -> 0
A97: Grand total admissible | G97: =IFERROR(SUM($G$95:$G$96),0) -> 0
A98: Calculs - Regarni de sentier et plantation d'enrichissement manuel sauf PEH
A99: =IFERROR(IF(EXACT($G$19,Menus!$A$510),"Taux d'exécution de base incluant la majoration RAPM de "&TEXT($F$19*1000,"##,0# %"),"Taux d'exécution de base"),"Taux d'exécution de base") -> Taux d'exécution de base | G99: =IFERROR($G$38,0) -> 0
A100: Taux HRA ou TC | G100: =IFERROR(($G$99*$E$67),0) -> 0
A101: Taux DTEXE | G101: =IFERROR(($G$99*$E$68),0) -> 0
A102: Taux CEAF2 ou ISO2 | G102: =IFERROR((SUM($G$99:$G$101)*$E$71),0) -> 0
A103: Taux exécution total et majoration(s) admissible(s) | G103: =IFERROR((ROUND(SUM($G$99:$G$102),2)),0) -> 0
A104: Taux vérification | G104: =IFERROR((+($G$74*$G$75)+SUM($F$76)*'Calculs grille'!$M$134*$G$75+SUM($F$77)*'Calculs grille'!$M$134*$G$75)/$G$108,0) -> 0
A105: Taux HPVTM et/ou DTPVTM | G105: =IFERROR(($G$104*SUM($E$80:$F$81)),0) -> 0
A106: Taux TRA | G106: =IFERROR(SUM($E$82),0) -> 0
A107: Taux exécution et vérification total | G107: =IFERROR((ROUND(SUM($G$103:$G$106),2)),0) -> 0
A108: Nombre de milliers de plants | G108: =IFERROR(ROUND($G$37,3),0) -> 0
A109: Total exécution | G109: =IFERROR(ROUND($G$103*$G$108,2),0) -> 0
A110: Total vérification | G110: =IFERROR(ROUND(SUM($G$104:$G$106)*$G$108,2),0) -> 0
A111: Grand total admissible | G111: =IFERROR(SUM($G$109:$G$110),0) -> 0
A112: Calculs - Plantation uniforme et regarni en plein manuel sentier préparé sauf PEH
A113: =IFERROR(IF(EXACT($G$19,Menus!$A$510),"Taux d'exécution de base incluant la majoration RAPM de "&TEXT($F$19*1000,"##,0# %"),"Taux d'exécution de base"),"Taux d'exécution de base") -> Taux d'exécution de base | G113: =IFERROR((SUMPRODUCT($G$44:$G$45,$G$46:$G$47)/SUM($G$44:$G$45)),0) -> 0
A114: Taux HRA ou TC | G114: =IFERROR(($G$113*$E$67),0) -> 0
A115: Taux DTEXE | G115: =IFERROR(($G$113*$E$68),0) -> 0
A116: Taux CEAF2 ou ISO2 | G116: =IFERROR((SUM($G$113:$G$115)*$E$71),0) -> 0
A117: Taux exécution total et majoration(s) admissible(s) | G117: =IFERROR((ROUND(SUM($G$113:$G$116),2)),0) -> 0
A118: Taux vérification | G118: =IFERROR((+($G$74*$G$75)+SUM($F$76)*'Calculs grille'!$M$134*$G$75+SUM($F$77)*'Calculs grille'!$M$134*$G$75)/SUM($G$122:$G$123),0) -> 0
A119: Taux HPVTM et/ou DTPVTM | G119: =IFERROR(($G$118*SUM($E$80:$F$81)),0) -> 0
A120: Taux TRA | G120: =IFERROR(SUM($E$82),0) -> 0
A121: Taux exécution et vérification total | G121: =IFERROR((ROUND(SUM($G$117:$G$120),2)),0) -> 0
A122: Nombre de milliers de plants dans les sentiers | G122: =IFERROR(ROUND($G$44,3),0) -> 0
A123: Nombre de milliers de plants dans les bandes | G123: =IFERROR(ROUND($G$45,3),0) -> 0
A124: Total exécution | G124: =IFERROR(ROUND(SUM($G$122:$G$123)*$G$117,2),0) -> 0
A125: Total vérification | G125: =IFERROR(ROUND(SUM($G$118:$G$120)*SUM($G$122:$G$123),2),0) -> 0
A126: Grand total admissible | G126: =IFERROR(SUM($G$124:$G$125),0) -> 0
A127: Calculs - Plantation uniforme PEH
A128: =IFERROR(IF(EXACT($G$19,Menus!$A$510),"Taux d'exécution de base incluant la majoration RAPM de "&TEXT($F$19*1000,"##,0# %"),"Taux d'exécution de base"),"Taux d'exécution de base") -> Taux d'exécution de base | G128: =IFERROR($G$13*SUM(1,$F$19),0) -> 0
A129: Taux HRA ou TC | G129: =IFERROR(($G$128*$E$67),0) -> 0
A130: Taux DTEXE | G130: =IFERROR(($G$128*$E$68),0) -> 0
A131: Taux CEAF2 ou ISO2 | G131: =IFERROR((SUM($G$128:$G$130)*$E$71),0) -> 0
A132: Taux exécution total et majoration(s) admissible(s) | G132: =IFERROR((ROUND(SUM($G$128:$G$131),2)),0) -> 0
A133: Taux vérification | G133: =IFERROR((+($G$74*$G$75)+SUM($F$76)*'Calculs grille'!$M$134*$G$75+SUM($F$77)*'Calculs grille'!$M$134*$G$75)/$G$137,0) -> 0
A134: Taux HPVTM et/ou DTPVTM | G134: =IFERROR(($G$133*SUM($E$80:$F$81)),0) -> 0
A135: Taux TRA | G135: =IFERROR(SUM($E$82),0) -> 0
A136: Taux exécution et vérification total | G136: =IFERROR((ROUND(SUM($G$132:$G$135),2)),0) -> 0
A137: Nombre de milliers de plants | G137: =IFERROR(ROUND($G$49,3),0) -> 0
A138: Total exécution | G138: =IFERROR(ROUND($G$132*$G$137,2),0) -> 0
A139: Total vérification | G139: =IFERROR(ROUND(SUM($G$133:$G$135)*$G$137,2),0) -> 0
A140: Grand total admissible | G140: =IFERROR(SUM($G$138:$G$139),0) -> 0
A141: Calculs - Plantation uniforme et regarni mécanique (Scarificateur-planteur Bracke P-11a)
A142: Taux d'exécution de base | G142: =IFERROR(IF($G$53="",0,$G$53),0) -> 0
A143: Taux HPT | G143: =IFERROR(($G$142*$E$67),0) -> 0
A144: Taux CEAF2 ou ISO2 | G144: =IFERROR((SUM($G$142:$G$143)*$E$71),0) -> 0
A145: Taux exécution total et majoration(s) admissible(s) | G145: =IFERROR((ROUND(SUM($G$142:$G$144),2)),0) -> 0
A146: Taux vérification | G146: =IFERROR((+($G$74*$G$75)+SUM($F$76)*'Calculs grille'!$M$134*$G$75+SUM($F$77)*'Calculs grille'!$M$134*$G$75)/$G$150,0) -> 0
A147: Taux HPVTM et/ou DTPVTM | G147: =IFERROR(($G$146*SUM($E$80:$F$81)),0) -> 0
A148: Taux TRA | G148: =IFERROR(SUM($E$82),0) -> 0
A149: Taux exécution et vérification total | G149: =IFERROR((ROUND(SUM($G$145:$G$148),2)),0) -> 0
A150: Nombre de milliers de plants | G150: =IFERROR(ROUND($G$52,3),0) -> 0
A151: Total exécution | G151: =IFERROR(ROUND($G$145*$G$150,2),0) -> 0
A152: Total vérification | G152: =IFERROR(ROUND(SUM($G$146:$G$148)*$G$150,2),0) -> 0
A153: Grand total admissible | G153: =IFERROR(SUM($G$151:$G$152),0) -> 0
A154: Calculs - Ensemencement terrestre manuel
A155: Taux d'exécution de base | G155: =IFERROR($G$13,0) -> 0
A156: Taux PE2 | G156: =IFERROR((SUMPRODUCT($D$59:$D$63,$G$59:$G$63)/$G$64),0) -> 0
A157: Taux sous-total exécution | G157: =IFERROR(SUM($G$155:$G$156),0) -> 0
A158: Taux HRA ou TC | G158: =IFERROR(($G$157*$E$67),0) -> 0
A159: Taux DTEXE | G159: =IFERROR(($G$157*$E$68),0) -> 0
A160: Taux CEAF2 ou ISO2 | G160: =IFERROR((SUM($G$157:$G$159)*$E$71),0) -> 0
A161: Taux exécution total et majoration(s) admissible(s) | G161: =IFERROR((ROUND(SUM($G$157:$G$160),2)),0) -> 0
A162: Taux vérification | G162: =IFERROR((($G$74*$G$75)+SUM($F$76)*'Calculs grille'!$M$134*$G$75+SUM($F$77)*'Calculs grille'!$M$134*$G$75)/$G$165,0) -> 0
A163: Taux HPVTM et/ou DTPVTM | G163: =IFERROR(($G$162*SUM(($E$80:$F$81))),0) -> 0
A164: Taux exécution et vérification total | G164: =IFERROR((ROUND(SUM($G$161:$G$163),2)),0) -> 0
A165: Superficie | G165: =IFERROR(ROUND($G$64,2),0) -> 0
A166: Total exécution | G166: =IFERROR(ROUND($G$161*$G$165,2),0) -> 0
A167: Total vérification | G167: =IFERROR(ROUND(SUM($G$162:$G$163)*$G$165,2),0) -> 0
A168: Grand total admissible | G168: =IFERROR(SUM($G$166:$G$167),0) -> 0
A170: Remarques
A172: J'atteste que les renseignements fournis dans ce document afin de calculer le taux du traitement sont complets et conformes à la vérité, au meilleur de mes connaissances.
A176: Nom et prénom de l'ingénieur forestier | G176: Numéro de permis
G177: =TODAY() -> 2020-04-02
A179: Signature de l'ingénieur forestier | G179: Date (AAAA-MM-JJ)
A182: Section réservée au suivi du contrat
B184: Numéro de la prescription : | C184: =IF($G$8<>"",$G$8,"") -> 
B186: Numéro du contrat :
B187: Numéro du projet :
B188: U.G. :
B189: MRC :
B190: Code de traitement DICA : | C190: =IF($G$9<>"",$G$9,"") -> 
B191: Code de traitement RATF : | C191: =IF($G$10<>"",$G$10,"") -> 
B192: Type d'attribution :
B193: =IFERROR(IF($D$193=Menus!$A$668,"Taux AO (avec vérif.) :",IF($D$193=Menus!$A$669,"Taux AO (sans vérif.) :","Taux AO :")),"Taux AO :") -> Taux AO (sans vérif.) : | D193: Vérification EXCLUS
B194: =IFERROR(IF($D$193=Menus!$A$669,"Taux Grille (sans vérif.) :","Taux Grille (avec vérif.) :"),"Taux Grille (avec vérif.) :") -> Taux Grille (sans vérif.) : | C194: =IFERROR(IF(OR($D$193="",$D$193=Menus!$A$670),VLOOKUP($G$12,RXF!$A$1:$G$34,3,FALSE),IF($D$193=Menus!$A$668,VLOOKUP($G$12,RXF!$A$1:$G$34,3,FALSE),IF($D$193=Menus!$A$669,VLOOKUP($G$12,RXF!$A$1:$G$34,4,FALSE)))),0) -> 0
B195: Ratio AO/Grille : | C195: =IF(AND($C$193<>"",$C$194>0),ROUND($C$193/$C$194,4),"S/O") -> S/O
B196: Grand total AO : | C196: =IFERROR(IF(OR($C$193="",$C$194=0),"S/O",IF(AND($C$193>0,OR($D$193=Menus!$A$668,$D$193=Menus!$A$670)),ROUND(VLOOKUP($G$12,RXF!$A$1:$G$34,5,FALSE)*$C$195,2),IF(AND($C$193>0,$D$193=Menus!$A$669),ROUND(VLOOKUP($G$12,RXF!$A$1:$G$34,7,FALSE)*$C$195,2)))),"") -> S/O
B197: Nom de l'entrepreneur :
B198: Numéro de fournisseur :
B199: Date de début :
B200: Date de fin :
B201: Commentaires :

Sheet Éducation de peuplement (hidden)
A2: Annexe au calcul des taux des traitements non commerciaux 2020-2021 Éducation de peuplement Forêt publique
A3: *** Veuillez saisir les informations dans les cellules blanches seulement *** | G3: Version 3 : 2020-04-02
A4: Identification
A5: Unité d'aménagement (UA)
A6: Secteur d'intervention
A7: Unité de compilation
A8: Numéro de la prescription
A9: Traitement (code DICA)
A10: Traitement (code RATF) | E10: =IFERROR(VLOOKUP($G$9,Menus!$A$496:$D$507,3,FALSE),Menus!$C$507) -> EP_Codes_RATF
A11: Traitement d'éducation de peuplement à taux variable
A12: Traitement | G12: Inscrire une valeur
A13: Taux d'exécution à déterminer selon la formule suivante
A14: =IF($G$12=Formules!$B$2,Formules!$D$2,IF($G$12=Formules!$B$3,Formules!$D$3,IF($G$12=Formules!$B$4,Formules!$D$4,IF($G$12=Formules!$B$5,Formules!$D$5,IF($G$12=Formules!$B$6,Formules!$D$6,IF($G$12=Formules!$B$7,Formules!$D$7,"")))))) -> 
A15: Majoration pour le type de préparation de terrain (DEGPM)
A16: Majoration pour le type de préparation de terrain (DEGPM) - Dégagement mécanique
A17: Type de préparation de terrain (DEGPM) | F17: =IFERROR(VLOOKUP($G$17,Menus!$A$510:$B$511,2,FALSE),"") ->  | G17: Inscrire une valeur
A18: ="Valeurs spécifiques à remplir selon le traitement - "&$G$12 -> Valeurs spécifiques à remplir selon le traitement - Inscrire une valeur
A19: Valeurs spécifiques à remplir selon le traitement - Dégagement mécanique
A20: RECFFE | B20: Pourcentage de superficie couverte par le framboisier, la fougère et l'épilobe
A21: DI | B21: Densité initiale à l'hectare soit le dénombrement de toutes les tiges de 1 m et plus de hauteur. Inventaire un an avant exécution : 80 cm.
A22: MODE | B22: Mode d'établissement de la régénération | F22: =IF($G$22=Menus!$B$403,Menus!$C$403,IF($G$22=Menus!$B$404,Menus!$C$404,"")) -> 
A23: =IFERROR(IF(EXACT($G$17,Menus!$A$510),"Taux calculé à partir de l'équation et des variables reliées au traitement incluant la majoration DEGPM de "&TEXT($F$17*1000,"##,## %"),"Taux calculé à partir de l'équation et des variables reliées au traitement"),"Taux calculé à partir de l'équation et des variables reliées au traitement") -> Taux calculé à partir de l'équation et des variables reliées au traitement | G23: =IFERROR((('Calculs grille'!$M$59+('Calculs grille'!$M$60*'Éducation de peuplement'!$G$20*100)+('Calculs grille'!$M$61*'Éducation de peuplement'!$G$21)+('Calculs grille'!$M$62*'Éducation de peuplement'!$F$22)))*SUM(1,$F$17),0) -> 0
A24: Valeurs spécifiques à remplir selon le traitement - Nettoiement - scénario sylvicole de base
A25: DI | B25: Densité initiale (tiges/hectare) | C25: Dénombrement de toutes les tiges dont le diamètre à hauteur de souche (15 cm) est supérieur à 1,5 cm. Inventaire un an avant exécution : Résineux > 1,0 m et Feuillus > 1,6 m de hauteur. Inventaire même année qu'exécution : Résineux > 1,2 m et Feuillus > 1,8 m de hauteur. NB : Le dénombrement des tiges peut être effectué à partir de la hauteur de la tige ou du diamètre à hauteur de souche après entente avec les autorités.
A26: SRLC | B26: Stocking résineux libre de croître (%) | D26: Nombre de placettes contenant un résineux libre de croître sur le nombre total de placettes
A28: Taux calculé à partir de l'équation et des variables reliées au traitement | G28: =IFERROR(IF(AND($G$25<>"",$G$26<>""),('Calculs grille'!$M$66+('Calculs grille'!$M$67*$G$25)-(ABS('Calculs grille'!$M$68)*$G$26)),0),0) -> 0
A29: Valeurs spécifiques à remplir selon le traitement - Nettoiement et EPC systématique- scénario sylvicole intensif ou d'élite
A30: DI | B30: Densité initiale (tiges/hectare) | C30: Dénombrement de toutes les tiges dont le diamètre à hauteur de souche (15 cm) est supérieur à 1,5 cm. Inventaire un an avant exécution : Résineux > 1,0 m et Feuillus > 1,6 m de hauteur. Inventaire même année qu'exécution : Résineux > 1,2 m et Feuillus > 1,8 m de hauteur. NB : Le dénombrement des tiges peut être effectué à partir de la hauteur de la tige ou du diamètre à hauteur de souche après entente avec les autorités.
A31: TP | B31: Type de composition visée | C31: Facteur d'ajustement | F31: =IFERROR(VLOOKUP($G$31,Menus!$A$407:$B$408,2,FALSE),"") -> 
A33: Taux calculé à partir de l'équation et des variables reliées au traitement | G33: =IFERROR(IF(AND($G$30<>"",$G$31<>""),'Calculs grille'!$M$72+('Calculs grille'!$M$73*LN($G$30)-'Calculs grille'!$M$74)*$F$31,0),0) -> 0
A34: Valeurs spécifiques à remplir selon le traitement - EPC par puit de lumière ET Taille de formation avec martelage
A35: Éclaircie précommerciale | F35: =IF($G$35=Menus!$B$422,Menus!$C$422,IF($G$35=Menus!$B$423,Menus!$C$423,"")) -> 
A36: Martelage | F36: =IF($G$36=Menus!$B$418,Menus!$C$418,IF($G$36=Menus!$B$419,Menus!$C$419,"")) -> 
A37: DENSTIGE | B37: Densité des arbres à éclaircir et/ou marteler et/ou tailler à l'hectare
A38: HTTIGE | B38: Hauteur totale des arbres à éclaircir et/ou marteler et/ou tailler (m)
A39: TAIL | B39: Taille de formation | F39: =IF($G$39=Menus!$B$414,Menus!$C$414,IF($G$39=Menus!$B$415,Menus!$C$415,"")) -> 
A40: =IF($G$35="","Taux calculé pour le traitement à partir de l'équation et des variables","Taux calculé pour le traitement à partir de l'équation et des variables - "&$G$35) -> Taux calculé pour le traitement à partir de l'équation et des variables | G40: =IFERROR((('Calculs grille'!$M$78*$G$37*EXP('Calculs grille'!$M$79*$G$38)+'Calculs grille'!$M$85)*$F$35),0) -> 0
A41: ="Taux calculé pour "&IF(AND($F$39=0,$F$36=1)=TRUE,"le martelage sans taille de formation",IF(AND($F$39=1,$F$36=0)=TRUE,"la taille de formation sans martelage",IF(AND($F$39=1,$F$36=1)=TRUE,"le martelage et la taille de formation","la taille de formation et le martelage"))) -> Taux calculé pour la taille de formation et le martelage | G41: =IFERROR(IF((AND($F$36=1,$F$39=1))=TRUE,(('Calculs grille'!$M$80*$G$37/(('Calculs grille'!$M$81*$G$37)+'Calculs grille'!$M$82)+'Calculs grille'!$M$83*$F$39)+'Calculs grille'!$M$87+'Calculs grille'!$M$88),IF((AND($F$36=1,$F$39=0))=TRUE,(('Calculs grille'!$M$80*$G$37/(('Calculs grille'!$M$81*$G$37)+'Calculs grille'!$M$82)+'Calculs grille'!$M$83*$F$39)+'Calculs grille'!$M$86),IF((AND($F$35=0,$F$36=0,$F$39=1))=TRUE,"Cette combinaison n'est pas possible",IF((AND($F$36=0,$F$39=1))=TRUE,(('Calculs grille'!$M$80*$G$37/(('Calculs grille'!$M$81*$G$37)+'Calculs grille'!$M$82)+'Calculs grille'!$M$83*$F$39)+'Calculs grille'!$M$88),0)))),0) -> 0
A42: Valeurs spécifiques à remplir selon le traitement - Élagage pour fins de qualité du pin blanc et du pin rouge
A43: BRAN | B43: Nombre de branches à couper par tige
A44: LONGELA | B44: Longueur d'élagage | F44: =IF($G$44=Menus!$B$426,Menus!$C$426,IF($G$44=Menus!$B$427,Menus!$C$427,"")) -> 
A45: DENSELA | B45: Densité des arbres à élaguer à l'hectare
A46: MP | B46: Martelage positif selon le nombre de tiges à l'hectare | F46: =IFERROR(VLOOKUP($G$46,Menus!$A$430:$B$432,2,FALSE),"") -> 
A47: Taux calculé à partir de l'équation et des variables reliées au traitement | G47: =IFERROR(((('Calculs grille'!$M$89*$G$43+'Calculs grille'!$M$90+'Calculs grille'!$M$91*$F$44)+(-'Calculs grille'!$M$92*LN($G$45)+'Calculs grille'!$M$93))*$G$45+$F$46+'Calculs grille'!$M$96),0) -> 0
A48: Valeurs spécifiques à remplir selon le traitement - Taille phytosanitaire
A49: BRAN | B49: Nombre de branches à couper par tige
A50: DENSELA | B50: Densité des arbres à élaguer à l'hectare
A51: DENSCO | B51: Densité des arbres à couper à l'hectare
A52: DENSTF | B52: Densité des arbres avec taille de formation à l'hectare
A53: Taux calculé à partir de l'équation et des variables reliées au traitement | G53: =IFERROR(((('Calculs grille'!$M$97*'Éducation de peuplement'!$G$49+'Calculs grille'!$M$98+(-'Calculs grille'!$M$99*LN('Éducation de peuplement'!$G$50)+'Calculs grille'!$M$100))*'Éducation de peuplement'!$G$50)+'Calculs grille'!$M$101*'Éducation de peuplement'!$G$51+'Calculs grille'!$M$102*'Éducation de peuplement'!$G$52+'Calculs grille'!$M$103),0) -> 0
A54: ="Majorations applicables à l'exécution - "&$G$12&" - Voir l'onglet « Étapes calcul majoration »" -> Majorations applicables à l'exécution - Inscrire une valeur - Voir l'onglet « Étapes calcul majoration »
A55: =IF($G$12='Majorations applicables'!$C$18,'Majorations applicables'!$K$18,IF($G$12='Majorations applicables'!$C$19,'Majorations applicables'!$K$19,IF($G$12='Majorations applicables'!$C$20,'Majorations applicables'!$K$20,IF($G$12='Majorations applicables'!$C$21,'Majorations applicables'!$K$21,IF($G$12='Majorations applicables'!$C$22,'Majorations applicables'!$K$22,IF($G$12='Majorations applicables'!$C$23,'Majorations applicables'!$K$23,"")))))) -> 
A56: Majoration pour la pente (PE2)
A57: Majoration pour la pente (PE2) - Dégagement mécanique
A58: Classe de pente numérique | C58: Taux calculé | D58: Écart | E58: Superficie nette (ha) excluant les andains | F58: Superficie brute (hectare) | G58: % andains
A59: Pente A | C59: =IFERROR($G$23*(1+VLOOKUP($A$59,'Majorations applicables'!$A$49:$B$53,2,FALSE)),0) -> 0 | D59: =IFERROR($C$59-$G$23,0) -> 0 | E59: =IFERROR($F$59*(1-$G$59),0) -> 0
A60: Pente B | C60: =IFERROR($G$23*(1+VLOOKUP($A$60,'Majorations applicables'!$A$49:$B$53,2,FALSE)),0) -> 0 | D60: =IFERROR($C$60-$G$23,0) -> 0 | E60: =IFERROR($F$60*(1-$G$60),0) -> 0
A61: Pente C | C61: =IFERROR($G$23*(1+VLOOKUP($A$61,'Majorations applicables'!$A$49:$B$53,2,FALSE)),0) -> 0 | D61: =IFERROR($C$61-$G$23,0) -> 0 | E61: =IFERROR($F$61*(1-$G$61),0) -> 0
A62: Pente D | C62: =IFERROR($G$23*(1+VLOOKUP($A$62,'Majorations applicables'!$A$49:$B$53,2,FALSE)),0) -> 0 | D62: =IFERROR($C$62-$G$23,0) -> 0 | E62: =IFERROR($F$62*(1-$G$62),0) -> 0
A63: Pente E et plus | C63: =IFERROR($G$23*(1+VLOOKUP($A$63,'Majorations applicables'!$A$49:$B$53,2,FALSE)),0) -> 0 | D63: =IFERROR($C$63-$G$23,0) -> 0 | E63: =IFERROR($F$63*(1-$G$63),0) -> 0
D64: Total | E64: =IFERROR(SUM($E$59:$E$63),0) -> 0 | F64: =IFERROR(SUM($F$59:$F$63),0) -> 0 | G64: =IFERROR((SUMPRODUCT($G$59:$G$63,$F$59:$F$63)/$F$64),0) -> 0
A65: Majoration pour la pente (PE2) - Nettoiement - scénario sylvicole de base
A66: Classe de pente numérique | C66: Taux calculé | D66: Écart | E66: Superficie nette (ha) excluant les andains | F66: Superficie brute (hectare) | G66: % andains
A67: Pente A | C67: =IFERROR($G$28*(1+VLOOKUP($A$67,'Majorations applicables'!$A$49:$B$53,2,FALSE)),0) -> 0 | D67: =IFERROR($C$67-$G$28,0) -> 0 | E67: =IFERROR($F$67*(1-$G$67),0) -> 0
A68: Pente B | C68: =IFERROR($G$28*(1+VLOOKUP($A$68,'Majorations applicables'!$A$49:$B$53,2,FALSE)),0) -> 0 | D68: =IFERROR($C$68-$G$28,0) -> 0 | E68: =IFERROR($F$68*(1-$G$68),0) -> 0
A69: Pente C | C69: =IFERROR($G$28*(1+VLOOKUP($A$69,'Majorations applicables'!$A$49:$B$53,2,FALSE)),0) -> 0 | D69: =IFERROR($C$69-$G$28,0) -> 0 | E69: =IFERROR($F$69*(1-$G$69),0) -> 0
A70: Pente D | C70: =IFERROR($G$28*(1+VLOOKUP($A$70,'Majorations applicables'!$A$49:$B$53,2,FALSE)),0) -> 0 | D70: =IFERROR($C$70-$G$28,0) -> 0 | E70: =IFERROR($F$70*(1-$G$70),0) -> 0
A71: Pente E et plus | C71: =IFERROR($G$28*(1+VLOOKUP($A$71,'Majorations applicables'!$A$49:$B$53,2,FALSE)),0) -> 0 | D71: =IFERROR($C$71-$G$28,0) -> 0 | E71: =IFERROR($F$71*(1-$G$71),0) -> 0
D72: Total | E72: =IFERROR(SUM($E$67:$E$71),0) -> 0 | F72: =IFERROR(SUM($F$67:$F$71),0) -> 0 | G72: =IFERROR((SUMPRODUCT($G$67:$G$71,$F$67:$F$71)/$F$72),0) -> 0
A73: Majoration pour la pente (PE2) - Nettoiement et EPC systématique- scénario sylvicole intensif ou d'élite
A74: Classe de pente numérique | C74: Taux calculé | D74: Écart | E74: Superficie nette (ha) excluant les andains | F74: Superficie brute (hectare) | G74: % andains
A75: Pente A | C75: =IFERROR($G$33*(1+VLOOKUP($A$75,'Majorations applicables'!$A$49:$B$53,2,FALSE)),0) -> 0 | D75: =IFERROR($C$75-$G$33,0) -> 0 | E75: =IFERROR($F$75*(1-$G$75),0) -> 0
A76: Pente B | C76: =IFERROR($G$33*(1+VLOOKUP($A$76,'Majorations applicables'!$A$49:$B$53,2,FALSE)),0) -> 0 | D76: =IFERROR($C$76-$G$33,0) -> 0 | E76: =IFERROR($F$76*(1-$G$76),0) -> 0
A77: Pente C | C77: =IFERROR($G$33*(1+VLOOKUP($A$77,'Majorations applicables'!$A$49:$B$53,2,FALSE)),0) -> 0 | D77: =IFERROR($C$77-$G$33,0) -> 0 | E77: =IFERROR($F$77*(1-$G$77),0) -> 0
A78: Pente D | C78: =IFERROR($G$33*(1+VLOOKUP($A$78,'Majorations applicables'!$A$49:$B$53,2,FALSE)),0) -> 0 | D78: =IFERROR($C$78-$G$33,0) -> 0 | E78: =IFERROR($F$78*(1-$G$78),0) -> 0
A79: Pente E et plus | C79: =IFERROR($G$33*(1+VLOOKUP($A$79,'Majorations applicables'!$A$49:$B$53,2,FALSE)),0) -> 0 | D79: =IFERROR($C$79-$G$33,0) -> 0 | E79: =IFERROR($F$79*(1-$G$79),0) -> 0
D80: Total | E80: =IFERROR(SUM($E$75:$E$79),0) -> 0 | F80: =IFERROR(SUM($F$75:$F$79),0) -> 0 | G80: =IFERROR((SUMPRODUCT($G$75:$G$79,$F$75:$F$79)/$F$80),0) -> 0
A81: Majoration pour la pente (PE2) - EPC par puit de lumière ET Taille de formation avec martelage
A82: Classe de pente numérique | C82: Taux calculé | D82: Écart | E82: Superficie nette (ha) excluant les andains | F82: Superficie brute (hectare) | G82: % andains
A83: Pente A | C83: =IFERROR(SUM($G$40:$G$41)*(1+VLOOKUP($A$83,'Majorations applicables'!$A$49:$B$53,2,FALSE)),0) -> 0 | D83: =IFERROR($C$83-($G$40+$G$41),0) -> 0 | E83: =IFERROR($F$83*(1-$G$83),0) -> 0
A84: Pente B | C84: =IFERROR(SUM($G$40:$G$41)*(1+VLOOKUP($A$84,'Majorations applicables'!$A$49:$B$53,2,FALSE)),0) -> 0 | D84: =IFERROR($C$84-($G$40+$G$41),0) -> 0 | E84: =IFERROR($F$84*(1-$G$84),0) -> 0
A85: Pente C | C85: =IFERROR(SUM($G$40:$G$41)*(1+VLOOKUP($A$85,'Majorations applicables'!$A$49:$B$53,2,FALSE)),0) -> 0 | D85: =IFERROR($C$85-($G$40+$G$41),0) -> 0 | E85: =IFERROR($F$85*(1-$G$85),0) -> 0
A86: Pente D | C86: =IFERROR(SUM($G$40:$G$41)*(1+VLOOKUP($A$86,'Majorations applicables'!$A$49:$B$53,2,FALSE)),0) -> 0 | D86: =IFERROR($C$86-($G$40+$G$41),0) -> 0 | E86: =IFERROR($F$86*(1-$G$86),0) -> 0
A87: Pente E et plus | C87: =IFERROR(SUM($G$40:$G$41)*(1+VLOOKUP($A$87,'Majorations applicables'!$A$49:$B$53,2,FALSE)),0) -> 0 | D87: =IFERROR($C$87-($G$40+$G$41),0) -> 0 | E87: =IFERROR($F$87*(1-$G$87),0) -> 0
D88: Total | E88: =IFERROR(SUM($E$83:$E$87),0) -> 0 | F88: =IFERROR(SUM($F$83:$F$87),0) -> 0 | G88: =IFERROR((SUMPRODUCT($G$83:$G$87,$F$83:$F$87)/$F$88),0) -> 0
A89: Majoration pour la pente (PE2) - Élagage à des fins de qualité pour le pin blanc et le pin rouge
A90: Classe de pente numérique | C90: Taux calculé | E90: Écart | G90: Superficie (hectare)
A91: Pente A | C91: =IFERROR($G$47*(1+VLOOKUP($A$91,'Majorations applicables'!$A$49:$B$53,2,FALSE)),0) -> 0 | E91: =IFERROR($C$91-$G$47,0) -> 0
A92: Pente B | C92: =IFERROR($G$47*(1+VLOOKUP($A$92,'Majorations applicables'!$A$49:$B$53,2,FALSE)),0) -> 0 | E92: =IFERROR($C$92-$G$47,0) -> 0
A93: Pente C | C93: =IFERROR($G$47*(1+VLOOKUP($A$93,'Majorations applicables'!$A$49:$B$53,2,FALSE)),0) -> 0 | E93: =IFERROR($C$93-$G$47,0) -> 0
A94: Pente D | C94: =IFERROR($G$47*(1+VLOOKUP($A$94,'Majorations applicables'!$A$49:$B$53,2,FALSE)),0) -> 0 | E94: =IFERROR($C$94-$G$47,0) -> 0
A95: Pente E et plus | C95: =IFERROR($G$47*(1+VLOOKUP($A$95,'Majorations applicables'!$A$49:$B$53,2,FALSE)),0) -> 0 | E95: =IFERROR($C$95-$G$47,0) -> 0
E96: Total | G96: =IFERROR(SUM($G$91:$G$95),0) -> 0
A97: Majoration pour la pente (PE2) - Taille phytosanitaire
A98: Classe de pente numérique | C98: Taux calculé | E98: Écart | G98: Superficie (hectare)
A99: Pente A | C99: =IFERROR($G$53*(1+VLOOKUP($A$99,'Majorations applicables'!$A$49:$B$53,2,FALSE)),0) -> 0 | E99: =IFERROR($C$99-$G$53,0) -> 0
A100: Pente B | C100: =IFERROR($G$53*(1+VLOOKUP($A$100,'Majorations applicables'!$A$49:$B$53,2,FALSE)),0) -> 0 | E100: =IFERROR($C$100-$G$53,0) -> 0
A101: Pente C | C101: =IFERROR($G$53*(1+VLOOKUP($A$101,'Majorations applicables'!$A$49:$B$53,2,FALSE)),0) -> 0 | E101: =IFERROR($C$101-$G$53,0) -> 0
A102: Pente D | C102: =IFERROR($G$53*(1+VLOOKUP($A$102,'Majorations applicables'!$A$49:$B$53,2,FALSE)),0) -> 0 | E102: =IFERROR($C$102-$G$53,0) -> 0
A103: Pente E et plus | C103: =IFERROR($G$53*(1+VLOOKUP($A$103,'Majorations applicables'!$A$49:$B$53,2,FALSE)),0) -> 0 | E103: =IFERROR($C$103-$G$53,0) -> 0
E104: Total | G104: =IFERROR(SUM($G$99:$G$103),0) -> 0
A105: Majoration pour l'hébergement, le transport collectif et la distance ou la durée du déplacement (HEP, TC et DTEXE)
A106: Majoration pour l'hébergement, le transport collectif et la distance ou la durée du déplacement (HEP, TC et DTEXE) - Tous
A107: Hébergement (HEP) ou transport collectif (TC) | F107: =IF($G$107="","",IF($G$107=Menus!$A$447,Menus!$B$447,IF($G$107=Menus!$A$448,Menus!$B$448,IF($G$107=Menus!$A$449,Menus!$B$449,IF($G$107=Menus!$A$450,Menus!$B$450,IF($G$107<=Menus!$B$448,ROUND($G$107,4),"Max "&TEXT(Menus!$B$448,"0,0%"))))))) -> 
A108: Distance ou durée du déplacement (DTEXE) | F108: =IFERROR(VLOOKUP($G$108,Menus!$A$458:$B$460,2,FALSE),"") -> 
A109: Majoration pour la certification (CEAF3 ou ISO3)
A110: Majoration pour la certification (CEAF3 ou ISO3) - Tous
A111: Certification (CEAF3 ou ISO3) | F111: =IFERROR(VLOOKUP($G$111,Menus!$A$468:$B$470,2,FALSE),"") -> 
A112: Vérification
A113: Vérification - Tous
A114: Délimitation des secteurs (taux par kilomètre délimité)
A115: Nombre de kilomètres délimités
A116: Inventaire après traitement (taux par placette inventoriée)
A117: Nombre de placettes inventoriées
A118: Critère 5 | B118: Coefficient de distribution total des tiges résineuses ou des arbres d'avenir d'essence désirée (éclaircis, nettoyés, dégagés ou non) | E118: =IFERROR(SUM($F$118:$F$120)*'Calculs grille'!$M$137,0) -> 0 | F118: =IF($G$118="Oui",1,IF($G$118="Non",0,"")) -> 
B119: Coefficient de distribution des arbres d'essence en raréfaction | F119: =IF($G$119="Oui",1,IF($G$119="Non",0,"")) -> 
B120: Coefficient de distribution des arbres feuillus d'essence commerciale | F120: =IF($G$120="Oui",1,IF($G$120="Non",0,"")) -> 
A121: Critère 6 | B121: Arbre étude | E121: =IFERROR(SUM($F$121:$F$122)*'Calculs grille'!$M$139,0) -> 0 | F121: =IF($G$121="Oui",1,IF($G$121="Non",0,"")) -> 
B122: Nombre de tiges résineuses (éclaircies, nettoyées, dégagées ou non) | F122: =IF($G$122="Oui",1,IF($G$122="Non",0,"")) -> 
A123: Nombre total de critères | G123: =SUM($F$118:$F$122) -> 0
A124: Vérification - Majoration pour l'hébergement et la distance ou la durée du déplacement (HPVTM et DTPVTM)
A125: Vérification - Majoration pour l'hébergement et la distance ou la durée du déplacement (HPVTM et DTPVTM) - Tous
A126: Hébergement (HPVTM) | F126: =IF($G$126="","",IF($G$126=Menus!$A$453,Menus!$B$453,IF($G$126=Menus!$A$454,Menus!$B$454,IF($G$126=Menus!$A$455,Menus!$B$455,IF($G$126<=Menus!$B$454,ROUND($G$126,4),"Max "&TEXT(Menus!$B$454,"0,0%")))))) -> 
A127: Distance ou durée du déplacement (DTPVTM) | F127: =IFERROR(VLOOKUP($G$127,Menus!$A$463:$B$465,2,FALSE),"") -> 
A128: Totaux
A129: Calculs - Dégagement mécanique
A130: =IFERROR(IF(EXACT($G$17,Menus!$A$510),"Taux d'exécution de base incluant la majoration DEGPM de "&TEXT($F$17*1000,"##,## %"),"Taux d'exécution de base"),"Taux d'exécution de base") -> Taux d'exécution de base | G130: =IFERROR($G$23,0) -> 0
A131: Taux PE2 | G131: =IFERROR((SUMPRODUCT($D$59:$D$63,$E$59:$E$63)/$E$64),0) -> 0
A132: Taux sous-total exécution | G132: =IFERROR(SUM($G$130:$G$131),0) -> 0
A133: Taux HEP ou TC | G133: =IFERROR(($G$132*$F$107),0) -> 0
A134: Taux DTEXE | G134: =IFERROR(($G$132*$F$108),0) -> 0
A135: Taux CEAF3 ou ISO3 | G135: =IFERROR((SUM($G$132:$G$134)*$F$111),0) -> 0
A136: Taux exécution total et majoration(s) admissible(s) | G136: =IFERROR((ROUND(SUM($G$132:$G$135),2)),0) -> 0
A137: Taux vérification | G137: =IFERROR(((($G$114*$G$115)+($G$116*$G$117)+SUM($F$118:$F$120)*'Calculs grille'!$M$137*$G$117+SUM($F$121:$F$122)*'Calculs grille'!M$139*$G$117)/$G$140),0) -> 0
A138: Taux HPVTM et/ou DTPVTM | G138: =IFERROR(($G$137*SUM($F$126:$F$127)),0) -> 0
A139: Taux exécution et vérification total (sur la base de la superficie nette) | G139: =IFERROR((ROUND(SUM($G$136:$G$138),2)),0) -> 0
A140: Superficie brute | G140: =IFERROR(ROUND($F$64,2),0) -> 0
A141: Superficie nette (excluant les andains) | G141: =IFERROR(ROUND($E$64,2),0) -> 0
A142: Total exécution | G142: =IFERROR(ROUND($G$136*$G$141,2),0) -> 0
A143: Total vérification | G143: =IFERROR(ROUND(SUM($G$137:$G$138)*$G$140,2),0) -> 0
A144: Grand total admissible | G144: =IFERROR(SUM($G$142:$G$143),0) -> 0
A145: Calculs - Nettoiement - scénario sylvicole de base
A146: Taux d'exécution de base | G146: =IFERROR($G$28,0) -> 0
A147: Taux PE2 | G147: =IFERROR((SUMPRODUCT($D$67:$D$71,$E$67:$E$71)/$E$72),0) -> 0
A148: Taux sous-total exécution | G148: =IFERROR(SUM($G$146:$G$147),0) -> 0
A149: Taux HEP ou TC | G149: =IFERROR(($G$148*$F$107),0) -> 0
A150: Taux DTEXE | G150: =IFERROR(($G$148*$F$108),0) -> 0
A151: Taux CEAF3 ou ISO3 | G151: =IFERROR((SUM($G$148:$G$150)*$F$111),0) -> 0
A152: Taux exécution total et majoration(s) admissible(s) | G152: =IFERROR((ROUND(SUM($G$148:$G$151),2)),0) -> 0
A153: Taux vérification | G153: =IFERROR(((($G$114*$G$115)+($G$116*$G$117)+SUM($F$118:$F$120)*'Calculs grille'!$M$137*$G$117+SUM($F$121:$F$122)*'Calculs grille'!M$139*$G$117)/$G$156),0) -> 0
A154: Taux HPVTM et/ou DTPVTM | G154: =IFERROR(($G$153*SUM($F$126:$F$127)),0) -> 0
A155: Taux exécution et vérification total (sur la base de la superficie nette) | G155: =IFERROR(ROUND(SUM($G$152:$G$154),2),0) -> 0
A156: Superficie brute | G156: =IFERROR(ROUND($F$72,2),0) -> 0
A157: Superficie nette (excluant les andains) | G157: =IFERROR(ROUND($E$72,2),0) -> 0
A158: Total exécution | G158: =IFERROR(ROUND($G$152*$G$157,2),0) -> 0
A159: Total vérification | G159: =IFERROR(ROUND(SUM($G$153:$G$154)*$G$156,2),0) -> 0
A160: Grand total admissible | G160: =IFERROR(SUM($G$158:$G$159),0) -> 0
A161: Calculs - Nettoiement et EPC systématique- scénario sylvicole intensif ou d'élite
A162: Taux d'exécution de base | G162: =IFERROR($G$33,0) -> 0
A163: Taux PE2 | G163: =IFERROR((SUMPRODUCT($D$75:$D$79,$E$75:$E$79)/$E$80),0) -> 0
A164: Taux sous-total exécution | G164: =IFERROR(SUM($G$162:$G$163),0) -> 0
A165: Taux HEP ou TC | G165: =IFERROR(($G$164*$F$107),0) -> 0
A166: Taux DTEXE | G166: =IFERROR(($G$164*$F$108),0) -> 0
A167: Taux CEAF3 ou ISO3 | G167: =IFERROR((SUM($G$164:$G$166)*$F$111),0) -> 0
A168: Taux exécution total et majoration(s) admissible(s) | G168: =IFERROR((ROUND(SUM($G$164:$G$167),2)),0) -> 0
A169: Taux vérification | G169: =IFERROR(((($G$114*$G$115)+($G$116*$G$117)+SUM($F$118:$F$120)*'Calculs grille'!$M$137*$G$117+SUM($F$121:$F$122)*'Calculs grille'!M$139*$G$117)/$G$172),0) -> 0
A170: Taux HPVTM et/ou DTPVTM | G170: =IFERROR(($G$169*SUM($F$126:$F$127)),0) -> 0
A171: Taux exécution et vérification total (sur la base de la superficie nette) | G171: =IFERROR((ROUND(SUM($G$168:$G$170),2)),0) -> 0
A172: Superficie brute | G172: =IFERROR(ROUND($F$80,2),0) -> 0
A173: Superficie nette (excluant les andains) | G173: =IFERROR(ROUND($E$80,2),0) -> 0
A174: Total exécution | G174: =IFERROR(ROUND($G$168*$G$173,2),0) -> 0
A175: Total vérification | G175: =IFERROR(ROUND(SUM($G$169:$G$170)*$G$172,2),0) -> 0
A176: Grand total admissible | G176: =IFERROR(SUM($G$174:$G$175),0) -> 0
A177: Calculs - EPC par puit de lumière ET Taille de formation avec martelage
A178: Taux d'exécution de base | G178: =IFERROR(SUM($G$40:$G$41),0) -> 0
A179: Taux PE2 | G179: =IFERROR((SUMPRODUCT($D$83:$D$87,$E$83:$E$87)/$E$88),0) -> 0
A180: Taux sous-total exécution | G180: =IFERROR(SUM($G$178:$G$179),0) -> 0
A181: Taux HEP ou TC | G181: =IFERROR(($G$180*$F$107),0) -> 0
A182: Taux DTEXE | G182: =IFERROR(($G$180*$F$108),0) -> 0
A183: Taux CEAF3 ou ISO3 | G183: =IFERROR((SUM($G$180:$G$182)*$F$111),0) -> 0
A184: Taux exécution total et majoration(s) admissible(s) | G184: =IFERROR((ROUND(SUM($G$180:$G$183),2)),0) -> 0
A185: Taux vérification | G185: =IFERROR(((($G$114*$G$115)+($G$116*$G$117)+SUM($F$118:$F$120)*'Calculs grille'!$M$137*$G$117+SUM($F$121:$F$122)*'Calculs grille'!M$139*$G$117)/$G$188),0) -> 0
A186: Taux HPVTM et/ou DTPVTM | G186: =IFERROR(($G$185*SUM($F$126:$F$127)),0) -> 0
A187: Taux exécution et vérification total (sur la base de la superficie nette) | G187: =IFERROR((ROUND(SUM($G$184:$G$186),2)),0) -> 0
A188: Superficie brute | G188: =IFERROR(ROUND($F$88,2),0) -> 0
A189: Superficie nette (excluant les andains) | G189: =IFERROR(ROUND($E$88,2),0) -> 0
A190: Total exécution | G190: =IFERROR(ROUND($G$184*$G$189,2),0) -> 0
A191: Total vérification | G191: =IFERROR(ROUND(SUM($G$185:$G$186)*$G$188,2),0) -> 0
A192: Grand total admissible | G192: =IFERROR(SUM($G$190:$G$191),0) -> 0
A193: Calculs - Élagage à des fins de qualité pour le pin blanc et le pin rouge
A194: Taux d'exécution de base | G194: =IFERROR($G$47,0) -> 0
A195: Taux PE2 | G195: =IFERROR((SUMPRODUCT($E$91:$E$95,$G$91:$G$95)/$G$96),0) -> 0
A196: Taux sous-total exécution | G196: =IFERROR(SUM($G$194:$G$195),0) -> 0
A197: Taux HEP ou TC | G197: =IFERROR(($G$196*$F$107),0) -> 0
A198: Taux DTEXE | G198: =IFERROR(($G$196*$F$108),0) -> 0
A199: Taux CEAF3 ou ISO3 | G199: =IFERROR((SUM($G$196:$G$198)*F$111),0) -> 0
A200: Taux exécution total et majoration(s) admissible(s) | G200: =IFERROR((ROUND(SUM($G$196:$G$199),2)),0) -> 0
A201: Taux vérification | G201: =IFERROR(((($G$114*$G$115)+($G$116*$G$117)+SUM($F$118:$F$120)*'Calculs grille'!$M$137*$G$117+SUM($F$121:$F$122)*'Calculs grille'!M$139*$G$117)/$G$204),0) -> 0
A202: Taux HPVTM et/ou DTPVTM | G202: =IFERROR(($G$201*SUM($F$126:$F$127)),0) -> 0
A203: Taux exécution et vérification total | G203: =IFERROR((ROUND(SUM($G$200:$G$202),2)),0) -> 0
... 42 more rows

Sheet Éclaircie commerciale EAF (hidden)
A2: Annexe au calcul des taux des traitements non commerciaux 2020-2021 Éclaircie commerciale EAF (réservé aux entreprises d'aménagement forestier) Forêt publique
A3: *** Veuillez saisir les informations dans les cellules blanches seulement *** | G3: Version 3 : 2020-04-02
A4: Identification
A5: Unité d'aménagement (UA)
A6: Secteur d'intervention
A7: Unité de compilation
A8: Numéro de la prescription
A9: Traitement (code DICA)
A10: Traitement (code RATF) | E10: =IFERROR(VLOOKUP($G$9,Menus!$A$546:$D$553,3,FALSE),Menus!$C$553) -> ECEAF_Codes_RATF
A11: Traitement d'éclaircie commerciale à taux variable
A12: Traitement | G12: Inscrire une valeur
A13: Taux de base | G13: =IFERROR(VLOOKUP($G$12,Menus!$A$516:$C$517,2,FALSE),"") -> 0
A14: Unité de mesure | G14: =IFERROR(VLOOKUP($G$12,Menus!$A$516:$C$517,3,FALSE),"") -> -
A15: Taux d'exécution à déterminer selon la formule suivante
A16: =IF($G$12=Formules!$B$13,Formules!$D$13,"") -> 
A17: ="Valeurs spécifiques à remplir selon le traitement - "&G12&" - Voir l'onglet « Étapes calcul majoration »" -> Valeurs spécifiques à remplir selon le traitement - Inscrire une valeur - Voir l'onglet « Étapes calcul majoration »
A18: Valeurs spécifiques à remplir selon le traitement - Éclaircie commerciale EAF
A19: P | B19: Volume net à prélever (m³/hectare)
A20: VREC | B20: Volume moyen des tiges à récolter (m³/tige)
A21: Taux par mètre cube calculé à partir de l'équation et des variables reliées au traitement | G21: =IFERROR(IF(ISBLANK($G$20),0,(('Calculs grille'!$M$122*$G$20^'Calculs grille'!$M$123)+'Calculs grille'!$M$124)+'Calculs grille'!$M$126/$G$19),0) -> 0
A22: Taux par hectare calculé à partir de l'équation et des variables reliées au traitement | G22: =IFERROR(($G$19*$G$21),0) -> 0
A23: ="Majorations applicables à l'exécution - "&$G$12&" - Voir l'onglet « Étapes calcul majoration »" -> Majorations applicables à l'exécution - Inscrire une valeur - Voir l'onglet « Étapes calcul majoration »
A24: =IF($G$12='Majorations applicables'!$B$30,'Majorations applicables'!$K$30,"") -> 
A25: Majoration pour la pente (PE2)
A26: Majoration pour la pente (PE2) - Éclaircie commerciale EAF
A27: Classe de pente numérique | C27: Taux calculé | E27: Écart | G27: Superficie (hectare)
A28: Pente A | C28: =IFERROR($G$22*(1+VLOOKUP($A$28,'Majorations applicables'!$A$49:$B$53,2,FALSE)),0) -> 0 | E28: =IFERROR($C$28-$G$22,0) -> 0
A29: Pente B | C29: =IFERROR($G$22*(1+VLOOKUP($A$29,'Majorations applicables'!$A$49:$B$53,2,FALSE)),0) -> 0 | E29: =IFERROR($C$29-$G$22,0) -> 0
A30: Pente C | C30: =IFERROR($G$22*(1+VLOOKUP($A$30,'Majorations applicables'!$A$49:$B$53,2,FALSE)),0) -> 0 | E30: =IFERROR($C$30-$G$22,0) -> 0
A31: Pente D | C31: =IFERROR($G$22*(1+VLOOKUP($A$31,'Majorations applicables'!$A$49:$B$53,2,FALSE)),0) -> 0 | E31: =IFERROR($C$31-$G$22,0) -> 0
A32: Pente E et plus | C32: =IFERROR($G$22*(1+VLOOKUP($A$32,'Majorations applicables'!$A$49:$B$53,2,FALSE)),0) -> 0 | E32: =IFERROR($C$32-$G$22,0) -> 0
E33: Total | G33: =IFERROR(SUM($G$28:$G$32),0) -> 0
A34: Majoration pour les opérations manuelles (MAN)
A35: Type d'opérations | F35: =IFERROR(VLOOKUP($G$35,Menus!$A$524:$B$525,2,FALSE),"") -> 
A36: Majoration pour l'hébergement (HECEAF)
A37: Hébergement (HECEAF) | F37: =IFERROR(VLOOKUP($G$37,Menus!$A$520:$B$521,2,FALSE),"") -> 
A38: Totaux
A39: Calculs - Éclaircie commerciale EAF
A40: Taux d'exécution par mètre cube | G40: =IFERROR($G$21,0) -> 0
A41: Taux d'exécution par hectare | G41: =IFERROR($G$22,0) -> 0
A42: Taux PE2 | G42: =IFERROR((SUMPRODUCT($E$28:$E$32,$G$28:$G$32)/$G$33),0) -> 0
A43: Taux sous-total exécution | G43: =IFERROR(ROUND(SUM($G$41:$G$42),2),0) -> 0
A44: Taux MAN | G44: =IFERROR(($G$43*$F$35),0) -> 0
A45: Taux HECEAF | G45: =IFERROR((SUM($G$43:$G$44)*$F$37),0) -> 0
A46: Taux exécution total et majoration(s) admissible(s) | G46: =IFERROR(ROUND(SUM($G$43:$G$45),2),0) -> 0
A47: Superficie | G47: =IFERROR(ROUND($G$33,2),0) -> 0
A48: Grand total admissible | G48: =IFERROR(ROUND($G$46*$G$47,2),0) -> 0
A50: Remarques
A52: J'atteste que les renseignements fournis dans ce document afin de calculer le taux du traitement sont complets et conformes à la vérité, au meilleur de mes connaissances.
A56: Nom et prénom de l'ingénieur forestier | G56: Numéro de permis
G57: =TODAY() -> 2020-04-02
A59: Signature de l'ingénieur forestier | G59: Date (AAAA-MM-JJ)
A62: Section réservée au suivi du contrat
B64: Numéro de la prescription : | C64: =IF($G$8<>"",$G$8,"") -> 
B66: Numéro du contrat :
B67: Numéro du projet :
B68: U.G. :
B69: MRC :
B70: Code de traitement DICA : | C70: =IF($G$9<>"",$G$9,"") -> 
B71: Code de traitement RATF : | C71: =IF($G$10<>"",$G$10,"") -> 
B72: Type d'attribution :
B73: Taux AO :
B74: Taux Grille : | C74: =IFERROR(VLOOKUP($G$12,RXF!$A$1:$G$34,3,FALSE),0) -> 0
B75: Ratio AO/Grille : | C75: =IFERROR(IF(AND($C$73<>"",$C$74>0),ROUND($C$73/$C$74,4),"S/O"),"") -> S/O
B76: Grand total AO : | C76: =IFERROR(IF(OR($C$73="",$C$74=0),"S/O",ROUND(VLOOKUP($G$12,RXF!$A$1:$G$30,5,FALSE)*$C$75,2)),"") -> S/O
B77: Nom de l'entrepreneur :
B78: Numéro de fournisseur :
B79: Date de début :
B80: Date de fin :
B81: Commentaires :

Sheet Martelage (hidden)
A2: Annexe au calcul des taux des traitements non commerciaux 2020-2021 Martelage Forêt publique
A3: *** Veuillez saisir les informations dans les cellules blanches seulement *** | G3: Version 3 : 2020-04-02
A4: Identification
A5: Unité d'aménagement (UA)
A6: Secteur d'intervention
A7: Unité de compilation
A8: Numéro de la prescription
A9: Traitement de martelage à taux fixe ou variable
A10: Traitement | G10: Inscrire une valeur
A11: Taux de base | G11: =IF(ISNA(VLOOKUP($G$10,Menus!$A$558:$C$561,2,FALSE)),"",VLOOKUP($G$10,Menus!$A$558:$C$561,2,FALSE)) -> 0
A12: Unité de mesure | G12: =IF(ISNA(VLOOKUP($G$10,Menus!$A$558:$C$561,3,FALSE)),"",VLOOKUP($G$10,Menus!$A$558:$C$561,3,FALSE)) -> -
A13: Taux d'exécution à déterminer selon la formule suivante
A14: =IF($G$10=Formules!$B$14,Formules!$D$14,"") -> 
A15: Superficie
A16: Superficie du traitement (hectares)
A17: ="Valeurs spécifiques à remplir selon le traitement - "&G10&" - Voir l'onglet « Étapes calcul majoration »" -> Valeurs spécifiques à remplir selon le traitement - Inscrire une valeur - Voir l'onglet « Étapes calcul majoration »
A18: Valeurs spécifiques à remplir selon le traitement - Martelage
A19: PF | B19: Proportion de feuillus (surface terrière des feuillus commerciaux par rapport à la surface terrière totale du peuplement)
A20: NbMSCROP | B20: Nombre de priorité de récolte combinant MSCR et OP Valeur de 0 à 8 : MO-MP-SO-SP-CO-CP-RO-RP Pour les directives de martelage faisant référence à une classification MSCR- SciagePâte et MSCR-ABCD, la correspondance est la suivante : MSCR-SciagePâte - MO-SO-CO-RO : MSciage-SSciage-CSciage-RSciage - MP-SP-CP-RP : MPâte-SPâte-CPâte-RPâte MSCR-ABCD - MO-SO-CO-RO : MABC-SABC-CABC-RABC - MP-SP-CP-RP : MD-SD-CD-RD
A21: TC | B21: Type de coupe | E21: Valeur | F21: =IF(ISNA(VLOOKUP($G$21,Menus!$A$564:$B$568,2,FALSE)),"",VLOOKUP($G$21,Menus!$A$564:$B$568,2,FALSE)) -> 
A22: Taux par hectare calculé à partir de l'équation et des variables reliées à l'activité | G22: =IFERROR((('Calculs grille'!$M$165-('Calculs grille'!$M$166*$G$19)+('Calculs grille'!$M$167*$G$20))*$F$21),0) -> 0
A23: ="Majorations applicables à l'exécution - "&$G$10 -> Majorations applicables à l'exécution - Inscrire une valeur
A24: =IF($G$10='Majorations applicables'!$B$31,'Majorations applicables'!$K$31,IF($G$10='Majorations applicables'!$B$32,'Majorations applicables'!$K$32,IF($G$10='Majorations applicables'!$B$33,'Majorations applicables'!$K$33,""))) -> 
A25: Majoration pour l'hébergement et la distance ou la durée du déplacement (HPVTM et DTPVTM)
A26: Hébergement (HPVTM) | F26: =IF($G$26="","",IF($G$26=Menus!$A$571,Menus!$B$571,IF($G$26=Menus!$A$572,Menus!$B$572,IF($G$26=Menus!$A$573,Menus!$B$573,IF($G$26<=Menus!$B$572,ROUND($G$26,4),"Max "&TEXT(Menus!$B$572,"0,0%")))))) -> 
A27: Distance ou durée du déplacement (DTPVTM) | F27: =IFERROR(VLOOKUP($G$27,Menus!$A$576:$B$578,2,FALSE),"") -> 
A28: Vérification
A29: Vérification - Tous
A30: Délimitation des secteurs (taux par kilomètre délimité)
A31: Nombre de kilomètres délimités
A32: Inventaire après traitement (taux par placette inventoriée)
A33: Nombre de placettes inventoriées
A34: Vérification - Majoration pour l'hébergement et la distance ou la durée du déplacement (HPVTM et DTPVTM)
A35: Hébergement (HPVTM) | F35: =IF($G$35="","",IF($G$35=Menus!$A$571,Menus!$B$571,IF($G$35=Menus!$A$572,Menus!$B$572,IF($G$35=Menus!$A$573,Menus!$B$573,IF($G$35<=Menus!$B$572,ROUND($G$35,4),"Max "&TEXT(Menus!$B$572,"0,0%")))))) -> 
A36: Distance ou durée du déplacement (DTPVTM) | F36: =IFERROR(VLOOKUP($G$36,Menus!$A$576:$B$578,2,FALSE),"") -> 
A37: Totaux
A38: Calculs - Martelage
A39: Taux d'exécution de base | G39: =IFERROR($G$22,0) -> 0
A40: Taux HPVTM | G40: =IFERROR(($G$39*$F$26),0) -> 0
A41: Taux DTPVTM | G41: =IFERROR(($G$39*$F$27),0) -> 0
A42: Taux exécution total et majoration(s) admissible(s) | G42: =IFERROR((ROUND(SUM($G$39:$G$41),2)),0) -> 0
A43: Taux vérification | G43: =IFERROR(((($G$30*$G$31)+($G$32*$G$33))/$G$16),0) -> 0
A44: Taux HPVTM et/ou DTPVTM | G44: =IFERROR(($G$43*SUM($F$35:$F$36)),0) -> 0
A45: Taux exécution et vérification total | G45: =IFERROR((ROUND(SUM($G$42:$G$44),2)),0) -> 0
A46: Superficie | G46: =IFERROR($G$16,0) -> 0
A47: Total exécution | G47: =IFERROR(ROUND($G$42*$G$46,2),0) -> 0
A48: Total vérification | G48: =IFERROR(ROUND(SUM($G$43:$G$44)*$G$46,2),0) -> 0
A49: Grand total admissible | G49: =IFERROR(SUM($G$47:$G$48),0) -> 0
A50: Calculs - Martelage positif et négatif - EC (résineux ou mixte résineux)
A51: Taux d'exécution de base | G51: =IFERROR($G$11,0) -> 0
A52: Taux HPVTM | G52: =IFERROR(($G$51*$F$26),0) -> 0
A53: Taux DTPVTM | G53: =IFERROR(($G$51*$F$27),0) -> 0
A54: Taux exécution total et majoration(s) admissible(s) | G54: =IFERROR((ROUND(SUM($G$51:$G$53),2)),0) -> 0
A55: Taux vérification | G55: =IFERROR(((($G$30*$G$31)+($G$32*$G$33))/$G$16),0) -> 0
A56: Taux HPVTM et/ou DTPVTM | G56: =IFERROR(($G$55*SUM($F$35:$F$36)),0) -> 0
A57: Taux exécution et vérification total | G57: =IFERROR((ROUND(SUM($G$54:$G$56),2)),0) -> 0
A58: Superficie | G58: =IFERROR($G$16,0) -> 0
A59: Total exécution | G59: =IFERROR(ROUND($G$54*$G$58,2),0) -> 0
A60: Total vérification | G60: =IFERROR(ROUND(SUM($G$55:$G$56)*$G$58,2),0) -> 0
A61: Grand total admissible | G61: =IFERROR(SUM($G$59:$G$60),0) -> 0
A63: Remarques
A65: J'atteste que les renseignements fournis dans ce document afin de calculer le taux du traitement sont complets et conformes à la vérité, au meilleur de mes connaissances.
A69: Nom et prénom de l'ingénieur forestier | G69: Numéro de permis
G70: =TODAY() -> 2020-04-02
A72: Signature de l'ingénieur forestier | G72: Date (AAAA-MM-JJ)
A75: Section réservée au suivi du contrat
B77: Numéro de la prescription : | C77: =IF($G$8<>"",$G$8,"") -> 
B79: Numéro du contrat :
B80: Numéro du projet :
B81: U.G. :
B82: MRC :
B83: Code de traitement DICA :
B84: Code de traitement RATF :
B85: Type d'attribution :
B86: Taux AO : | D86: Inscrire une valeur
B87: =IFERROR(IF($D$86=Menus!$A$669,"Taux Grille (sans vérif.) :","Taux Grille (avec vérif.) :"),"Taux Grille (avec vérif.) :") -> Taux Grille (avec vérif.) : | C87: =IFERROR(IF(OR($D$86="",$D$86=Menus!$A$670),VLOOKUP($G$10,RXF!$A$1:$G$34,3,FALSE),IF($D$86=Menus!$A$668,VLOOKUP($G$10,RXF!$A$1:$G$34,3,FALSE),IF($D$86=Menus!$A$669,VLOOKUP($G$10,RXF!$A$1:$G$34,4,FALSE)))),0) -> 0
B88: Ratio AO/Grille : | C88: =IFERROR(IF(AND($C$86<>"",$C$87>0),ROUND($C$86/$C$87,4),"S/O"),"") -> S/O
B89: Grand total AO : | C89: =IFERROR(IF(OR($C$86="",$C$87=0),"S/O",IF(AND($C$86>0,OR($D$86=Menus!$A$668,$D$86=Menus!$A$670)),ROUND(VLOOKUP($G$10,RXF!$A$1:$G$34,5,FALSE)*$C$88,2),IF(AND($C$86>0,$D$86=Menus!$A$669),ROUND(VLOOKUP($G$10,RXF!$A$1:$G$34,7,FALSE)*$C$88,2)))),"") -> S/O
B90: Nom de l'entrepreneur :
B91: Numéro de fournisseur :
B92: Date de début :
B93: Date de fin :
B94: Commentaires :

Sheet Travaux de planif et techniques (hidden)
A2: Annexe au calcul des taux des traitements non commerciaux 2020-2021 Travaux de planification et techniques Forêt publique
A3: *** Veuillez saisir les informations dans les cellules blanches seulement *** | G3: Version 3 : 2020-04-02
A4: Identification | G4: Travaux de planification
A5: Unité d'aménagement (UA)
A6: Secteur d'intervention
A7: Unité de compilation
A8: Numéro de la prescription
A9: Recherche de secteur d'intervention potentiel (terrain)
A10: Traitement | C10: Valeur | D10: Unité | F10: Total | G10: Quantité
A11: Préparation de terrain | C11: ='Calculs grille'!$M$140 -> 5 | D11: Nombre d'hectares recherchés | F11: =IFERROR(($C$11*$G$11),0) -> 0
A12: Régénération artificielle | C12: ='Calculs grille'!$M$140 -> 5 | D12: Nombre d'hectares recherchés | F12: =IFERROR(($C$12*$G$12),0) -> 0
A13: Éducation de peuplement | C13: ='Calculs grille'!$M$141 -> 10 | D13: Nombre d'hectares recherchés | F13: =IFERROR(($C$13*$G$13),0) -> 0
A14: Secteur d'intervention proposé
A15: Traitement | C15: Valeur | D15: Unité | F15: Total | G15: Quantité
A16: Préparation de terrain | C16: ='Calculs grille'!$M$142 -> 13 | D16: Nombres d'hectares trouvés | F16: =IFERROR(($C$16*$G$16),0) -> 0
A17: Régénération artificielle | C17: ='Calculs grille'!$M$142 -> 13 | D17: Nombres d'hectares trouvés | F17: =IFERROR(($C$17*$G$17),0) -> 0
A18: Éducation de peuplement | C18: ='Calculs grille'!$M$143 -> 18 | D18: Nombres d'hectares trouvés | F18: =IFERROR(($C$18*$G$18),0) -> 0
A19: Confection du plan de sondage
A20: Traitement | C20: Valeur | D20: Unité | F20: Total | G20: Quantité
A21: Plan de sondage | C21: ='Calculs grille'!$M$144 -> 2.14 | D21: Nombre d'hectares inventoriés | F21: =IFERROR(($C$21*$G$21),0) -> 0
A22: Inventaire avant traitement
A23: Traitement | C23: Valeur | D23: Unité | F23: Total | G23: Quantité
A24: Préparation de terrain (sauf drainage sylvicole) | C24: ='Calculs grille'!$M$145 -> 35 | D24: Nombre de PE inventoriées | F24: =IFERROR((SUM($E$28:$E$32)+$C$24)*$G$24,0) -> 0
A25: Critères supplémentaires avant traitement - Préparation de terrain
A26: Critères supplémentaires pour l'inventaire avant traitement pour « Préparation de terrain (sauf drainage sylvicole) » La valeur de la placette est calculée selon la formule suivante :
B27: =Formules!$D$16 -> Taux ($/PE) = 35 + (Nombre de critère #7 * 0,48) + (Nombre de critère #8 * 2,39)
B28: Critère 7 | C28: Localisation des problématiques relatives aux chemins pour accéder au territoire | E28: =IFERROR(SUM($F$28:$F$31)*'Calculs grille'!$M$146,0) -> 0 | F28: =IF($G$28="Oui",1,IF($G$28="Non",0,"")) -> 
C29: Facteur limitatif à la préparation de terrain | F29: =IF($G$29="Oui",1,IF($G$29="Non",0,"")) -> 
C30: Détermination du pourcentage de la pente sur le terrain | F30: =IF($G$30="Oui",1,IF($G$30="Non",0,"")) -> 
C31: Détermination de la rugosité ou de la quantité de débris ligneux au sol | F31: =IF($G$31="Oui",1,IF($G$31="Non",0,"")) -> 
B32: Critère 8 | C32: Hauteur de la régénération pour les arbres d'avenir d'essence désirée | E32: =IFERROR(SUM($F$32)*'Calculs grille'!$M$147,0) -> 0 | F32: =IF($G$32="Oui",1,IF($G$32="Non",0,"")) -> 
A33: Préparation de terrain (drainage sylvicole - plan et devis) | C33: ='Calculs grille'!$M$150 -> 34 | D33: Nombre de km ou Mm³ du devis | F33: =IFERROR(($C$33*$G$33),0) -> 0
A34: Régénération artificielle | C34: ='Calculs grille'!$M$148 -> 26 | D34: Nombre de PE inventoriées | F34: =IFERROR((SUM($E$38)+$C$34)*$G$34,0) -> 0
A35: Critères supplémentaires avant traitement - Régénération artificielle
A36: Critères supplémentaires pour l'inventaire avant traitement pour « Régénération artificielle » La valeur de la placette est calculée selon la formule suivante :
B37: =Formules!$D$17 -> Taux ($/PE) = 26 + (Nombre de critère #9 * 0,48)
B38: Critère 9 | C38: Localisation des problématiques relatives aux chemins pour accéder au territoire | E38: =IFERROR(SUM($F$38:$F$40)*'Calculs grille'!$M$149,0) -> 0 | F38: =IF($G$38="Oui",1,IF($G$38="Non",0,"")) -> 
C39: Détermination du pourcentage de la pente sur le terrain | F39: =IF($G$39="Oui",1,IF($G$39="Non",0,"")) -> 
C40: Détermination de la rugosité ou de la quantité de débris ligneux au sol | F40: =IF($G$40="Oui",1,IF($G$40="Non",0,"")) -> 
A41: Éducation de peuplement (dégagement, nettoiement et éclaircie précommerciale) | C41: ='Calculs grille'!$M$151 -> 99 | D41: Nombre de PE inventoriées | F41: =IFERROR((SUM($E$45:E59)+C$41)*$G$41,0) -> 0
A42: Critères supplémentaires avant traitement - Éducation de peuplement
A43: Critères supplémentaires pour l'inventaire avant traitement pour « Éducation de peuplement » (dégagement, nettoiement et éclaircie précommerciale) La valeur de la placette est calculée selon la formule suivante :
B44: =Formules!$D$15 -> Taux ($/PE) = 99 + (Nombre de critère #10 * 0,72) + (Nombre de critère #11 * 3,58) + (Nombre de critère #12 * 7,17)
B45: Critère 10 | C45: Localisation des problématiques relatives aux chemins pour accéder au territoire | E45: =IFERROR(SUM($F$45:$F$47)*'Calculs grille'!$M$152,0) -> 0 | F45: =IF($G$45="Oui",1,IF($G$45="Non",0,"")) -> 
C46: Nombre d'arbres d'essence désirée attaqués par un insecte ou une maladie | F46: =IF($G$46="Oui",1,IF($G$46="Non",0,"")) -> 
C47: Détermination du pourcentage de la pente sur le terrain | F47: =IF($G$47="Oui",1,IF($G$47="Non",0,"")) -> 
B48: Critère 11 | C48: Coefficient de distribution des arbres, arbustes ou arbrisseaux fruitiers, dégagés ou non | E48: =IFERROR(SUM($F$48:$F$56)*'Calculs grille'!$M$153,0) -> 0 | F48: =IF($G$48="Oui",1,IF($G$48="Non",0,"")) -> 
C49: Coefficient de distribution par essence des arbres éclaircis, non éclaircis, libres de croître et non libres de croître | F49: =IF($G$49="Oui",1,IF($G$49="Non",0,"")) -> 
C50: Hauteur de l'arbre d'essence résineuse à maîtriser | F50: =IF($G$50="Oui",1,IF($G$50="Non",0,"")) -> 
C51: Hauteur moyenne des arbres, arbustes ou arbrisseaux d'espèces non commerciales | F51: =IF($G$51="Oui",1,IF($G$51="Non",0,"")) -> 
C52: Hauteur des arbres, arbustes ou arbrisseaux fruitiers | F52: =IF($G$52="Oui",1,IF($G$52="Non",0,"")) -> 
C53: Nombre de faces des arbres d'avenirs d'essence désirée concurrencés | F53: =IF($G$53="Oui",1,IF($G$53="Non",0,"")) -> 
C54: Coefficient de distribution des arbres, arbustes ou arbrisseaux d'espèces commerciales ou non commerciales | F54: =IF($G$54="Oui",1,IF($G$54="Non",0,"")) -> 
C55: Détermination de la rugosité ou de la quantité de débris ligneux au sol | F55: =IF($G$55="Oui",1,IF($G$55="Non",0,"")) -> 
C56: Type écologique sur le terrain (inclure le critère pour le GEI) | F56: =IF($G$56="Oui",1,IF($G$56="Non",0,"")) -> 
B57: Critère 12 | C57: Pourcentage de recouvrement des framboisiers, des fougères et des épilobes (FFÉ) | E57: =IFERROR(SUM($F$57:$F$59)*'Calculs grille'!$M$154,0) -> 0 | F57: =IF($G$57="Oui",1,IF($G$57="Non",0,"")) -> 
C58: Identifier et mesurer le recouvrement du groupe d’espèces indicatrices (GEI) | F58: =IF($G$58="Oui",1,IF($G$58="Non",0,"")) -> 
C59: Pourcentage de recouvrement par espèces végétales | F59: =IF($G$59="Oui",1,IF($G$59="Non",0,"")) -> 
A60: Éducation de peuplement (élagage et taille de formation) | C60: ='Calculs grille'!$M$155 -> 49 | D60: Nombre de PE inventoriées | F60: =IFERROR(($C$60*$G$60),0) -> 0
A61: Délimitation des secteurs
A62: Traitement | C62: Valeur | D62: Unité | F62: Total | G62: Oui
A63: Traitement de préparation de site lorsque réalisé sans exécution (tierce partie) | C63: ='Calculs grille'!$M$157 -> 32 | D63: Nombre de km délimités | F63: =IFERROR(($C$63*$G$63),0) -> 0
A64: Éducation de peuplement | C64: ='Calculs grille'!$M$161 -> 156 | D64: Nombre de km délimités | F64: =IFERROR(($C$64*$G$64),0) -> 0
A65: Majoration pour l'hébergement et la distance ou la durée du déplacement (HPVTM et DTPVTM)
A66: Hébergement (HPVTM) | F66: =IF($G$66="","",IF($G$66=Menus!$A$595,Menus!$B$595,IF($G$66=Menus!$A$596,Menus!$B$596,IF($G$66=Menus!$A$597,Menus!$B$597,IF($G$66<=Menus!$B$596,ROUND($G$66,4),"Max "&TEXT(Menus!B596,"0,0%")))))) -> 
A67: Distance ou durée du déplacement (DTPVTM) | F67: =IFERROR(VLOOKUP($G$67,Menus!$A$600:$B$602,2,FALSE),"") -> 
A68: Totaux
A69: Montant de base admissible | G69: =IFERROR(SUM($F$11:$F$13,$F$16:$F$18,$F$21,$F$24:$F$24,$F$33:$F$34,$F$41,$F$60,$F$63:$F$64),0) -> 0
A70: Taux HPVTM | G70: =IFERROR($G$69*SUM($F$66),0) -> 0
A71: Taux DTPVTM (non applicable pour le plan de sondage) | G71: =IFERROR((($G$69-$F$21)*$F$67),0) -> 0
A72: Grand total admissible | G72: =IFERROR(ROUND(SUM($G$69:$G$71),2),0) -> 0
A74: Remarques
A76: J'atteste que les renseignements fournis dans ce document afin de calculer le taux du traitement sont complets et conformes à la vérité, au meilleur de mes connaissances.
A80: Nom et prénom de l'ingénieur forestier | G80: Numéro de permis
G81: =TODAY() -> 2020-04-02
A83: Signature de l'ingénieur forestier | G83: Date (AAAA-MM-JJ)
B86: Section réservée au suivi du contrat
B88: Numéro de la prescription : | C88: =IF($G$8<>"",$G$8,"") -> 
B90: Numéro du contrat :
B91: Numéro du projet :
B92: U.G. :
B93: MRC :
B94: Code de traitement DICA :
B95: Code de traitement RATF :
B96: Type d'attribution :
B97: Taux global AO :
B98: Taux global Grille : | C98: =IFERROR(VLOOKUP($G$4,RXF!$A$1:$G$34,3,FALSE),0) -> 0
B99: Ratio AO/Grille : | C99: =IFERROR(IF(AND($C$97<>"",$C$98>0),ROUND($C$97/$C$98,4),"S/O"),"") -> S/O
B100: Grand total AO : | C100: =IFERROR(IF(OR($C$97="",$C$98=0),"S/O",ROUND(VLOOKUP($G$4,RXF!$A$1:$G$34,5,FALSE)*$C$99,2)),"") -> S/O
B101: Nom de l'entrepreneur :
B102: Numéro de fournisseur :
B103: Date de début :
B104: Date de fin :
B105: Commentaires :

Sheet Dispersion 2020-2021 (hidden)
A2: Annexe au calcul des taux des traitements non commerciaux 2020-2021 Indice relatif de dispersion 1 Forêt publique
F3: Version 3 : 2020-04-02
A4: Indice relatif de dispersion et majorations applicables par catégorie de traitement et par unité d'aménagement
A5: Région | B5: Unité d'aménagement 2018 (UA) | C5: Indice relatif de dispersion DRAP | D5: Indice relatif de dispersion DMOD | E5: Majoration pour les traitements à productivité élevée 2 DRAP | F5: Majoration pour les traitements à productivité modérée 3 DMOD
A6: 01 | B6: 01171 | C6: 0 | D6: 4.25609 | E6: 0.2106 | F6: 0.0356
A7: 01 | B7: 01272 | C7: 5.70955 | D7: 2.64805 | E7: 0.2106 | F7: 0.0222
A8: 02 | B8: 02371 | C8: 0.91973 | D8: 2.12557 | E8: 0.0339 | F8: 0.0178
A9: 02 | B9: 02471 | C9: 1.76664 | D9: 2.11163 | E9: 0.0652 | F9: 0.0177
A10: 02 | B10: 02571 | C10: 1.13572 | D10: 1.49493 | E10: 0.0419 | F10: 0.0125
A11: 02 | B11: 02751 | C11: 1.10457 | D11: 3.54169 | E11: 0.0407 | F11: 0.0296
A12: 03 | B12: 03153 | C12: 0 | D12: 0 | E12: 0.1646 | F12: 0.0268
A13: 03 | B13: 03171 | C13: 3.49482 | D13: 3.19758 | E13: 0.1289 | F13: 0.0268
A14: 03 | B14: 03351 | C14: 4.46241 | D14: 0 | E14: 0.1646 | F14: 0.0268
A15: 04 | B15: 02651 | C15: 4.69241 | D15: 0 | E15: 0.1731 | F15: 0.0188
A16: 04 | B16: 04151 | C16: 4.07025 | D16: 3.65479 | E16: 0.1501 | F16: 0.0306
A17: 04 | B17: 04251 | C17: 2.02103 | D17: 2.23948 | E17: 0.0746 | F17: 0.0187
A18: 04 | B18: 04351 | C18: 3.20251 | D18: 0 | E18: 0.1181 | F18: 0.0188
A19: 04 | B19: 04352 | C19: 3.33497 | D19: 2.24317 | E19: 0.123 | F19: 0.0188
A20: 05 | B20: 05151 | C20: 0 | D20: 7.1375 | E20: 0.4232 | F20: 0.0597
A21: 07 | B21: 07151 | C21: 8.07126 | D21: 1.98287 | E21: 0.2977 | F21: 0.0166
A22: 07 | B22: 07152 | C22: 4.45315 | D22: 1.71366 | E22: 0.1643 | F22: 0.0143
A23: 07 | B23: 07251 | C23: 0 | D23: 2.78155 | E23: 0.2977 | F23: 0.0233
A24: 07 | B24: 07351 | C24: 9.29737 | D24: 1.47313 | E24: 0.3429 | F24: 0.0123
A25: 07 | B25: 07352 | C25: 5.60288 | D25: 2.02657 | E25: 0.2067 | F25: 0.017
A26: 07 | B26: 07451 | C26: 3.88108 | D26: 2.29583 | E26: 0.1432 | F26: 0.0192
A27: 08 | B27: 08151 | C27: 11.491 | D27: 1.43119 | E27: 0.4239 | F27: 0.012
A28: 08 | B28: 08152 | C28: 2.27542 | D28: 1.53535 | E28: 0.0839 | F28: 0.0128
A29: 08 | B29: 08251 | C29: 2.1145 | D29: 4.35057 | E29: 0.078 | F29: 0.0364
A30: 08 | B30: 08351 | C30: 1.48311 | D30: 4.19707 | E30: 0.0547 | F30: 0.0351
A31: 08 | B31: 08451 | C31: 1.57149 | D31: 5.07521 | E31: 0.058 | F31: 0.0425
A32: 08 | B32: 08462 | C32: 3.31665 | D32: 0 | E32: 0.1223 | F32: 0.0425
A33: 08 | B33: 08651 | C33: 2.56709 | D33: 4.745 | E33: 0.0947 | F33: 0.0397
A34: 09 | B34: 09351 | C34: 0.7653 | D34: 0.7386 | E34: 0.0282 | F34: 0.0062
A35: 09 | B35: 09352 | C35: 0 | D35: 0 | E35: 0.0282 | F35: 0.0062
A36: 09 | B36: 09471 | C36: 8.47807 | D36: 3.75335 | E36: 0.3127 | F36: 0.0314
A37: 09 | B37: 09551 | C37: 0 | D37: 0 | E37: 0.3127 | F37: 0.0314
A38: 09 | B38: 09751 | C38: 4.99346 | D38: 1.93614 | E38: 0.1842 | F38: 0.0162
A39: 10 | B39: 02661 | C39: 2.68068 | D39: 0 | E39: 0.0989 | F39: 0.096
A40: 10 | B40: 02662 | C40: 4.89215 | D40: 0 | E40: 0.1805 | F40: 0.096
A41: 10 | B41: 02663 | C41: 2.56869 | D41: 5.18444 | E41: 0.0948 | F41: 0.0434
A42: 10 | B42: 02664 | C42: 2.99032 | D42: 11.475 | E42: 0.1103 | F42: 0.096
A43: 10 | B43: 02665 | C43: 2.73966 | D43: 10.7025 | E43: 0.1011 | F43: 0.0895
A44: 10 | B44: 02666 | C44: 2.70309 | D44: 8.5175 | E44: 0.0997 | F44: 0.0712
A45: 10 | B45: 08551 | C45: 1.76376 | D45: 7.9275 | E45: 0.0651 | F45: 0.0663
A46: 10 | B46: 08562 | C46: 0 | D46: 0 | E46: 0.0651 | F46: 0.0663
A47: 10 | B47: 08652 | C47: 1.5302 | D47: 2.82196 | E47: 0.0564 | F47: 0.0236
A48: 10 | B48: 08663 | C48: 0 | D48: 0 | E48: 0.0861 | F48: 0.0321
A49: 10 | B49: 08664 | C49: 2.3337 | D49: 3.83247 | E49: 0.0861 | F49: 0.0321
A50: 10 | B50: 08665 | C50: 4.05289 | D50: 1.7924 | E50: 0.1495 | F50: 0.015
A51: 10 | B51: 08666 | C51: 4.16815 | D51: 6.35685 | E51: 0.1537 | F51: 0.0532
A52: 10 | B52: 08751 | C52: 1.42608 | D52: 5.60756 | E52: 0.0526 | F52: 0.0469
A53: 10 | B53: 08762 | C53: 1.4715 | D53: 7.96676 | E53: 0.0543 | F53: 0.0666
A54: 10 | B54: 08763 | C54: 3.50631 | D54: 10.4074 | E54: 0.1293 | F54: 0.0871
A55: 10 | B55: 08764 | C55: 3.76825 | D55: 10.5062 | E55: 0.139 | F55: 0.0879
A56: 11 | B56: 11161 | C56: 3.55173 | D56: 3.07411 | E56: 0.131 | F56: 0.0257
A57: 11 | B57: 11262 | C57: 5.61922 | D57: 3.39835 | E57: 0.2073 | F57: 0.0284
A58: 11 | B58: 11263 | C58: 5.94183 | D58: 2.43571 | E58: 0.2192 | F58: 0.0204
A59: 12 | B59: 03451 | C59: 0 | D59: 0 | E59: 0.4232 | F59: 0.0398
A60: 12 | B60: 03571 | C60: 11.4731 | D60: 4.75424 | E60: 0.4232 | F60: 0.0398
A61: 14 | B61: 06271 | C61: 0 | D61: 2.69314 | E61: 0.2854 | F61: 0.0225
A62: 15 | B62: 06151 | C62: 0 | D62: 0 | E62: 0.2768 | F62: 0.0287
A63: 15 | B63: 06452 | C63: 7.50448 | D63: 3.4308 | E63: 0.2768 | F63: 0.0287
A64: 15 | B64: 06471 | C64: 7.73809 | D64: 2.83859 | E64: 0.2854 | F64: 0.0237
A66: 1 L'indice relatif de dispersion est obtenu via une analyse géomatique réalisée à l'échelle du polygone et du chantier qui considère la superficie des chantiers, les déplacements en distance et en temps (intrachantiers, interchantiers et extrachantiers) de même que la densité relative des travaux des années précédentes dans la limite de leur disponibilité. Pour davantage d'information à ce sujet, voir le document « Directives sur les paiements concernant la réalisation des traitements sylvicoles non commerciaux - Saison 2020-2021 ».
A67: 2 Traitements à productivité élevée : regroupent les traitement dont le code RATF débute par BRM36D, BRM36P, DH, DHAD, DHAP, DO, EQSLY, HERSE, REQ, ROUECA, TTS et WAD. Les UA pour lesquelles aucune superficie n'a pu être considérée dans l'analyse (la valeur de l'indice est 0) utilisent la valeur d'une UA limitrophe à l'intérieur de la même région pour l'établissement de la majoration.
A68: 3 Traitements à productivité modérée : regroupent les traitement dont le code RATF débute par AGR, BPR, DRAV, DRDV, DREV, SCAIPV, SCAMV et SCAPV. Les UA pour lesquelles aucune superficie n'a pu être considérée dans l'analyse (la valeur de l'indice est 0) utilisent la valeur d'une UA limitrophe à l'intérieur de la même région pour l'établissement de la majoration.

Sheet Versions du fichier (hidden)
A1: Suivi des versions du fichier de l’annexe au calcul des taux des traitements non commerciaux 2020-2021 Forêt publique | U1: Version 3 : 2020-04-02
A2: 0
A3: Version 1 | B3: Nom du fichier : | C3: Annexe_TSNC_2020-2021_2020-02-11.xlsm
A4: =A3 -> Version 1 | B4: Date de mise en ligne : | C4: 2020-02-11
A5: =A4 -> Version 1 | B5: Remarques : | C5: • Version initiale proposée pour la période de consultation
A6: =A5 -> Version 1
A7: Version 2 | B7: Nom du fichier : | C7: Annexe_TSNC_2020-2021_2020-02-12.xlsm
A8: =A7 -> Version 2 | B8: Date de mise en ligne : | C8: 2020-02-12
A9: =A8 -> Version 2 | B9: Remarques : | C9: • Onglet « Éclaircie commerciale EAF » et taux m³/ha : correction d'une coquille dans la formule à G21
A10: =A9 -> Version 2
A11: Version 3 | B11: Nom du fichier : | C11: Annexe_TSNC_2020-2021_2020-04-02.xlsm
A12: =A11 -> Version 3 | B12: Date de mise en ligne : | C12: 2020-04-02
A13: =A12 -> Version 3 | B13: Remarques : | C13: • Version officielle
A14: =A13 -> Version 3

Sheet Étapes calcul majorations (hidden)
A1: Famille | B1: Traitement | C1: Équipement ou modalité | D1: Type d'engin forestier | E1: Étapes pour appliquer les majorations à l'exécution | F1: Étapes pour appliquer les majorations à la vérification
A2: Préparation de terrain | B2: Déblaiement des résidus de coupe | C2: Abatteuse groupeuse après feux | D2: S/O | E2: Taux = EXE * (1 + PE2) * (1 + DMOD) * (1 + HPT) * (1 + CEAF1 ou ISO1) | F2: Taux = VERIF * (1 + HPVTM + DTPVTM)
A3: Préparation de terrain | B3: Déblaiement des résidus de coupe | C3: Bouteur avec pelle râteau | D3: S/O | E3: Taux = EXE * (1 + PE4) * (1 + DMOD) * (1 + HPT) * (1 + CEAF1 ou ISO1) | F3: Taux = VERIF * (1 + HPVTM + DTPVTM)
A4: Préparation de terrain | B4: Déblaiement des résidus de coupe | C4: Excavatrice ou débusqueuse ou abatteuse | D4: Débusqueuse | E4: Taux = EXE * (1 + PE3) * (1 + DMOD) * (1 + HPT) * (1 + CEAF1 ou ISO1) | F4: Taux = VERIF * (1 + HPVTM + DTPVTM)
A5: Préparation de terrain | B5: Déblaiement des résidus de coupe | C5: Excavatrice ou débusqueuse ou abatteuse | D5: Abatteuse lors de la récolte | E5: Taux = EXE * (1 + PE2) * (1 + DMOD) * (1 + HPT) * (1 + CEAF1 ou ISO1) | F5: Taux = VERIF * (1 + HPVTM + DTPVTM)
A6: Préparation de terrain | B6: Déblaiement des résidus de coupe | C6: Excavatrice ou débusqueuse ou abatteuse | D6: Excavatrice | E6: Taux = EXE * (1 + PE2) * (1 + DMOD) * (1 + HPT) * (1 + CEAF1 ou ISO1) | F6: Taux = VERIF * (1 + HPVTM + DTPVTM)
A7: Préparation de terrain | B7: Scarifiage par monticule ou inversion par placeau ou décapage par placeau | C7: Excavatrice | D7: Abatteuse lors de la récolte | E7: Taux = EXE * (1 + PE2) * (1 + DMOD) * (1 + HPT) * (1 + CEAF1 ou ISO1) | F7: Taux = VERIF * (1 + HPVTM + DTPVTM)
A8: Préparation de terrain | B8: Scarifiage par monticule ou inversion par placeau ou décapage par placeau | C8: Excavatrice | D8: Excavatrice | E8: Taux = EXE * (1 + PE2) * (1 + DMOD) * (1 + HPT) * (1 + CEAF1 ou ISO1) | F8: Taux = VERIF * (1 + HPVTM + DTPVTM)
A9: Préparation de terrain | B9: Drainage sylvicole | C9: Milieu boisé | D9: S/O | E9: Taux = EXE * (1 + HPT) * (1 + CEAF1 ou ISO1) | F9: Taux = VERIF * (1 + HPVTM + DTPVTM)
A10: Préparation de terrain | B10: Drainage sylvicole | C10: Milieu dénudé | D10: S/O | E10: Taux = EXE * (1 + HPT) * (1 + CEAF1 ou ISO1) | F10: Taux = VERIF * (1 + HPVTM + DTPVTM)
A11: Préparation de terrain | B11: Fertilisation du peuplier hybride | C11: S/O | D11: S/O | E11: Taux = EXE * (1 + PE2) * (1 + HRA + DTEXE) * (1 + CEAF1 ou ISO1) | F11: Taux = VERIF * (1 + HPVTM + DTPVTM)
A12: Préparation de terrain | B12: Scarifiage par hersage ou labour | C12: Herses forestières | D12: S/O | E12: Taux = EXE * (1 + PA2) *(1 + PE2) * (1 + DRAP) * (1 + HPT) * (1 + CEAF1 ou ISO1) | F12: Taux = VERIF * (1 + HPVTM + DTPVTM)
A13: Préparation de terrain | B13: Scarifiage par mixage par placeau | C13: Taupe ou pioche forestière | D13: S/O | E13: Taux = EXE * (1 + HRA + DTEXE) * (1 + CEAF1 ou ISO1) | F13: Taux = VERIF * (1 + HPVTM + DTPVTM)
A14: Préparation de terrain | B14: Scarifiage par monticule avec scarificateur | C14: Bracke M-36a avec débardeur | D14: S/O | E14: Taux = EXE * (1 + PE1) * (1 + DRAP) * (1 + HPT) * (1 + CEAF1 ou ISO1) | F14: Taux = VERIF * (1 + HPVTM + DTPVTM)
A15: Préparation de terrain | B15: Scarifiage par monticule avec scarificateur | C15: Bracke M-36a avec porteur ou débardeur à six roues | D15: S/O | E15: Taux = EXE * (1 + PE1) * (1 + DRAP) * (1 + HPT) * (1 + CEAF1 ou ISO1) | F15: Taux = VERIF * (1 + HPVTM + DTPVTM)
A16: Préparation de terrain | B16: Scarifiage par monticule ou inversion par placeau ou décapage par placeau | C16: Excavatrice | D16: Excavatrice | E16: Taux = EXE * (1 + PE2) * (1 + DMOD) * (1 + HPT) * ( 1 + CEAF1 ou ISO1) | F16: Taux = VERIF * (1 + HPVTM + DTPVTM)
A17: Préparation de terrain | B17: Scarifiage par monticule ou inversion par placeau ou décapage par placeau | C17: Excavatrice | D17: Abatteuse lors de la récolte | E17: Taux = EXE * (1 + PE2) * (1 + DMOD) * (1 + HPT) * ( 1 + CEAF1 ou ISO1) | F17: Taux = VERIF * (1 + HPVTM + DTPVTM)
A18: Préparation de terrain | B18: Scarifiage par sillon avec scarificateur | C18: Bracke T-26 avec débardeur, Types TTS hydrauliques, Donaren ou Requin | D18: S/O | E18: Taux = EXE * (1 + PA0) * (1 + PA1) * (1 + PE1) * (1 + DRAP) * (1 + HPT) * (1 + CEAF1 ou ISO1) | F18: Taux = VERIF * (1 + HPVTM + DTPVTM)
A19: Préparation de terrain | B19: Scarifiage par sillon avec scarificateur | C19: Bracke T-26 avec porteur ou débardeur à six roues | D19: S/O | E19: Taux = EXE * (1 + PA0) * (1 + PA1) * (1 + PE1) * (1 + DRAP) * (1 + HPT) * (1 + CEAF1 ou ISO1) | F19: Taux = VERIF * (1 + HPVTM + DTPVTM)
A20: Préparation de terrain | B20: Scarifiage par sillon avec scarificateur | C20: Rouleau écraseur et scarificateur à disques passifs | D20: S/O | E20: Taux = EXE * (1 + PE2) * (1 + DRAP) * (1 + HPT) * (1 + CEAF1 ou ISO1) | F20: Taux = VERIF * (1 + HPVTM + DTPVTM)
A21: Préparation de terrain | B21: Scarifiage par sillon avec scarificateur | C21: Types TTS passifs | D21: S/O | E21: Taux = EXE * (1 + PA0) * (1 + PA1) * (1 + PE1) * (1 + DRAP) * (1 + HPT) * (1 + CEAF1 ou ISO1) | F21: Taux = VERIF * (1 + HPVTM + DTPVTM)
A22: Préparation de terrain | B22: Scarifiage par sillon avec scarificateur | C22: Wadell | D22: S/O | E22: Taux = EXE * (1 + PA0) * (1 + PA1) * (1 + PE1) * (1 + DRAP) * (1 + HPT) * (1 + CEAF1 ou ISO1) | F22: Taux = VERIF * (1 + HPVTM + DTPVTM)
A23: Régénération artificielle | B23: Ensemencement terrestre manuel | C23: S/O | D23: S/O | E23: Taux = EXE * (1 + PE2) * (1 + HRA ou TC + DTEXE) * (1 + CEAF2 ou ISO2) | F23: Taux = VERIF * (1 + HPVTM + DTPVTM)
A24: Régénération artificielle | B24: Plantation uniforme et regarni en plein manuel sauf PEH | C24: S/O | D24: S/O | E24: Taux = (EXE * 1 + RAPM) * (1 + HRA ou TC + DTEXE) * (1 + CEAF2 ou ISO2)) + TRA | F24: Taux = VERIF * (1 + HPVTM + DTPVTM)
A25: Régénération artificielle | B25: Plantation uniforme et regarni en plein manuel sentier préparé sauf PEH | C25: S/O | D25: S/O | E25: Taux = (EXE * 1 + RAPM) * (1 + HRA ou TC + DTEXE) * (1 + CEAF2 ou ISO2)) + TRA | F25: Taux = VERIF * (1 + HPVTM + DTPVTM)
A26: Régénération artificielle | B26: Plantation uniforme et regarni mécanique (Scarificateur­planteur Bracke P­11a) | C26: S/O | D26: S/O | E26: Taux = EXE * (1 + HPT) * (1 + CEAF2 ou ISO2) + TRA | F26: Taux = VERIF * (1 + HPVTM + DTPVTM)
A27: Régénération artificielle | B27: Plantation uniforme PEH | C27: S/O | D27: S/O | E27: Taux = (EXE * 1 + RAPM) * (1 + HRA ou TC + DTEXE) * (1 + CEAF2 ou ISO2) + TRA | F27: Taux = VERIF * (1 + HPVTM + DTPVTM)
A28: Régénération artificielle | B28: Regarni de sentier et enrichissement manuel sauf PEH | C28: S/O | D28: S/O | E28: Taux = (EXE * 1 + RAPM) * (1 + HRA ou TC + DTEXE) * (1 + CEAF2 ou ISO2) + TRA | F28: Taux = VERIF * (1 + HPVTM + DTPVTM)
A29: Éducation de peuplement | B29: Dégagement mécanique | C29: S/O | D29: S/O | E29: Taux = (EXE * 1 + DEGPM) * (1 + PE2) * (1 + HEP ou TC + DTEXE) * (1 + CEAF3 ou ISO3) | F29: Taux = VERIF * (1 + HPVTM + DTPVTM)
A30: Éducation de peuplement | B30: Élagage à des fins de qualité pour le pin blanc et le pin rouge | C30: S/O | D30: S/O | E30: Taux = EXE * (1 + PE2) * (1 + HEP ou TC + DTEXE) * (1 + CEAF3 ou ISO3) | F30: Taux = VERIF * (1 + HPVTM + DTPVTM)
A31: Éducation de peuplement | B31: EPC par puit de lumière ET Taille de formation avec martelage | C31: S/O | D31: S/O | E31: Taux = EXE * (1 + PE2) * (1 + HEP ou TC + DTEXE) * (1 + CEAF3 ou ISO3) | F31: Taux = VERIF * (1 + HPVTM + DTPVTM)
A32: Éducation de peuplement | B32: Nettoiement - Peuplement résineux ou mixte (FI) à dominance résineuse | C32: S/O | D32: S/O | E32: Taux = EXE * (1 + PE2) * (1 + HEP ou TC + DTEXE) * (1 + CEAF3 ou ISO3) | F32: Taux = VERIF * (1 + HPVTM + DTPVTM)
A33: Éducation de peuplement | B33: Nettoiement et EPC systématique - scénario sylvicole intensif ou d'élite | C33: S/O | D33: S/O | E33: Taux = EXE * (1 + PE2) * (1 + HEP ou TC + DTEXE) * (1 + CEAF3 ou ISO3) | F33: Taux = VERIF * (1 + HPVTM + DTPVTM)
A34: Éducation de peuplement | B34: Taille phytosanitaire | C34: S/O | D34: S/O | E34: Taux = EXE * (1 + PE2) * (1 + HEP ou TC + DTEXE) * (1 + CEAF3 ou ISO3) | F34: Taux = VERIF * (1 + HPVTM + DTPVTM)
A35: Éclaircie commerciale EAF | B35: Éclaircie commerciale EAF | C35: S/O | D35: S/O | E35: Taux = (EXE * (1 + PE2) * (1 + MAN) * (1 + HECEAF) | F35: Taux = VERIF * (1 + HPVTM + DTPVTM)
A36: Travaux de planification | B36: Travaux de planification et techniques | C36: S/O | D36: S/O | E36: Taux = EXE * (1 + HPVTM) + (EXE - Plan de sondage) * DTPVTM | F36: Taux = VERIF * (1 + HPVTM + DTPVTM)
A37: Martelage | B37: Martelage | C37: S/O | D37: S/O | E37: Taux = EXE * (1 + HPVTM + DTPVTM) | F37: Taux = VERIF * (1 + HPVTM + DTPVTM)
A39: Exemple | B39: Traitement = Préparation de terrain => Déblaiement des résidus de coupe => Abatteuse groupeuse après feux Taux = EXE * (1 + PE2) * (1 + DMOD) * (1 + HPT) * (1 + CEAF1 ou ISO1) EXE : 100 $; PE2 : 6,1 %; DMOD : 3,8%; HPT : 9,2%; CEAF1 : 0,42% | E39: Taux = 100 * (1 + 0,061) * (1 + 0,038) * (1 + 0,092) * (1 + 0,0042) Taux = 100 * 1,061 * 1,038 * 1,092 * 1,0042 Taux = 120,77$
E40: ,

Sheet Traitements admissibles (hidden)
A1: Taux présent dans la grille | B1: Admissible au paiement | C1: Famille | D1: Traitement | E1: Type | F1: Équipement / Modalité | G1: Structure du taux | H1: Unité
A2: Oui | B2: Oui | C2: Préparation de site | D2: Scarifiage par sillon avec scarificateur | E2: Scarificateurs à disques passifs | F2: Type TTS passifs | G2: Fixe | H2: Hectare
A3: Oui | B3: Oui | C3: Préparation de site | D3: Scarifiage par sillon avec scarificateur | E3: Scarificateurs à disques passifs | F3: Rouleau écraseur et scarificateur à disques passifs | G3: Fixe | H3: Hectare
A4: Oui | B4: Oui | C4: Préparation de site | D4: Scarifiage par sillon avec scarificateur | E4: Scarificateurs à disques hydrauliques | F4: Types TTS hydrauliques, Donaren, ou Requin | G4: Fixe | H4: Hectare
A5: Oui | B5: Oui | C5: Préparation de site | D5: Scarifiage par sillon avec scarificateur | E5: Scarificateurs à disques hydrauliques | F5: Bracke T-26 avec débardeur | G5: Fixe | H5: Hectare
A6: Oui | B6: Oui | C6: Préparation de site | D6: Scarifiage par sillon avec scarificateur | E6: Scarificateurs à disques hydrauliques | F6: Bracke T-26 avec porteur ou débardeur à six roues | G6: Fixe | H6: Hectare
A7: Oui | B7: Oui | C7: Préparation de site | D7: Scarifiage par sillon avec scarificateur | E7: Scarificateurs à cônes hydrauliques | F7: Wadell | G7: Fixe | H7: Hectare
A8: Oui | B8: Oui | C8: Préparation de site | D8: Scarifiage par monticule avec scarificateur | F8: Bracke M-36a avec débardeur | G8: Fixe | H8: Hectare
A9: Oui | B9: Oui | C9: Préparation de site | D9: Scarifiage par monticule avec scarificateur | F9: Bracke M-36a avec porteur ou débardeur à six roues | G9: Fixe | H9: Hectare
A10: Oui | B10: Oui | C10: Préparation de site | D10: Scarifiage par hersage/labour | F10: Herses forestières | G10: Fixe | H10: Hectare
A11: Oui | B11: Oui | C11: Préparation de site | D11: Scarifiage par mixage par placeau | F11: Taupe ou pioche forestière | G11: Fixe | H11: Millier de microsites
A12: Oui | B12: Oui | C12: Préparation de site | D12: Déblaiement des résidus de coupe | F12: Bouteur avec pelle râteau | G12: Fixe | H12: Hectare
A13: Oui | B13: Oui | C13: Préparation de site | D13: Déblaiement des résidus de coupe | F13: Abatteuse groupeuse après feux | G13: Fixe | H13: Hectare
A14: Oui | B14: Oui | C14: Préparation de site | D14: Drainage sylvicole | F14: Milieu dénudé | G14: Fixe | H14: Hectare
A15: Oui | B15: Oui | C15: Préparation de site | D15: Drainage sylvicole | F15: Milieu boisé | G15: Fixe | H15: Hectare
A16: Oui | B16: Oui | C16: Préparation de site | D16: Scarifiage par monticule ou inversion par placeau ou décapage par placeau | F16: Excavatrice | G16: Variable | H16: Hectare
A17: Oui | B17: Oui | C17: Préparation de site | D17: Déblaiement des résidus de coupe | F17: Excavatrice ou débusqueuse ou abatteuse | G17: Variable | H17: Hectare
A18: Oui | B18: Oui | C18: Préparation de site | D18: Fertilisation | G18: Fixe | H18: Hectare
A19: Non | B19: Oui | C19: Préparation de site | D19: Déblaiement d'hiver | F19: Bouteur à lame tranchante | G19: Sur demande | H19: Hectare
A20: Non | B20: Non | C20: Préparation de site | D20: Récupération de la matière ligneuse | G20: Aucun
A21: Non | B21: Oui | C21: Préparation de site | D21: Élimination des tiges résiduelles | G21: Sur demande | H21: Hectare
A22: Non | B22: Non | C22: Préparation de site | D22: Scarifiage par sillon avec scarificateur | E22: Scarificateurs à disques hydrauliques | F22: Esquisyl | G22: Aucun | H22: Hectare
A23: Non | B23: Oui | C23: Préparation de site | D23: Brûlage | G23: Sur demande | H23: Andain
A24: Non | B24: Projet | C24: Préparation de site | D24: Broyage | G24: Sur demande | H24: Hectare
A25: Non | B25: Projet | C25: Préparation de site | D25: Déblaiement des résidus de coupe | E25: Bouteur avec pelle modifiée (deux dents) | G25: Sur demande | H25: Hectare
A26: Non | B26: Projet | C26: Préparation de site | D26: Déblaiement des résidus de coupe et monticules | E26: Excavatrice | G26: Sur demande | H26: Hectare
A27: Non | B27: Non | C27: Préparation de site | D27: Déchiquetage | G27: Aucun
A28: Non | B28: Non | C28: Préparation de site | D28: Amendement, chaulage | G28: Aucun
A29: Non | B29: Non | C29: Préparation de site | D29: Amendement, organique | G29: Aucun
A30: Non | B30: Projet | C30: Préparation de site | D30: Débroussaillement de la végétation et des résidus de coupes | F30: Manuel | G30: Sur demande | H30: Hectare
A31: Oui | B31: Oui | C31: Régénération artificielle | D31: Plantation uniforme et regarni mécanique | E31: Scarificateur-planteur (Bracke P-11a) | F31: 1500 plants/ha et + Récipient 45-110 | G31: Fixe | H31: Millier de plants
A32: Oui | B32: Oui | C32: Régénération artificielle | D32: Plantation uniforme et regarni mécanique | E32: Scarificateur-planteur (Bracke P-11a) | F32: 1500 plants/ha et + Récipient 25-200 | G32: Fixe | H32: Millier de plants
A33: Oui | B33: Oui | C33: Régénération artificielle | D33: Plantation uniforme et regarni mécanique | E33: Scarificateur-planteur (Bracke P-11a) | F33: 1499 plants/ha et - Récipient 45-110 | G33: Fixe | H33: Millier de plants
A34: Oui | B34: Oui | C34: Régénération artificielle | D34: Plantation uniforme et regarni mécanique | E34: Scarificateur-planteur (Bracke P-11a) | F34: 1499 plants/ha et - Récipient 25-200 | G34: Fixe | H34: Millier de plants
A35: Oui | B35: Oui | C35: Régénération artificielle | D35: Plantation uniforme PEH | G35: Fixe | H35: Millier de plants
A36: Oui | B36: Oui | C36: Régénération artificielle | D36: Plantation d'enrichissement | F36: Puit de lumière (300 plants/ha), enrichissement (350plants/ha) ou regarni pins et feuillus (≤ 799plants/ha) | G36: Fixe | H36: Millier de plants
A37: Oui | B37: Oui | C37: Régénération artificielle | D37: Ensemencement | F37: Terrestre manuel | G37: Fixe | H37: Hectare
A38: Non | B38: Non | C38: Régénération artificielle | D38: Ensemencement aérien | G38: Aucun
A39: Non | B39: Non | C39: Régénération artificielle | D39: Ensemencement terrestre mécanisé après préparation de terrain | G39: Aucun
A40: Non | B40: Non | C40: Régénération artificielle | D40: Ensemencement terrestre mécanisé simultanément préparation de terrain | G40: Aucun
A41: Non | B41: Non | C41: Régénération artificielle | D41: Ensemencement terrestre mécanisé simultanément récolte | G41: Aucun
A42: Oui | B42: Oui | C42: Régénération artificielle | D42: Plantation uniforme et regarni manuel sauf PEH | E42: Gabarits de plants 113-25, 67-50, 45-110, 25-200, PFD récipients, PFD Racines Nues. | G42: Variable | H42: Millier de plants
A43: Oui | B43: Oui | C43: Régénération artificielle | D43: Plantation uniforme et regarni manuel sauf PEH | E43: Autres gabarits | G43: Sur demande | H43: Millier de plants
A44: Oui | B44: Oui | C44: Régénération artificielle | D44: Plantation uniforme et regarni manuel sauf PEH | E44: Gabarits de plants 113-25, 67-50, 45-110, 25-200, PFD récipients, PFD Racines Nues. | G44: Variable | H44: Millier de plants
A45: Oui | B45: Oui | C45: Régénération artificielle | D45: Plantation uniforme et regarni manuel sauf PEH | G45: Variable | H45: Millier de plants
A46: Non | B46: Non | C46: Éducation de peuplement | D46: Dégagement mécanisé, outil installé sur un débardeur | G46: Aucun
A47: Oui | B47: Oui | C47: Éducation de peuplement | D47: Dégagement mécanique de la régénération | E47: Débrousailleuse | G47: Variable | H47: Hectare
A48: Non | B48: Non | C48: Éducation de peuplement | D48: Dégagement mécanique de la régénération, dénombrement à 15 cm, taux variable | G48: Aucun
A49: Non | B49: Non | C49: Éducation de peuplement | D49: Nettoiement, annélation | G49: Aucun
A50: Non | B50: Non | C50: Éducation de peuplement | D50: Nettoiement manuel | G50: Aucun
A51: Non | B51: Non | C51: Éducation de peuplement | D51: Nettoiement mécanisé | G51: Aucun
A52: Non | B52: Non | C52: Éducation de peuplement | D52: Gaulis I | F52: Secteur d'intervention sans choix de tige, soit inter spécifique (par groupe d'essence, résineux / feuillus) et sans espacement | G52: Variable | H52: Hectare
A53: Oui | B53: Oui | C53: Éducation de peuplement | D53: Nettoiement d'un peuplement résineux ou mixte (MR-FI) à dominance de résineux en scénario sylvicole de base des peuplements en régénération naturelle, en plantation uniforme ou en regarni de la régénération artificielle | G53: Variable | H53: Hectare
A54: Non | B54: Non | C54: Éducation de peuplement | D54: Gaulis III | F54: Secteur d'intervention avec un choix de tige intraspécifique (par essence) sans espacement (peuplement naturel et plantation) OU avec un espacement d'une plantation avec un coefficient de distribution < 75 % OU Secteur d'intervention sans choix de tige, soit interspécifique (par groupe d'essence, résineux / feuillus) et sans espacement d'une plantation avec SRLC < 20% et DI > 20 000 | G54: Variable | H54: Hectare
A55: Non | B55: Non | C55: Éducation de peuplement | D55: Gaulis II | F55: Secteur d'intervention avec un choix de tige intraspécifique (par essence) et avec un espacement d'un peuplement naturel et d'une plantation avec un coefficient de distribution >= 75 % | G55: Variable | H55: Hectare
A56: Oui | B56: Oui | C56: Éducation de peuplement | D56: Nettoiement d'un peuplement résineux en scénario intensif ou élite de plantation uniforme et éclaircie précommerciale systématique d'un peuplement résineux ou de peuplier en scénario sylvicole intensif ou d'élite des peuplements en régénération naturelle ou en regarni de la régénération artificielle | G56: Variable | H56: Hectare
A57: Oui | B57: Oui | C57: Éducation de peuplement | D57: Éclaircie précommerciale par puit de lumière et taille de formation avec martelage | G57: Variable | H57: Hectare
A58: Oui | B58: Oui | C58: Éducation de peuplement | D58: Élagage à des fins de qualité pour le pin blanc et le pin rouge | G58: Variable | H58: Hectare
A59: Oui | B59: Oui | C59: Éducation de peuplement | D59: Taille phytosanitaire | G59: Variable | H59: Hectare
A60: Non | B60: Non | C60: Éducation de peuplement | D60: Nettoiement, phytocides biologiques | G60: Aucun
A61: Non | B61: Non | C61: Éducation de peuplement | D61: Nettoiement, phytocides chimiques | G61: Aucun
A62: Non | B62: Projet | C62: Éducation de peuplement | D62: Nettoiement, annélation | G62: Sur demande | H62: Hectare
A63: Non | B63: Non | C63: Éducation de peuplement | D63: Éclaircie précommerciale par puit de lumière | E63: Prescription 2012 | G63: Aucun
A64: Non | B64: Non | C64: Éducation de peuplement | D64: Dégagement manuel | F64: Manuelle (machette, hache, …) | G64: Aucun
A65: Non | B65: Projet | C65: Éducation de peuplement | D65: Dépressage | G65: Sur demande | H65: Hectare
A66: Non | B66: Non | C66: Éducation de peuplement | D66: Nettoiement cerf de Virginie et caribou | G66: Aucun
A67: Non | B67: Non | C67: Éducation de peuplement | D67: Nettoiement 5 m et plus | G67: Aucun
A68: Non | B68: Projet | C68: Éducation de peuplement | D68: Nettoiement HÊTRE | G68: Sur demande | H68: Hectare
A69: Non | B69: Projet | C69: Éducation de peuplement | D69: Dégagement annélation | G69: Sur demande | H69: Hectare
A70: Non | B70: Non | C70: Éducation de peuplement | D70: Dégagement, phytocides biologiques | G70: Aucun
A71: Non | B71: Non | C71: Éducation de peuplement | D71: Dégagement, phytocides chimiques | G71: Aucun
A72: Oui | B72: Oui | C72: Éclaircie commerciale EAF | D72: Première éclaircie commerciale de plantation résineuse réservé aux entreprises d'aménagement forestier | F72: Pourcentage de majoration pour les opérations manuelles | G72: Variable | H72: Hectare
A73: Oui | B73: Oui | C73: Travaux techniques | D73: Vérification technique | E73: Inventaire après traitement | F73: Traitement de préparation de site mécanisé | G73: Variable | H73: PE
A74: Oui | B74: Oui | C74: Travaux techniques | D74: Vérification technique | E74: Inventaire après traitement | F74: Traitement de préparation de site manuelle | G74: Fixe | H74: PE
A75: Oui | B75: Oui | C75: Travaux techniques | D75: Vérification technique | E75: Inventaire après traitement | F75: Traitement de préparation de site drainage sylvicole | G75: Fixe | H75: PE
A76: Oui | B76: Oui | C76: Travaux techniques | D76: Vérification technique | E76: Inventaire après traitement | F76: Traitement de régénération artificielle | G76: Variable | H76: PE
A77: Oui | B77: Oui | C77: Travaux techniques | D77: Vérification technique | E77: Inventaire après traitement | F77: Traitement d'éducation de peuplement | G77: Variable | H77: PE
A78: Oui | B78: Oui | C78: Travaux techniques | D78: Planification | E78: Recherche de secteur d'intervention potentiel (terrain) | F78: Traitement de préparation de site et régénération artificielle | G78: Fixe | H78: Hectare
A79: Oui | B79: Oui | C79: Travaux techniques | D79: Planification | E79: Recherche de secteur d'intervention potentiel (terrain) | F79: Traitement d'éducation de peuplement | G79: Fixe | H79: Hectare
A80: Oui | B80: Oui | C80: Travaux techniques | D80: Planification | E80: Recherche de secteur d'intervention trouvé (terrain) | F80: Traitement de préparation de site et régénération artificielle | G80: Fixe | H80: Hectare
A81: Oui | B81: Oui | C81: Travaux techniques | D81: Planification | E81: Recherche de secteur d'intervention trouvé (terrain) | F81: Traitement d'éducation de peuplement | G81: Fixe | H81: Hectare
A82: Oui | B82: Oui | C82: Travaux techniques | D82: Planification | E82: Confection du plan de sondage | G82: Fixe | H82: Hectare
A83: Oui | B83: Oui | C83: Travaux techniques | D83: Planification | E83: Inventaire avant traitement | F83: Traitement de préparation de site (sauf drainage sylvicole) | G83: Variable | H83: PE
A84: Oui | B84: Oui | C84: Travaux techniques | D84: Planification | E84: Inventaire avant traitement | F84: Régénération artificielle | G84: Variable | H84: PE
A85: Oui | B85: Oui | C85: Travaux techniques | D85: Planification | E85: Inventaire avant traitement | F85: Traitement d'éducation de peuplement (dégagement, nettoiement et éclaircie précommerciale) | G85: Variable | H85: PE
A86: Oui | B86: Oui | C86: Travaux techniques | D86: Planification | E86: Inventaire avant traitement | F86: Traitement d'éducation (élagage et taille) | G86: Fixe | H86: Hectare
A87: Oui | B87: Oui | C87: Travaux techniques | D87: Planification | E87: Délimitation des secteurs | F87: Traitement de préparation de site et régénération artificielle | G87: Fixe | H87: Hectare
A88: Oui | B88: Oui | C88: Travaux techniques | D88: Planification | E88: Délimitation des secteurs | F88: Traitement d'éducation de peuplement | G88: Fixe | H88: Hectare
A89: Oui | B89: Oui | C89: Travaux techniques | D89: Activités liées au martelage pour les traitements commerciaux | E89: Délimitation des secteurs | G89: Fixe | H89: Kilomètre délimité
A90: Oui | B90: Oui | C90: Travaux techniques | D90: Activités liées au martelage pour les traitements commerciaux | E90: Martelage feuillus | G90: Fixe | H90: Hectare
A91: Oui | B91: Oui | C91: Travaux techniques | D91: Activités liées au martelage pour les traitements commerciaux | E91: Martelage résineux | G91: Fixe | H91: Hectare
A92: Oui | B92: Oui | C92: Travaux techniques | D92: Activités liées au martelage pour les traitements commerciaux | E92: Martelage à taux variable | G92: Variable | H92: Hectare
A93: Oui | B93: Oui | C93: Travaux techniques | D93: Activités liées au martelage pour les traitements commerciaux | E93: Martelage en éclaircie commerciale en peuplement résineux (ou mixte à tendance résineuse) | F93: Martelage négatif | G93: Fixe | H93: Hectare
A94: Oui | B94: Oui | C94: Travaux techniques | D94: Activités liées au martelage pour les traitements commerciaux | E94: Inventaire après martelage | G94: Fixe | H94: Hectare
A95: Non | B95: Oui | C95: Autre | D95: Clôture Anticosti | G95: Sur demande
A96: Non | B96: Oui | C96: Majoration | D96: Majoration Hébergement R07 | E96: Appliqué en 2019-2020 - cas particuliers | G96: Sur demande | H96: Budget
A97: Non | B97: Oui | C97: Majoration | D97: Majoration Côte Nord (SCA et RA) | E97: Retirée en 2020-2021 | G97: Sur demande | H97: Pourcentage du taux d'exécution
A98: Non | B98: Oui | C98: Majoration | D98: Scarifiage par monticule avec excavatrice | E98: Scarifiage par monticule PEH R04 | G98: Sur demande | H98: Pourcentage du taux d'exécution

Sheet Calculs grille (hidden)
A1: Famille | B1: Traitement | C1: Type | D1: Équipement / Modalité | E1: Taux | F1: Paiement | G1: Information | H1: 2018-2019 | I1: 2018-2019 | J1: 2019-2020 | K1: 2019-2020 | L1: 2020-2021 | M1: 2020-2021 | N1: Source 2020-2021
H2: Non arrondis | J2: Non arrondis | L2: Non arrondis
A3: Préparation de terrain | B3: Scarifiage en sillon avec scarificateur | C3: Scarificateurs à disques passifs | D3: Type TTS passifs | E3: Fixe | F3: Hectare | G3: Type TTS passifs | H3: 213.0437074 | I3: 213 | J3: 221.6257684 | K3: =ROUND(J3,0) -> 222 | L3: 228.120334 | M3: =ROUND(L3,0) -> 228 | N3: [Grilles TSNC 2020-2021.xlsx]Feuille de calcul'!$AD$2
A4: Préparation de terrain | B4: Scarifiage en sillon avec scarificateur | C4: Scarificateurs à disques passifs | D4: Rouleau écraseur et scarificateur à disques passifs | E4: Fixe | F4: Hectare | G4: Rouleau écraseur et scarificateur à disques passifs | H4: 726.1092277 | I4: 726 | J4: 755.3591586 | K4: 755 | L4: 777.4943538 | M4: 777 | N4: [Grilles TSNC 2020-2021.xlsx]Feuille de calcul'!$AD$3
A5: Préparation de terrain | B5: Scarifiage en sillon avec scarificateur | C5: Scarificateurs à disques hydrauliques | D5: Types TTS hydrauliques, Donaren, ou Requin | E5: Fixe | F5: Hectare | G5: Bracke T-26 avec débardeur, Types TTS hydrauliques, Donaren, Equisyl ou Requin | H5: 312.7049827 | I5: 313 | J5: 325.3017089 | K5: 325 | L5: 334.8344149 | M5: 335 | N5: [Grilles TSNC 2020-2021.xlsx]Feuille de calcul'!$AD$4
A6: Préparation de terrain | B6: Scarifiage en sillon avec scarificateur | C6: Scarificateurs à disques hydrauliques | D6: Bracke T-26 avec débardeur | E6: Fixe | F6: Hectare | H6: 312.7049827 | I6: 313 | J6: 325.3017089 | K6: 325 | L6: 334.8344149 | M6: 335 | N6: [Grilles TSNC 2020-2021.xlsx]Feuille de calcul'!$AD$5
A7: Préparation de terrain | B7: Scarifiage en sillon avec scarificateur | C7: Scarificateurs à disques hydrauliques | D7: Bracke T-26 avec porteur ou débardeur à six roues | E7: Fixe | F7: Hectare | G7: Bracke T-26 avec porteur | H7: 355.3724246 | I7: 355 | J7: 369.6879276 | K7: 370 | L7: 380.5213362 | M7: 381 | N7: [Grilles TSNC 2020-2021.xlsx]Feuille de calcul'!$AD$6
A8: Préparation de terrain | B8: Scarifiage en sillon avec scarificateur | C8: Scarificateurs à cônes hydrauliques | D8: Wadell | E8: Fixe | F8: Hectare | G8: Wadell | H8: 374.1310863 | I8: 374 | J8: 389.2022464 | K8: 389 | L8: 400.6075065 | M8: 401 | N8: [Grilles TSNC 2020-2021.xlsx]Feuille de calcul'!$AD$7
A9: Préparation de terrain | B9: Scarifiage par monticule avec scarificateur | D9: Bracke M-36a avec débardeur | E9: Fixe | F9: Hectare | G9: Bracke M-36a avec débardeur | H9: 319.9431418 | I9: 320 | J9: 332.8314435 | K9: 333 | L9: 342.5848023 | M9: 343 | N9: [Grilles TSNC 2020-2021.xlsx]Feuille de calcul'!$AD$8
A10: Préparation de terrain | B10: Scarifiage par monticule avec scarificateur | D10: Bracke M-36a avec porteur ou débardeur à six roues | E10: Fixe | F10: Hectare | G10: Bracke M-36a avec porteur | H10: 383.6245323 | I10: 384 | J10: 399.0781179 | K10: 399 | L10: 410.7727825 | M10: 411 | N10: [Grilles TSNC 2020-2021.xlsx]Feuille de calcul'!$AD$9
A11: Préparation de terrain | B11: Scarifiage en herse/labour | D11: Herses forestières | E11: Fixe | F11: Hectare | G11: Herses forestières | H11: 408.4564515 | I11: 408 | J11: 424.9103437 | K11: 425 | L11: 437.362001 | M11: 437 | N11: [Grilles TSNC 2020-2021.xlsx]Feuille de calcul'!$AD$10
A12: Préparation de terrain | B12: Scarifiage par mixage par placeau | D12: Taupe ou pioche forestière | E12: Fixe | F12: Millier de microsites | G12: Taupe ou pioche forestière | H12: 598.3320966 | I12: 598 | J12: 619.3962351 | K12: 619 | L12: 635.6250678 | M12: 636 | N12: [Grilles TSNC 2020-2021.xlsx]Feuille de calcul'!$AD$11
A13: Préparation de terrain | B13: Déblaiement des résidus de coupe | D13: Bouteur avec pelle râteau | E13: Fixe | F13: Hectare | G13: Bouteur avec pelle râteau | H13: 754.0272413 | I13: 754 | J13: 784.4017964 | K13: 784 | L13: 807.3880627 | M13: 807 | N13: [Grilles TSNC 2020-2021.xlsx]Feuille de calcul'!$AD$12
A14: Préparation de terrain | B14: Déblaiement des résidus de coupe | D14: Abatteuse groupeuse après feux | E14: Fixe | F14: Hectare | G14: Abatteuse groupeuse | H14: 891.8906755 | I14: 892 | J14: 927.8187971 | K14: 928 | L14: 955.0077838 | M14: 955 | N14: [Grilles TSNC 2020-2021.xlsx]Feuille de calcul'!$AD$13
A15: Préparation de terrain | B15: Drainage sylvicole | D15: Milieu dénudé | E15: Fixe | F15: Hectare | G15: Excavatrice | H15: 2311.219513 | I15: 2311 | J15: 2404.322601 | K15: 2404 | L15: 2474.779349 | M15: 2475 | N15: [Grilles TSNC 2020-2021.xlsx]Feuille de calcul'!$AD$14
A16: Préparation de terrain | B16: Drainage sylvicole | D16: Milieu boisé | E16: Fixe | F16: Hectare | G16: Excavatrice | H16: 2567.987216 | I16: 2568 | J16: 2671.433703 | K16: 2671 | L16: 2749.717928 | M16: 2750 | N16: [Grilles TSNC 2020-2021.xlsx]Feuille de calcul'!$AD$15
A17: Préparation de terrain | B17: Scarifiage par monticule ou inversion par placeau ou décapage par placeau | C17: (Variable 1 * R) / e EXP (1,683 * R - 0,299 * TP - 0,313 * TR + 0,17 * PER + 2,014) * VEH | D17: Excavatrice | E17: Variable | F17: Hectare | G17: Excavatrice | H17: 27136.0206 | I17: 27136 | J17: 28229.14364 | K17: 28229 | L17: 29056.37608 | M17: 29056 | N17: [Grilles TSNC 2020-2021.xlsx]Feuille de calcul'!$AD$16
A18: Préparation de terrain | B18: Déblaiement des résidus de coupe | C18: (Variable 1 * R) / e EXP (1,683 * R - 0,299 * TP - 0,313 * TR + 0,17 * PER + 2,014) * VEH | D18: Excavatrice ou débusqueuse ou abatteuse | E18: Variable | F18: Hectare | G18: Excavatrice ou débusqueuse ou abatteuse | H18: 27136.0206 | I18: 27136 | J18: 28229.14364 | K18: 28229 | L18: 29056.37608 | M18: 29056 | N18: [Grilles TSNC 2020-2021.xlsx]Feuille de calcul'!$AD$17
A19: Préparation de terrain | B19: Fertilisation | C19: Origine (2012-2013) : 484$/ha K:\F1411ae\DEEF\1-Valeur des traitements sylvicoles\TSNC\Taux\1_Preparation de terrain\Fertilisation | E19: Fixe | F19: Hectare | H19: 542.1846303 | I19: 542 | J19: 572.2882463 | K19: 572 | L19: 587.2828001 | M19: 587 | N19: [Grilles TSNC 2020-2021.xlsx]Feuille de calcul'!$AD$18
A20: Préparation de terrain | B20: Brûlage | C20: Origine (2014-2015) 220 $/km ou $/ha ou 20 $/andains - calcul modifié en 2019-2020 K:\F1411ae\DEEF\1-Valeur des traitements sylvicoles\TSNC\Taux\1_Preparation de terrain\Brulage_andains | E20: Fixe | F20: Andain | G20: Particulier | H20: 25.52798141 | I20: 26 | J20: 26.94536676 | K20: 27 | L20: 27.6513637 | M20: 28 | N20: [Grilles TSNC 2020-2021.xlsx]Feuille de calcul'!$AD$19
A21: Préparation de terrain | B21: Bouteur modifié R01 | C21: Origine (2018-2019) : 611$/ha K:\F1411ae\DEEF\1-Valeur des traitements sylvicoles\TSNC\Taux\1_Preparation de terrain\Bouteur_deux_dents | D21: Bouteur avec pelle modifiée (deux dents) | E21: Fixe | F21: Hectare | G21: Particulier | H21: 610.2122 | I21: =ROUND(H21,0) -> 610 | J21: 622.9797584 | K21: 623 | L21: 654.2391034 | M21: 654 | N21: [Grilles TSNC 2020-2021.xlsx]Feuille de calcul'!$AD$20
A22: Préparation de terrain | B22: Monticule PEH productivité R04 | C22: Origine 2018-2019 K:\F1411ae\DEEF\1-Valeur des traitements sylvicoles\TSNC\Taux\1_Preparation de terrain\Monticules_PEH | D22: R04-CNESST | E22: Variable | F22: Hectare | G22: Majoration du taux régulier « Scarifiage par monticule ou inversion par placeau ou décapage par placeau » en fonction de la perte de productivité (21,93%) et calibré sur la frais variables à 14,8%. Informations de l'entrepreneur à venir. Aucune indexation à faire, pourcentage appliqué directement sur le taux parent. | H22: - | I22: - | J22: - | K22: - | L22: - | M22: - | N22: -
A23: Préparation de terrain | B23: Monticule et déblaiement productivité R01 | C23: Origine 2019-2020 K:\F1411ae\DEEF\1-Valeur des traitements sylvicoles\TSNC\Taux\1_Preparation de terrain\Monticule et déblaiement combinés | D23: Excavatrice - Traitements combinés R01 | E23: Variable | F23: Hectare | G23: Majoration du taux régulier « Scarifiage par monticule ou inversion par placeau ou décapage par placeau » en fonction de la perte de productivité préliminaire de 67%. Informations de l'entrepreneur à venir. Aucune indexation à faire, pourcentage appliqué directement sur le taux parent. | H23: - | I23: - | J23: - | K23: - | L23: - | M23: - | N23: -
A24: Préparation de terrain | B24: Déblaiement d'hiver | D24: Bouteur à lame tranchante | E24: Fixe | F24: Hectare | G24: Particulier
A25: Préparation de terrain | B25: Broyage | E25: Fixe | F25: Hectare | G25: Particulier
A26: Préparation de terrain | B26: Scarifiage par monticule ou inversion par placeau ou décapage par placeau ET Déblaiement des résidus de coupe | C26: Constante e = 2,718 | E26: Variable | F26: Hectare | G26: Taux moyen | H26: 751.6025819 | I26: 752 | J26: 781.8794642 | K26: 782 | L26: 913.9382197 | M26: 914 | N26: [Grilles TSNC 2020-2021.xlsx]Feuille de calcul'!$AD$25
A27: Plantation uniforme et regarni mécanique | B27: Scarificateur-planteur (Bracke P-11a) | C27: 1500 plants/ha et + Récipient 45-110 | D27: Fixe | E27: Millier de plants | F27: Millier de plants | H27: 1264.560115 | I27: 1265 | J27: 1315.500517 | K27: 1316 | L27: 1354.050206 | M27: =ROUND(L27,0) -> 1354 | N27: [Grilles TSNC 2020-2021.xlsx]Feuille de calcul'!$AD$26
A28: Plantation uniforme et regarni mécanique | B28: Scarificateur-planteur (Bracke P-11a) | C28: 1500 plants/ha et + Récipient 25-200 | D28: Fixe | E28: Millier de plants | F28: Millier de plants | H28: 1291.390037 | I28: 1291 | J28: 1343.411231 | K28: 1343 | L28: 1382.778821 | M28: 1383 | N28: [Grilles TSNC 2020-2021.xlsx]Feuille de calcul'!$AD$27
A29: Plantation uniforme et regarni mécanique | B29: Scarificateur-planteur (Bracke P-11a) | C29: 1499 plants/ha et - Récipient 45-110 | D29: Fixe | E29: Millier de plants | F29: Millier de plants | H29: 1379.256261 | I29: 1379 | J29: 1434.816979 | K29: 1435 | L29: 1476.863141 | M29: 1477 | N29: [Grilles TSNC 2020-2021.xlsx]Feuille de calcul'!$AD$28
A30: Plantation uniforme et regarni mécanique | B30: Scarificateur-planteur (Bracke P-11a) | C30: 1499 plants/ha et - Récipient 25-200 | D30: Fixe | E30: Millier de plants | F30: Millier de plants | H30: 1406.089977 | I30: 1406 | J30: 1462.731641 | K30: 1463 | L30: 1505.59582 | M30: 1506 | N30: [Grilles TSNC 2020-2021.xlsx]Feuille de calcul'!$AD$29
A31: Régénération artificielle | B31: Plantation uniforme PEH | E31: Fixe | F31: Millier de plants | H31: 667.3547427 | I31: 667 | J31: 704.4081555 | K31: 704 | L31: 722.8643899 | M31: 723 | N31: [Grilles TSNC 2020-2021.xlsx]Feuille de calcul'!$AD$30
A32: Régénération artificielle | B32: Plantation par enrichissement | D32: Puit de lumière (300 plants/ha), enrichissement (350plants/ha) ou regarni pins et feuillus (≤799plants/ha) | E32: Fixe | F32: Millier de plants | H32: 719.331609 | I32: 719 | J32: 759.2709236 | K32: 759 | L32: 779.1646202 | M32: 779 | N32: [Grilles TSNC 2020-2021.xlsx]Feuille de calcul'!$AD$31
A33: Régénération artificielle | B33: Ensemencement | D33: Terrestre manuel | E33: Fixe | F33: Hectare | G33: 5000 | H33: 195.2913688 | I33: 195 | J33: 206.134495 | K33: 206 | L33: 211.5354355 | M33: 212 | N33: [Grilles TSNC 2020-2021.xlsx]Feuille de calcul'!$AD$32
A34: Régénération artificielle | B34: Traçabilité | E34: Fixe | F34: Millier de plants | H34: 1.829660393 | I34: 1.83 | J34: 1.93 | K34: =ROUND(J34,2) -> 1.93 | L34: 1.983913432 | M34: =ROUND(L34,2) -> 1.98 | N34: [Grilles TSNC 2020-2021.xlsx]Feuille de calcul'!$AD$33
A35: Régénération artificielle | B35: Plantation uniforme et regarni manuel sauf PEH | C35: Variable 1 - Variable 2 * PR + Variable 3 / (DE * DS) + GABARIT | E35: Variable | F35: Millier de plants | G35: Variable 1 | H35: 107.5303551 | I35: 107.5 | J35: 113.500743 | K35: =ROUND(J35,1) -> 113.5 | L35: 116.4745818 | M35: =ROUND(L35,1) -> 116.5 | N35: [Grilles TSNC 2020-2021.xlsx]Feuille de calcul'!$AD$34
A36: Régénération artificielle | B36: Plantation uniforme et regarni manuel sauf PEH | C36: Variable 1 - Variable 2 * PR + Variable 3 / (DE * DS) + GABARIT | E36: Variable | F36: Millier de plants | G36: Variable 2 | H36: -65.10900748 | I36: -65.11 | J36: -68.72404275 | K36: =ROUND(J36,2) -> -68.72 | L36: -70.52468494 | M36: =ROUND(L36,2) -> -70.52 | N36: [Grilles TSNC 2020-2021.xlsx]Feuille de calcul'!$AD$35
A37: Régénération artificielle | B37: Plantation uniforme et regarni manuel sauf PEH | C37: Variable 1 - Variable 2 * PR + Variable 3 / (DE * DS) + GABARIT | E37: Variable | F37: Millier de plants | G37: Variable 3 | H37: 425014.5573 | I37: 425015 | J37: 448612.5612 | K37: =ROUND(J37,0) -> 448613 | L37: 460366.6821 | M37: =ROUND(L37,0) -> 460367 | N37: [Grilles TSNC 2020-2021.xlsx]Feuille de calcul'!$AD$36
A38: Régénération artificielle | B38: Plantation uniforme et regarni manuel sauf PEH | C38: Variable 1 - Variable 2 * PR + Variable 3 / (DE * DS) + GABARIT | E38: Variable | F38: Millier de plants | G38: Gabarit 113-25 | H38: 82.0117796 | I38: 82 | J38: 86.56530433 | K38: 87 | L38: 88.83340633 | M38: 89 | N38: [Grilles TSNC 2020-2021.xlsx]Feuille de calcul'!$AD$37
A39: Régénération artificielle | B39: Plantation uniforme et regarni manuel sauf PEH | C39: Variable 1 - Variable 2 * PR + Variable 3 / (DE * DS) + GABARIT | E39: Variable | F39: Millier de plants | G39: Gabarit 67-50 | H39: 86.97447077 | I39: 87 | J39: 91.80353808 | K39: 92 | L39: 94.20888731 | M39: 94 | N39: [Grilles TSNC 2020-2021.xlsx]Feuille de calcul'!$AD$38
A40: Régénération artificielle | B40: Plantation uniforme et regarni manuel sauf PEH | C40: Variable 1 - Variable 2 * PR + Variable 3 / (DE * DS) + GABARIT | E40: Variable | F40: Millier de plants | G40: Gabarit 45-110 | H40: 148.5161051 | I40: 149 | J40: 156.762137 | K40: 157 | L40: 160.8694699 | M40: 161 | N40: [Grilles TSNC 2020-2021.xlsx]Feuille de calcul'!$AD$39
A41: Régénération artificielle | B41: Plantation uniforme et regarni manuel sauf PEH | C41: Variable 1 - Variable 2 * PR + Variable 3 / (DE * DS) + GABARIT | E41: Variable | F41: Millier de plants | G41: Gabarit 25-200 | H41: 260.8290965 | I41: 261 | J41: 275.3110617 | K41: 275 | L41: 282.524501 | M41: 283 | N41: [Grilles TSNC 2020-2021.xlsx]Feuille de calcul'!$AD$40
A42: Régénération artificielle | B42: Plantation uniforme et regarni manuel sauf PEH | C42: Variable 1 - Variable 2 * PR + Variable 3 / (DE * DS) + GABARIT | E42: Variable | F42: Millier de plants | G42: Gabarit PFD récipient | H42: 298.7930673 | I42: 299 | J42: 315.382899 | K42: 315 | L42: 323.6462626 | M42: 324 | N42: [Grilles TSNC 2020-2021.xlsx]Feuille de calcul'!$AD$41
A43: Régénération artificielle | B43: Plantation uniforme et regarni manuel sauf PEH | C43: Variable 1 - Variable 2 * PR + Variable 3 / (DE * DS) + GABARIT | E43: Variable | F43: Millier de plants | G43: Gabarit PFD racine nue | H43: 350.8007394 | I43: 351 | J43: 370.2781834 | K43: 370 | L43: 379.9798612 | M43: 380 | N43: [Grilles TSNC 2020-2021.xlsx]Feuille de calcul'!$AD$42
A44: Régénération artificielle | B44: Plantation uniforme et regarni manuel sauf PEH | D44: Taux moyen plantation - Gabarit 113-25 | E44: Variable | F44: Millier de plants | H44: 214.8221583 | I44: 215 | J44: 226.7496889 | K44: 227 | L44: 241.1942939 | M44: 241 | N44: [Grilles TSNC 2020-2021.xlsx]Feuille de calcul'!$AD$43
A45: Régénération artificielle | B45: Plantation uniforme et regarni manuel sauf PEH | D45: Taux moyen plantation - Gabarit 67-50 | E45: Variable | F45: Millier de plants | H45: 230.231544 | I45: 230 | J45: 243.0146471 | K45: 243 | L45: 258.4953766 | M45: 258 | N45: [Grilles TSNC 2020-2021.xlsx]Feuille de calcul'!$AD$44
A46: Régénération artificielle | B46: Plantation uniforme et regarni manuel sauf PEH | D46: Taux moyen plantation - Gabarit 45-110 | E46: Variable | F46: Millier de plants | H46: 287.2625522 | I46: 287 | J46: 303.2121772 | K46: 303 | L46: 322.5276619 | M46: 323 | N46: [Grilles TSNC 2020-2021.xlsx]Feuille de calcul'!$AD$45
A47: Régénération artificielle | B47: Plantation uniforme et regarni manuel sauf PEH | D47: Taux moyen plantation - Gabarit 25-200 | E47: Variable | F47: Millier de plants | H47: 398.7524901 | I47: 399 | J47: 420.8923502 | K47: 421 | L47: 447.7043991 | M47: 448 | N47: [Grilles TSNC 2020-2021.xlsx]Feuille de calcul'!$AD$46
A48: Régénération artificielle | B48: Plantation uniforme et regarni manuel sauf PEH | D48: Taux moyen plantation - Gabarit PFD récipient | E48: Variable | F48: Millier de plants | H48: 443.9481133 | I48: 444 | J48: 468.5973615 | K48: 469 | L48: 498.4483564 | M48: 498 | N48: [Grilles TSNC 2020-2021.xlsx]Feuille de calcul'!$AD$47
A49: Régénération artificielle | B49: Plantation uniforme et regarni manuel sauf PEH | D49: Taux moyen plantation - Gabarit PFD racine nue | E49: Variable | F49: Millier de plants | H49: 488.6947304 | I49: 489 | J49: 515.8284367 | K49: 516 | L49: 548.6881864 | M49: 549 | N49: [Grilles TSNC 2020-2021.xlsx]Feuille de calcul'!$AD$48
A50: Régénération artificielle | B50: Plantation uniforme et regarni manuel sauf PEH | D50: Taux moyen regarni - Gabarit 113-25 | E50: Variable | F50: Millier de plants | H50: 333.6632006 | I50: 334 | J50: 352.1891202 | K50: 352 | L50: 374.6245765 | M50: 375 | N50: [Grilles TSNC 2020-2021.xlsx]Feuille de calcul'!$AD$49
A51: Régénération artificielle | B51: Plantation uniforme et regarni manuel sauf PEH | D51: Taux moyen regarni - Gabarit 67-50 | E51: Variable | F51: Millier de plants | H51: 332.2950266 | I51: 332 | J51: 350.7449814 | K51: 351 | L51: 373.0884419 | M51: 373 | N51: [Grilles TSNC 2020-2021.xlsx]Feuille de calcul'!$AD$50
A52: Régénération artificielle | B52: Plantation uniforme et regarni manuel sauf PEH | D52: Taux moyen regarni - Gabarit 45-110 | E52: Variable | F52: Millier de plants | H52: 379.0533995 | I52: 379 | J52: 400.0995107 | K52: 400 | L52: 425.5869961 | M52: 426 | N52: [Grilles TSNC 2020-2021.xlsx]Feuille de calcul'!$AD$51
A53: Régénération artificielle | B53: Plantation uniforme et regarni manuel sauf PEH | D53: Taux moyen regarni - Gabarit 25-200 | E53: Variable | F53: Millier de plants | H53: 492.0113798 | I53: 492 | J53: 519.3292358 | K53: 519 | L53: 552.4119965 | M53: 552 | N53: [Grilles TSNC 2020-2021.xlsx]Feuille de calcul'!$AD$52
A54: Régénération artificielle | B54: Plantation uniforme et regarni manuel sauf PEH | D54: Taux moyen regarni - Gabarit PFD récipient | E54: Variable | F54: Millier de plants | H54: 516.2229996 | I54: 516 | J54: 544.8851528 | K54: 545 | L54: 579.5958986 | M54: 580 | N54: [Grilles TSNC 2020-2021.xlsx]Feuille de calcul'!$AD$53
A55: Régénération artificielle | B55: Plantation uniforme et regarni manuel sauf PEH | D55: Taux moyen regarni - Gabarit PFD racine nue | E55: Variable | F55: Millier de plants | H55: 579.884156 | I55: 580 | J55: 612.0809558 | K55: 612 | L55: 651.0722668 | M55: 651 | N55: [Grilles TSNC 2020-2021.xlsx]Feuille de calcul'!$AD$54
A56: Régénération artificielle | B56: Plantation uniforme et regarni manuel sauf PEH | D56: Taux moyen plantation - Tous gabarits | E56: Variable | F56: Millier de plants | H56: 288.4103405 | I56: 288 | J56: 304.423694 | K56: 304 | L56: 323.8163558 | M56: 324 | N56: [Grilles TSNC 2020-2021.xlsx]Feuille de calcul'!$AD$55
A57: Régénération artificielle | B57: Plantation uniforme et regarni manuel sauf PEH | D57: Taux moyen regarni - Tous gabarits | E57: Variable | F57: Millier de plants | H57: 390.7936114 | I57: 391 | J57: 412.4915721 | K57: 412 | L57: 438.7684674 | M57: 439 | N57: [Grilles TSNC 2020-2021.xlsx]Feuille de calcul'!$AD$56
A58: Régénération artificielle | B58: Plantation uniforme et regarni manuel sauf PEH | D58: Taux moyen - Total | E58: Variable | F58: Millier de plants | H58: 306.2814463 | I58: 306 | J58: 323.2870539 | K58: 323 | L58: 343.8813657 | M58: 344 | N58: [Grilles TSNC 2020-2021.xlsx]Feuille de calcul'!$AD$57
A59: Éducation de peuplement | B59: Dégagement mécanique de la régénération | C59: Variable 1 + (Variable 2 * RECFFE) + (Variable 3 * DI) + (Variable 4 * MODE) | D59: Variable | E59: Hectare | F59: Hectare | G59: Variable 1 | H59: 831.5778907 | I59: 832 | J59: 876.5173163 | K59: 877 | L59: 899.6328733 | M59: =ROUND(L59,2) -> 899.63 | N59: [Grilles TSNC 2020-2021.xlsx]Feuille de calcul'!$AD$58
A60: Éducation de peuplement | B60: Dégagement mécanique de la régénération | C60: Variable 1 + (Variable 2 * RECFFE) + (Variable 3 * DI) + (Variable 4 * MODE) | D60: Variable | E60: Hectare | F60: Hectare | G60: Variable 2 | H60: 11.74020001 | I60: 11.74 | J60: 12.37465392 | K60: =ROUND(J60,2) -> 12.37 | L60: 12.70099889 | M60: =ROUND(L60,2) -> 12.7 | N60: [Grilles TSNC 2020-2021.xlsx]Feuille de calcul'!$AD$59
A61: Éducation de peuplement | B61: Dégagement mécanique de la régénération | C61: Variable 1 + (Variable 2 * RECFFE) + (Variable 3 * DI) + (Variable 4 * MODE) | D61: Variable | E61: Hectare | F61: Hectare | G61: Variable 3 | H61: 0.004069936002 | I61: 0.0041 | J61: 0.004289880024 | K61: =ROUND(J61,4) -> 0.0043 | L61: 0.004403012947 | M61: =ROUND(L61,4) -> 0.0044 | N61: [Grilles TSNC 2020-2021.xlsx]Feuille de calcul'!$AD$60
A62: Éducation de peuplement | B62: Dégagement mécanique de la régénération | C62: Variable 1 + (Variable 2 * RECFFE) + (Variable 3 * DI) + (Variable 4 * MODE) | D62: Variable | E62: Hectare | F62: Hectare | G62: Variable 4 | H62: 135.7949801 | I62: 135.79 | J62: 143.133497 | K62: =ROUND(J62,2) -> 143.13 | L62: 146.9082204 | M62: =ROUND(L62,2) -> 146.91 | N62: [Grilles TSNC 2020-2021.xlsx]Feuille de calcul'!$AD$61
A63: Éducation de peuplement | B63: Gaulis I | C63: (Variable 1 + (Variable 2 * DI) - (Variable 3 * SRLC)) | D63: Secteur d'intervention sans choix de tige, soit inter spécifique (par groupe d'essence, résineux / feuillus) et sans espacement | E63: Variable | F63: Hectare | G63: Variable 1 | H63: 805.5554687 | I63: 805.56 | J63: 910.2709745 | K63: =ROUND(J63,2) -> 910.27 | L63: Abandonné | M63: Abandonné | N63: Abandonné
A64: Éducation de peuplement | B64: Gaulis I | C64: (Variable 1 + (Variable 2 * DI) - (Variable 3 * SRLC)) | D64: Secteur d'intervention sans choix de tige, soit inter spécifique (par groupe d'essence, résineux / feuillus) et sans espacement | E64: Variable | F64: Hectare | G64: Variable 2 | H64: 0.01032440996 | I64: 0.0103 | J64: 0.0100783 | K64: =ROUND(J64,4) -> 0.0101 | L64: Abandonné | M64: Abandonné | N64: Abandonné
A65: Éducation de peuplement | B65: Gaulis I | C65: (Variable 1 + (Variable 2 * DI) - (Variable 3 * SRLC)) | D65: Secteur d'intervention sans choix de tige, soit inter spécifique (par groupe d'essence, résineux / feuillus) et sans espacement | E65: Variable | F65: Hectare | G65: Variable 3 | H65: -196.8801428 | I65: 196.88 | J65: -373.3058426 | K65: =ROUND(J65,2) -> -373.31 | L65: Abandonné | M65: Abandonné | N65: Abandonné
A66: Éducation de peuplement | B66: Nettoiement d'un peuplement résineux ou mixte (FI) à dominance de résineux en scénario sylvicole de base des peuplements en régénérationa naturelle, en plantation uniforme ou en regarni de la régénération artificielle | C66: (Variable 1 + (Variable 2 * DI) - (Variable 3 * SRLC)) | D66: Équation de Gaulis I 2019-2020 récupérée pour ce traitement | E66: Variable | F66: Hectare | G66: Régulier | L66: 934.2766845 | M66: =ROUND(L66,2) -> 934.28 | N66: [Grilles TSNC 2020-2021.xlsx]Feuille de calcul'!$AD$65
A67: Éducation de peuplement | B67: Nettoiement d'un peuplement résineux ou mixte (FI) à dominance de résineux en scénario sylvicole de base des peuplements en régénérationa naturelle, en plantation uniforme ou en regarni de la régénération artificielle | C67: (Variable 1 + (Variable 2 * DI) - (Variable 3 * SRLC)) | D67: Équation de Gaulis I 2019-2020 récupérée pour ce traitement | E67: Variable | F67: Hectare | G67: Régulier | L67: 0.01034408541 | M67: =ROUND(L67,4) -> 0.0103 | N67: [Grilles TSNC 2020-2021.xlsx]Feuille de calcul'!$AD$66
A68: Éducation de peuplement | B68: Nettoiement d'un peuplement résineux ou mixte (FI) à dominance de résineux en scénario sylvicole de base des peuplements en régénérationa naturelle, en plantation uniforme ou en regarni de la régénération artificielle | C68: (Variable 1 + (Variable 2 * DI) - (Variable 3 * SRLC)) | D68: Équation de Gaulis I 2019-2020 récupérée pour ce traitement | E68: Variable | F68: Hectare | G68: Régulier | L68: -383.1506823 | M68: =ROUND(L68,2) -> -383.15 | N68: [Grilles TSNC 2020-2021.xlsx]Feuille de calcul'!$AD$67
A69: Éducation de peuplement | B69: Gaulis II | C69: Variable 0 + (Variable 1 * ln (DI) - Variable 2) * TP | D69: Secteur d'intervention avec un choix de tige intraspécifique (par essence) et avec un espacement OU secteur d'intervention avec choix de tige résineuse sans espacement | E69: constante | F69: Hectare | G69: Variable 0 | H69: 567.6348383 | I69: 567.63 | J69: 156.3284243 | K69: =ROUND(J69,2) -> 156.33 | L69: Abandonné | M69: Abandonné | N69: Abandonné
A70: Éducation de peuplement | B70: Gaulis II | C70: Variable 0 + (Variable 1 * ln (DI) - Variable 2) * TP | D70: Secteur d'intervention avec un choix de tige intraspécifique (par essence) et avec un espacement OU secteur d'intervention avec choix de tige résineuse sans espacement | E70: Variable | F70: Hectare | G70: Variable 1 | H70: 4387.834198 | I70: 4387.83 | J70: 630.27818 | K70: =ROUND(J70,2) -> 630.28 | L70: Abandonné | M70: Abandonné | N70: Abandonné
A71: Éducation de peuplement | B71: Gaulis II | C71: Variable 0 + (Variable 1 * ln (DI) - Variable 2) * TP | D71: Secteur d'intervention avec un choix de tige intraspécifique (par essence) et avec un espacement OU secteur d'intervention avec choix de tige résineuse sans espacement | E71: Variable | F71: Hectare | G71: Variable 2 | J71: 5094.53909 | K71: =ROUND(J71,0) -> 5095 | L71: Abandonné | M71: Abandonné | N71: Abandonné
A72: Éducation de peuplement | B72: Nettoiement d'un peuplement résineux en scénario intensif ou élite de plantation uniforme et éclaircie précommerciale systématique d'un peuplement résineux en scénario sylvicole intensi ou d'élite des peuplements en régénération naturelle ou en regarni de la régénération artificielle | C72: Variable 0 + (Variable 1 * ln (DI) - Variable 2) * TP | D72: Équation de Gaulis II 2019-2020 récupérée pour ce traitement | E72: Variable | F72: Hectare | G72: Régulier | L72: 160.451125 | M72: 160.45 | N72: [Grilles TSNC 2020-2021.xlsx]Feuille de calcul'!$AD$71
A73: Éducation de peuplement | B73: Nettoiement d'un peuplement résineux en scénario intensif ou élite de plantation uniforme et éclaircie précommerciale systématique d'un peuplement résineux en scénario sylvicole intensi ou d'élite des peuplements en régénération naturelle ou en regarni de la régénération artificielle | C73: Variable 0 + (Variable 1 * ln (DI) - Variable 2) * TP | D73: Équation de Gaulis II 2019-2020 récupérée pour ce traitement | E73: Variable | F73: Hectare | G73: Régulier | L73: 646.8999065 | M73: 646.9 | N73: [Grilles TSNC 2020-2021.xlsx]Feuille de calcul'!$AD$72
A74: Éducation de peuplement | B74: Nettoiement d'un peuplement résineux en scénario intensif ou élite de plantation uniforme et éclaircie précommerciale systématique d'un peuplement résineux en scénario sylvicole intensi ou d'élite des peuplements en régénération naturelle ou en regarni de la régénération artificielle | C74: Variable 0 + (Variable 1 * ln (DI) - Variable 2) * TP | D74: Équation de Gaulis II 2019-2020 récupérée pour ce traitement | E74: Variable | F74: Hectare | G74: Régulier | L74: 5228.89252 | M74: 5228.89 | N74: [Grilles TSNC 2020-2021.xlsx]Feuille de calcul'!$AD$73
A75: Éducation de peuplement | B75: Gaulis III | C75: Variable 0 + (Variable 1 * ln (DI) - Variable 2) * TP | E75: constante | F75: Hectare | G75: Variable 0 | J75: 156.3284243 | K75: =ROUND(J75,2) -> 156.33 | L75: 160.451125 | M75: 160.45 | N75: [Grilles TSNC 2020-2021.xlsx]Feuille de calcul'!$AD$74
A76: Éducation de peuplement | B76: Gaulis III | C76: Variable 0 + (Variable 1 * ln (DI) - Variable 2) * TP | E76: Variable | F76: Hectare | G76: Variable 1 | J76: 479.7452574 | K76: =ROUND(J76,2) -> 479.75 | L76: 492.3971225 | M76: 492.4 | N76: [Grilles TSNC 2020-2021.xlsx]Feuille de calcul'!$AD$75
A77: Éducation de peuplement | B77: Gaulis III | C77: Variable 0 + (Variable 1 * ln (DI) - Variable 2) * TP | E77: Variable | F77: Hectare | G77: Variable 2 | J77: 3727.625098 | K77: =ROUND(J77,0) -> 3728 | L77: 3825.930207 | M77: 3825.93 | N77: [Grilles TSNC 2020-2021.xlsx]Feuille de calcul'!$AD$76
A78: Éducation de peuplement | B78: Éclaircie précommerciale par puit de lumière | C78: Variable 1 * DENSTIGE * EXP (14,052 * HTTIGE) + Variable 3 * DENSTIGE / (Variable 4 * DENSTIGE + Variable 5) + Variable 6 * TAIL + Variable 7 | D78: Variable 1 | E78: Variable | F78: Hectare | G78: Variable 1 | H78: 0.4470027154 | I78: 0.447 | J78: 0.4711592562 | K78: =ROUND(J78,3) -> 0.471 | L78: 0.4835846908 | M78: =ROUND(L78,3) -> 0.484 | N78: [Grilles TSNC 2020-2021.xlsx]Feuille de calcul'!$AD$77
A79: Éducation de peuplement | B79: Éclaircie précommerciale par puit de lumière | C79: Pas utilisé dans la formule | D79: Variable 2 | E79: Variable | F79: Hectare | G79: Pour équation | I79: 0.1452 | K79: 0.1452 | M79: 0.1452
A80: Éducation de peuplement | B80: Éclaircie précommerciale par puit de lumière | C80: Variable 1 * DENSTIGE * EXP (14,052 * HTTIGE) + Variable 3 * DENSTIGE / (Variable 4 * DENSTIGE + Variable 5) + Variable 6 * TAIL + Variable 7 | D80: Variable 3 (martelage) | E80: Variable | F80: Hectare | G80: Variable 3 (martelage) | H80: 36.96231274 | I80: 37 | J80: 39.02676569 | K80: =ROUND(J80,0) -> 39 | L80: 40.04842627 | M80: =ROUND(L80,0) -> 40 | N80: [Grilles TSNC 2020-2021.xlsx]Feuille de calcul'!$AD$78
A81: Éducation de peuplement | B81: Éclaircie précommerciale par puit de lumière | C81: Variable 1 * DENSTIGE * EXP (14,052 * HTTIGE) + Variable 3 * DENSTIGE / (Variable 4 * DENSTIGE + Variable 5) + Variable 6 * TAIL + Variable 7 | D81: variable 4 (martelage) | E81: Variable | F81: Hectare | G81: Variable 4 (martelage) | H81: 0.1203689731 | I81: 0.1204 | J81: 0.1203689731 | K81: =ROUND(J81,4) -> 0.1204 | L81: 0.1203689731 | M81: =ROUND(L81,4) -> 0.1204 | N81: [Grilles TSNC 2020-2021.xlsx]Feuille de calcul'!$AD$79
A82: Éducation de peuplement | B82: Éclaircie précommerciale par puit de lumière | C82: Variable 1 * DENSTIGE * EXP (14,052 * HTTIGE) + Variable 3 * DENSTIGE / (Variable 4 * DENSTIGE + Variable 5) + Variable 6 * TAIL + Variable 7 | D82: variable 5 (martelage) | E82: Variable | F82: Hectare | G82: Variable 5 (martelage) | H82: 98.63217884 | I82: 98.63 | J82: 98.63217884 | K82: =ROUND(J82,2) -> 98.63 | L82: 98.63217884 | M82: =ROUND(L82,2) -> 98.63 | N82: [Grilles TSNC 2020-2021.xlsx]Feuille de calcul'!$AD$80
A83: Éducation de peuplement | B83: Éclaircie précommerciale par puit de lumière | C83: Variable 1 * DENSTIGE * EXP (14,052 * HTTIGE) + Variable 3 * DENSTIGE / (Variable 4 * DENSTIGE + Variable 5) + Variable 6 * TAIL + Variable 7 | D83: variable 6 (taille) | E83: Variable | F83: Hectare | G83: Variable 6 (taille) | H83: 42.91168932 | I83: 42.91 | J83: 45.23068636 | K83: 45.23 | L83: 46.4235122 | M83: 46.42 | N83: [Grilles TSNC 2020-2021.xlsx]Feuille de calcul'!$AD$81
A84: Éducation de peuplement | B84: Éclaircie précommerciale par puit de lumière | C84: Variable 1 * DENSTIGE * EXP (14,052 * HTTIGE) + Variable 3 * DENSTIGE / (Variable 4 * DENSTIGE + Variable 5) + Variable 6 * TAIL + Variable 7 | D84: variable 7 (constante totale) | E84: Variable | F84: Hectare | G84: Variable 7 (constante totale) | H84: 782.2860772 | I84: 782.29 | J84: 824.5617165 | K84: 824.56 | L84: 846.3070978 | M84: 846.31 | N84: [Grilles TSNC 2020-2021.xlsx]Feuille de calcul'!$AD$82
A85: Éducation de peuplement | B85: Éclaircie précommerciale par puit de lumière | C85: Pas utilisé dans la formule | D85: variable 8 (constante exécution) | E85: Variable | F85: Hectare | G85: Variable 8 (constante exécution) | H85: 634.0746169 | I85: 634.07 | J85: 668.2849325 | K85: 668.28 | L85: 668.2849325 | M85: 668.28 | N85: [Grilles TSNC 2020-2021.xlsx]Feuille de calcul'!$AD$83
A86: Éducation de peuplement | B86: Éclaircie précommerciale par puit de lumière | C86: Pas utilisé dans la formule | D86: variable 9 (constante martelage et taille) | E86: Variable | F86: Hectare | G86: Variable 9 (constante martelage et taille) | H86: 148.2114603 | I86: 148.21 | J86: 156.2767839 | K86: 156.28 | L86: 156.2767839 | M86: 156.28 | N86: [Grilles TSNC 2020-2021.xlsx]Feuille de calcul'!$AD$84
A87: Éducation de peuplement | B87: Éclaircie précommerciale par puit de lumière | C87: Pas utilisé dans la formule | D87: variable 10 (constante martelage) | E87: Variable | F87: Hectare | G87: Variable 10 (constante martelage) | H87: 30.80192728 | I87: 30.8 | J87: 32.52230474 | K87: 32.52 | L87: 33.37368855 | M87: 33.37 | N87: [Grilles TSNC 2020-2021.xlsx]Feuille de calcul'!$AD$85
A88: Éducation de peuplement | B88: Éclaircie précommerciale par puit de lumière | C88: Pas utilisé dans la formule | D88: variable 11 (constante taille) | E88: Variable | F88: Hectare | G88: Variable 11 (constante taille) | H88: 117.409533 | I88: 117.41 | J88: 123.7544792 | K88: 123.75 | L88: 127.0181383 | M88: 127.02 | N88: [Grilles TSNC 2020-2021.xlsx]Feuille de calcul'!$AD$86
A89: Éducation de peuplement | B89: Élagage à des fins de qualité pour le pin blanc et le pin rouge | C89: (Variable 1 * BRAN + Variable 2 + Variable 3 * LONGELA) + (Variable 4 * ln (DENSELA) + Variable 5)) * DENSELA) + MP + Variable 8 | D89: Variable 1 | E89: Variable | F89: Hectare | G89: Variable 1 | H89: 0.02401219359 | I89: 0.024 | J89: 0.02530984014 | K89: =ROUND(J89,3) -> 0.025 | L89: 0.02597731247 | M89: =ROUND(L89,3) -> 0.026 | N89: [Grilles TSNC 2020-2021.xlsx]Feuille de calcul'!$AD$87
A90: Éducation de peuplement | B90: Élagage à des fins de qualité pour le pin blanc et le pin rouge | C90: (Variable 1 * BRAN + Variable 2 + Variable 3 * LONGELA) + (Variable 4 * ln (DENSELA) + Variable 5)) * DENSELA) + MP + Variable 8 | D90: Variable 2 | E90: Variable | F90: Hectare | G90: Variable 2 | H90: 0.3492895672 | I90: 0.3493 | J90: 0.3681655771 | K90: =ROUND(J90,4) -> 0.3682 | L90: 0.3778748574 | M90: =ROUND(L90,4) -> 0.3779 | N90: [Grilles TSNC 2020-2021.xlsx]Feuille de calcul'!$AD$88
A91: Éducation de peuplement | B91: Élagage à des fins de qualité pour le pin blanc et le pin rouge | C91: (Variable 1 * BRAN + Variable 2 + Variable 3 * LONGELA) + (Variable 4 * ln (DENSELA) + Variable 5)) * DENSELA) + MP + Variable 8 | D91: Variable 3 | E91: Variable | F91: Hectare | G91: Variable 3 | H91: 0.581680748 | I91: 0.5817 | J91: 0.6131154446 | K91: =ROUND(J91,4) -> 0.6131 | L91: 0.6292845547 | M91: =ROUND(L91,4) -> 0.6293 | N91: [Grilles TSNC 2020-2021.xlsx]Feuille de calcul'!$AD$89
A92: Éducation de peuplement | B92: Élagage à des fins de qualité pour le pin blanc et le pin rouge | C92: (Variable 1 * BRAN + Variable 2 + Variable 3 * LONGELA) + (Variable 4 * ln (DENSELA) + Variable 5)) * DENSELA) + MP + Variable 8 | D92: Variable 4 | E92: Variable | F92: Hectare | G92: Variable 4 | H92: 0.05809779521 | I92: 0.0581 | J92: 0.06123746688 | K92: =ROUND(J92,4) -> 0.0612 | L92: 0.06285242431 | M92: =ROUND(L92,4) -> 0.0629 | N92: [Grilles TSNC 2020-2021.xlsx]Feuille de calcul'!$AD$90
A93: Éducation de peuplement | B93: Élagage à des fins de qualité pour le pin blanc et le pin rouge | C93: (Variable 1 * BRAN + Variable 2 + Variable 3 * LONGELA) + (Variable 4 * ln (DENSELA) + Variable 5)) * DENSELA) + MP + Variable 8 | D93: Variable 5 | E93: Variable | F93: Hectare | G93: Variable 5 | H93: 0.4918611982 | I93: 0.4919 | J93: 0.518441943 | K93: =ROUND(J93,4) -> 0.5184 | L93: 0.5321143189 | M93: =ROUND(L93,4) -> 0.5321 | N93: [Grilles TSNC 2020-2021.xlsx]Feuille de calcul'!$AD$91
A94: Éducation de peuplement | B94: Élagage à des fins de qualité pour le pin blanc et le pin rouge | C94: (Variable 1 * BRAN + Variable 2 + Variable 3 * LONGELA) + (Variable 4 * ln (DENSELA) + Variable 5)) * DENSELA) + MP + Variable 8 | D94: Variable 6 (martelage) | E94: Variable | F94: Hectare | G94: Variable 6 (martelage) | H94: 117.3841068 | I94: 117.38 | J94: 123.9403514 | K94: =ROUND(J94,2) -> 123.94 | L94: 127.1578969 | M94: =ROUND(L94,2) -> 127.16 | N94: [Grilles TSNC 2020-2021.xlsx]Feuille de calcul'!$AD$92
A95: Éducation de peuplement | B95: Élagage à des fins de qualité pour le pin blanc et le pin rouge | C95: (Variable 1 * BRAN + Variable 2 + Variable 3 * LONGELA) + (Variable 4 * ln (DENSELA) + Variable 5)) * DENSELA) + MP + Variable 8 | D95: Variable 7 (martelage) | E95: Variable | F95: Hectare | G95: Variable 7 (martelage) | H95: 175.7077488 | I95: 175.71 | J95: 185.5215389 | K95: =ROUND(J95,2) -> 185.52 | L95: 190.3377589 | M95: =ROUND(L95,2) -> 190.34 | N95: [Grilles TSNC 2020-2021.xlsx]Feuille de calcul'!$AD$93
A96: Éducation de peuplement | B96: Élagage à des fins de qualité pour le pin blanc et le pin rouge | C96: (Variable 1 * BRAN + Variable 2 + Variable 3 * LONGELA) + (Variable 4 * ln (DENSELA) + Variable 5)) * DENSELA) + MP + Variable 8 | D96: Variable 8 | E96: Variable | F96: Hectare | G96: Variable 8 | H96: 556.3800953 | I96: 556.38 | J96: 586.4475155 | K96: =ROUND(J96,2) -> 586.45 | L96: 601.9133377 | M96: =ROUND(L96,2) -> 601.91 | N96: [Grilles TSNC 2020-2021.xlsx]Feuille de calcul'!$AD$94
A97: Éducation de peuplement | B97: Taille phytosanitaire | E97: Variable | F97: Hectare | G97: Variable 1 | H97: 0.01856371934 | I97: 0.0186 | J97: 0.01956692408 | K97: =ROUND(J97,4) -> 0.0196 | L97: 0.02008294395 | M97: =ROUND(L97,4) -> 0.0201 | N97: [Grilles TSNC 2020-2021.xlsx]Feuille de calcul'!$AD$95
A98: Éducation de peuplement | B98: Taille phytosanitaire | E98: Variable | F98: Hectare | G98: Variable 2 | H98: 0.08897002074 | I98: 0.089 | J98: 0.09377806299 | K98: =ROUND(J98,4) -> 0.0938 | L98: 0.09625118258 | M98: =ROUND(L98,4) -> 0.0963 | N98: [Grilles TSNC 2020-2021.xlsx]Feuille de calcul'!$AD$96
A99: Éducation de peuplement | B99: Taille phytosanitaire | E99: Variable | F99: Hectare | G99: Variable 3 | H99: 0.05614393166 | I99: 0.0561 | J99: 0.0591780143 | K99: =ROUND(J99,4) -> 0.0592 | L99: 0.06073865975 | M99: =ROUND(L99,4) -> 0.0607 | N99: [Grilles TSNC 2020-2021.xlsx]Feuille de calcul'!$AD$97
A100: Éducation de peuplement | B100: Taille phytosanitaire | E100: Variable | F100: Hectare | G100: Variable 4 | H100: 0.4758650982 | I100: 0.4759 | J100: 0.5015813954 | K100: =ROUND(J100,4) -> 0.5016 | L100: 0.5148091241 | M100: =ROUND(L100,4) -> 0.5148 | N100: [Grilles TSNC 2020-2021.xlsx]Feuille de calcul'!$AD$98
A101: Éducation de peuplement | B101: Taille phytosanitaire | E101: Variable | F101: Hectare | G101: Variable 5 | H101: 0.1011949091 | I101: 0.1 | J101: 0.1066635984 | K101: =ROUND(J101,1) -> 0.1 | L101: 0.1094765359 | M101: =ROUND(L101,1) -> 0.1 | N101: [Grilles TSNC 2020-2021.xlsx]Feuille de calcul'!$AD$99
A102: Éducation de peuplement | B102: Taille phytosanitaire | E102: Variable | F102: Hectare | G102: Variable 6 | H102: 0.4497174204 | I102: 0.4497 | J102: 0.474020667 | K102: =ROUND(J102,4) -> 0.474 | L102: 0.4865215628 | M102: =ROUND(L102,4) -> 0.4865 | N102: [Grilles TSNC 2020-2021.xlsx]Feuille de calcul'!$AD$100
A103: Éducation de peuplement | B103: Taille phytosanitaire | E103: Variable | F103: Hectare | G103: Variable 7 | H103: 537.6687004 | I103: 538 | J103: 566.7249353 | K103: =ROUND(J103,0) -> 567 | L103: 581.6706326 | M103: =ROUND(L103,2) -> 581.67 | N103: [Grilles TSNC 2020-2021.xlsx]Feuille de calcul'!$AD$101
A104: Éducation de peuplement | B104: Dépressage | C104: Origine (2019-2020) : Équation Gaulis II calibrée à 60% des frais variables K:\F1411ae\DEEF\1-Valeur des traitements sylvicoles\TSNC\Taux\3_EducationPeuplement\Depressage | E104: Variable | F104: Hectare | G104: Variable 0 | H104: 0 | I104: 0 | J104: 156.3284243 | K104: 156.33 | L104: 160.451125 | M104: =ROUND(L104,2) -> 160.45 | N104: [Grilles TSNC 2020-2021.xlsx]Feuille de calcul'!$AD$102
A105: Éducation de peuplement | B105: Dépressage | E105: Variable | F105: Hectare | G105: Variable 1 | H105: 0 | I105: 0 | J105: 378.17 | K105: 378.17 | L105: 388.1431175 | M105: =ROUND(L105,2) -> 388.14 | N105: [Grilles TSNC 2020-2021.xlsx]Feuille de calcul'!$AD$103
A106: Éducation de peuplement | B106: Dépressage | E106: Variable | F106: Hectare | G106: Variable 2 | H106: 0 | I106: 0 | J106: 3057 | K106: 3057 | L106: 3137.619351 | M106: =ROUND(L106,2) -> 3137.62 | N106: [Grilles TSNC 2020-2021.xlsx]Feuille de calcul'!$AD$104
A107: Éducation de peuplement | B107: Débrousaillement manuel | C107: Origine (2017-2018) et modifications aux catégories en 2018-2019 : Variable selon niveau de difficulté et certaines caractéristiques d'inventaire. Les taux 2018-2019 sont la base formelle de départ. K:\F1411ae\DEEF\1-Valeur des traitements sylvicoles\TSNC\Taux\3_EducationPeuplement\Débrousaillement manuel | D107: Traitement PRT assimilé à la famille EP | E107: Variable | F107: Hectare | H107: 544.7216137 | I107: 599 | J107: 574.1589962 | K107: 574 | L107: 589.3007449 | M107: =ROUND(L107,0) -> 589 | N107: [Grilles TSNC 2020-2021.xlsx]Feuille de calcul'!$AD$105
A108: Éducation de peuplement | B108: Débrousaillement manuel | D108: Traitement PRT assimilé à la famille EP | E108: Variable | F108: Hectare | H108: 857.8610257 | I108: 944 | J108: 904.2208221 | K108: 904 | L108: 928.0669772 | M108: =ROUND(L108,0) -> 928 | N108: [Grilles TSNC 2020-2021.xlsx]Feuille de calcul'!$AD$106
A109: Éducation de peuplement | B109: Débrousaillement manuel | D109: Traitement PRT assimilé à la famille EP | E109: Variable | F109: Hectare | H109: 1158.917888 | I109: 1275 | J109: 1221.547143 | K109: 1222 | L109: 1253.761844 | M109: =ROUND(L109,0) -> 1254 | N109: [Grilles TSNC 2020-2021.xlsx]Feuille de calcul'!$AD$107
A110: Éducation de peuplement | B110: Débrousaillement manuel | D110: Traitement PRT assimilé à la famille EP | E110: Variable | F110: Hectare | H110: 1361.300595 | I110: 1497 | J110: 1434.866844 | K110: 1435 | L110: 1472.707222 | M110: =ROUND(L110,0) -> 1473 | N110: [Grilles TSNC 2020-2021.xlsx]Feuille de calcul'!$AD$108
A111: Éducation de peuplement | B111: Nettoiement HEG | C111: Origine (2018-2019) : adaptation de l'équation Gaulis I de 2018-2019. Le taux 2019-2020 est la base formelle de départ. K:\F1411ae\DEEF\1-Valeur des traitements sylvicoles\TSNC\Taux\3_EducationPeuplement\Nettoiement HEG | E111: Variable | F111: Hectare | G111: Variable 1 | H111: 805.5554687 | I111: 765.28 | J111: 795.1235254 | K111: 795.12 | L111: 816.0925614 | M111: =ROUND(L111,2) -> 816.09 | N111: [Grilles TSNC 2020-2021.xlsx]Feuille de calcul'!$AD$109
A112: Éducation de peuplement | B112: Nettoiement HEG | E112: Variable | F112: Hectare | G112: Variable 2 | H112: 0.01032440996 | I112: 0.0103 | J112: 0.01072706195 | K112: 0.0107 | L112: 0.01100995654 | M112: =ROUND(L112,4) -> 0.011 | N112: [Grilles TSNC 2020-2021.xlsx]Feuille de calcul'!$AD$110
A113: Éducation de peuplement | B113: Nettoiement HEG | E113: Variable | F113: Hectare | G113: Variable 3 | H113: -196.8801428 | I113: -196.88 | J113: -204.5584684 | K113: -204.56 | L113: -209.9530942 | M113: =ROUND(L113,2) -> -209.95 | N113: [Grilles TSNC 2020-2021.xlsx]Feuille de calcul'!$AD$111
A114: Éducation de peuplement | B114: Nettoiement HEG | E114: Variable | F114: Hectare | G114: Variable 4 | J114: 1.165 | K114: 1.165 | L114: 1.165 | M114: =L114 -> 1.165 | N114: [Grilles TSNC 2020-2021.xlsx]Feuille de calcul'!$AD$112
A115: Éducation de peuplement | B115: Dégagement mécanique de la régénération | C115: Variable 1 + (Variable 2 * RECFFE) + (Variable 3 * DI) + (Variable 4 * MODE) | E115: Variable | F115: Hectare | G115: Taux moyen | H115: 1254.288267 | I115: 1254 | J115: 1322.071447 | K115: 1322 | L115: 1507.254058 | M115: =ROUND(L115,0) -> 1507 | N115: [Grilles TSNC 2020-2021.xlsx]Feuille de calcul'!$AD$113
A116: Éducation de peuplement | B116: Gaulis I | C116: (Variable 1 + (Variable 2 * DI) - (Variable 3 * SRLC)) * CP | D116: Secteur d'intervention sans choix de tige, soit inter spécifique (par groupe d'essence, résineux / feuillus) et sans espacement | E116: Variable | F116: Hectare | G116: Taux moyen | H116: 1075.469733 | I116: 1075 | J116: 1133.589354 | K116: 1134 | L116: 1170.759921 | M116: 1171 | N116: [Grilles TSNC 2020-2021.xlsx]Feuille de calcul'!$AD$114
A117: Éducation de peuplement | B117: Gaulis II | C117: (Variable 1 * ln (DI) - Variable 2) * TP * CP1 | D117: Secteur d'intervention avec un choix de tige intraspécifique (par essence) et avec un espacement OU secteur d'intervention avec choix de tige résineuse sans espacement | E117: Variable | F117: Hectare | G117: Taux moyen | H117: 1299.241062 | I117: 1299 | J117: 1369.453543 | K117: 1369 | L117: 1320.218553 | M117: 1320 | N117: [Grilles TSNC 2020-2021.xlsx]Feuille de calcul'!$AD$115
A118: Éducation de peuplement | B118: Éclaircie précommerciale par puits de lumière | C118: Variable 1 * DENSTIGE * EXP (14,052 * HTTIGE) + Variable 3 * DENSTIGE / (Variable 4 * DENSTIGE + Variable 5) + Variable 6 * TAIL + Variable 7 | E118: Variable | F118: Hectare | G118: Taux moyen | H118: 1337.959849 | I118: 1338 | J118: 1410.264738 | K118: 1410 | L118: 1355.795446 | M118: 1356 | N118: [Grilles TSNC 2020-2021.xlsx]Feuille de calcul'!$AD$116
A119: Éducation de peuplement | B119: Élagage pour fins de qualité du pin blanc et rouge | C119: Élagage pour fins de qualité du pin blanc et rouge | D119: Variable | E119: Hectare | F119: Taux moyen | G119: Taux moyen | H119: 1451.972078 | I119: 1452 | J119: 1530.438319 | K119: 1530 | L119: 1090.720708 | M119: 1091 | N119: [Grilles TSNC 2020-2021.xlsx]Feuille de calcul'!$AD$117
A120: Éducation de peuplement | B120: Taille phytosanitaire | C120: ((Variable 1 * BRAN + Variable 2 + (Variable 3 * ln (DENSELA) + Variable 4)) * DENSELA) + Variable 5 * DENSCO + Variable 7 * DENSTF + Variable 8 | E120: Variable | F120: Hectare | G120: Taux moyen | H120: 471.7833572 | I120: 472 | J120: 497.2790724 | K120: 497 | L120: 914.7211542 | M120: 915 | N120: [Grilles TSNC 2020-2021.xlsx]Feuille de calcul'!$AD$118
A121: Éclaircie commerciale EAF | B121: Première éclaircie commerciale de plantation résineuse réservé aux entreprises d'aménagement forestier | C121: (Variable 1 * VREC EXP Variable 2) + Variable 3 | D121: Pourcentage de majoration pour les opérations manuelles | E121: Variable | F121: Hectare | G121: TSC | H121: 0.35 | I121: 0.35 | J121: 0.36 | K121: =ROUND(J121,2) -> 0.36 | L121: 0.34 | M121: =ROUND(L121,2) -> 0.34 | N121: [Grilles TSNC 2020-2021.xlsx]Feuille de calcul'!AG$119
A122: Éclaircie commerciale EAF | B122: Première éclaircie commerciale de plantation résineuse réservé aux entreprises d'aménagement forestier | C122: (Variable 1 * VREC EXP Variable 2) + Variable 3 | D122: Formule taux | E122: Variable | F122: Hectare | G122: TSC | H122: 4.861 | I122: 4.861 | J122: 4.944 | K122: =ROUND(J122,3) -> 4.944 | L122: 5.118 | M122: =ROUND(L122,3) -> 5.118 | N122: [Grilles TSNC 2020-2021.xlsx]Feuille de calcul'!$AE$120
A123: Éclaircie commerciale EAF | B123: Première éclaircie commerciale de plantation résineuse réservé aux entreprises d'aménagement forestier | C123: (Variable 1 * VREC EXP Variable 2) + Variable 3 | D123: Formule taux | E123: Variable | F123: Hectare | G123: TSC | H123: -0.682 | I123: -0.682 | J123: -0.682 | K123: =ROUND(J123,3) -> -0.682 | L123: -0.682 | M123: =ROUND(L123,3) -> -0.682 | N123: [Grilles TSNC 2020-2021.xlsx]Feuille de calcul'!$AE$121
A124: Éclaircie commerciale EAF | B124: Première éclaircie commerciale de plantation résineuse réservé aux entreprises d'aménagement forestier | C124: (Variable 1 * VREC EXP Variable 2) + Variable 3 | D124: Formule taux | E124: Variable | F124: Hectare | G124: TSC | H124: 8.916 | I124: 8.916 | J124: 9.086 | K124: =ROUND(J124,3) -> 9.086 | L124: 9.379 | M124: =ROUND(L124,3) -> 9.379 | N124: [Grilles TSNC 2020-2021.xlsx]Feuille de calcul'!$AE$122
A125: Éclaircie commerciale EAF | B125: Première éclaircie commerciale de plantation résineuse réservé aux entreprises d'aménagement forestier | C125: Variable * Espacement -1 | D125: Formule RUB1 | E125: Variable | F125: Hectare | G125: TSC | H125: 1145 | I125: 1145 | J125: 1208.951589 | K125: =ROUND(J125,0) -> 1209 | L125: Abandonné | M125: =L125 -> Abandonné | N125: Abandonné
A126: Éclaircie commerciale EAF | B126: Première éclaircie commerciale de plantation résineuse réservé aux entreprises d'aménagement forestier | C126: Origine 2020-2021 | D126: Portion délimitation physique (ruban) ou virtuelles (GPS ou autre) inclue dans le taux d'exécution | E126: Variable | F126: Hectare | G126: TSC | L126: 55.91 | M126: =ROUND(L126,2) -> 55.91 | N126: [Grilles TSNC 2020-2021.xlsx]Feuille de calcul'!$AD$124
A127: Éclaircie commerciale EAF | B127: Première éclaircie commerciale de plantation résineuse réservé aux entreprises d'aménagement forestier | E127: Variable | F127: Hectare | G127: TSC - Taux Moyen | H127: - | I127: - | J127: - | K127: - | L127: 1830 | M127: =ROUND(L127,0) -> 1830 | N127: [Grilles TSNC 2020-2021.xlsx]Feuille de calcul'!$AD$125
A128: Travaux techniques | B128: Vérification technique | C128: Inventaire après traitement | D128: Traitement de préparation de site mécanisé | E128: Variable | F128: PE | G128: PE + (Nb * Critère #1) + (Nb * Critère #2) | H128: 37.25034714 | I128: 37 | J128: 35.69968067 | K128: =ROUND(J128,0) -> 36 | L128: 36.62645993 | M128: =ROUND(L128,0) -> 37 | N128: [Grilles TSNC 2020-2021.xlsx]Feuille de calcul'!$AD$126
A129: Travaux techniques | B129: Vérification technique | C129: Inventaire après traitement | D129: Traitement de préparation de site mécanisé | E129: Variable | F129: Critère | G129: Critère #1 | H129: 2.172827258 | I129: 2.17 | J129: 2.263484689 | K129: =ROUND(J129,2) -> 2.26 | L129: 2.322245737 | M129: =ROUND(L129,2) -> 2.32 | N129: [Grilles TSNC 2020-2021.xlsx]Feuille de calcul'!$AD$127
A130: Travaux techniques | B130: Vérification technique | C130: Inventaire après traitement | D130: Traitement de préparation de site mécanisé | E130: Variable | F130: Critère | G130: Critère #2 | H130: - | I130: - | J130: 10.12472074 | K130: =ROUND(J130,2) -> 10.12 | L130: 10.3875629 | M130: =ROUND(L130,2) -> 10.39 | N130: [Grilles TSNC 2020-2021.xlsx]Feuille de calcul'!$AD$128
A131: Travaux techniques | B131: Vérification technique | C131: Inventaire après traitement | D131: Traitement de préparation de site manuelle | E131: Fixe | F131: PE | H131: 22.04740333 | I131: 22 | J131: 24.44275586 | K131: =ROUND(J131,0) -> 24 | L131: 25.07730044 | M131: =ROUND(L131,0) -> 25 | N131: [Grilles TSNC 2020-2021.xlsx]Feuille de calcul'!$AD$129
A132: Travaux techniques | B132: Vérification technique | C132: Inventaire après traitement | D132: Traitement de préparation de site drainage sylvicole | E132: Fixe | F132: PE | H132: 41.08515435 | I132: 41 | J132: 45.54887402 | K132: =ROUND(J132,0) -> 46 | L132: 46.73134263 | M132: =ROUND(L132,0) -> 47 | N132: [Grilles TSNC 2020-2021.xlsx]Feuille de calcul'!$AD$130
A133: Travaux techniques | B133: Vérification technique | C133: Inventaire après traitement | D133: Traitement de régénération artificielle | E133: Variable | F133: PE | G133: PE + (Nb * Critère #3) + (Nb * Critère #4) | H133: 35.57589935 | I133: 36 | J133: 39.44106293 | K133: =ROUND(J133,0) -> 39 | L133: 40.46497009 | M133: =ROUND(L133,0) -> 40 | N133: [Grilles TSNC 2020-2021.xlsx]Feuille de calcul'!$AD$131
A134: Travaux techniques | B134: Vérification technique | C134: Inventaire après traitement | D134: Traitement de régénération artificielle | E134: Variable | F134: Critère | G134: Critère #3 | H134: 0.4448092605 | I134: 0.44 | J134: 0.4573162942 | K134: =ROUND(J134,2) -> 0.46 | L134: 0.4691884244 | M134: =ROUND(L134,2) -> 0.47 | N134: [Grilles TSNC 2020-2021.xlsx]Feuille de calcul'!$AD$132
A135: Travaux techniques | B135: Vérification technique | C135: Inventaire après traitement | D135: Traitement de régénération artificielle | E135: Variable | F135: Critère | G135: Critère #4 | J135: 2.24791875 | K135: =ROUND(J135,2) -> 2.25 | L135: - | M135: =L135 -> - | N135: [Grilles TSNC 2020-2021.xlsx]Feuille de calcul'!$AD$133
A136: Travaux techniques | B136: Vérification technique | C136: Inventaire après traitement | D136: Traitement d'éducation de peuplement | E136: Variable | F136: PE | G136: PE + (Nb * Critère #5) + (Nb * Critère #6) | H136: 89.38927594 | I136: 89 | J136: 99.10102404 | K136: =ROUND(J136,0) -> 99 | L136: 101.6737298 | M136: =ROUND(L136,0) -> 102 | N136: [Grilles TSNC 2020-2021.xlsx]Feuille de calcul'!$AD$134
A137: Travaux techniques | B137: Vérification technique | C137: Inventaire après traitement | D137: Traitement d'éducation de peuplement | E137: Variable | F137: Critère | G137: Critère #5 | H137: 3.352505341 | I137: 3.35 | J137: 3.367510894 | K137: =ROUND(J137,2) -> 3.37 | L137: 3.454932943 | M137: =ROUND(L137,2) -> 3.45 | N137: [Grilles TSNC 2020-2021.xlsx]Feuille de calcul'!$AD$135
A138: Travaux techniques | B138: Vérification technique | C138: Inventaire après traitement | D138: Traitement d'éducation de peuplement | E138: Variable | F138: Critère | G138: Fusionné en 2019-2020 avec le critère #5 | H138: 0.6705010682 | I138: 0.67 | J138: - | K138: - | L138: - | M138: - | N138: [Grilles TSNC 2020-2021.xlsx]Feuille de calcul'!$AD$136
A139: Travaux techniques | B139: Vérification technique | C139: Inventaire après traitement | D139: Traitement d'éducation de peuplement | E139: Variable | F139: Critère | G139: Critère #6 | H139: 6.705010682 | I139: 6.71 | J139: 6.735021788 | K139: =ROUND(J139,2) -> 6.74 | L139: 6.909865886 | M139: =ROUND(L139,2) -> 6.91 | N139: [Grilles TSNC 2020-2021.xlsx]Feuille de calcul'!$AD$137
A140: Travaux techniques | B140: Planification | C140: Recherche de secteur d'intervention potentiel (terrain) | D140: Traitement de préparation de site et régénération artificielle | E140: Fixe | F140: Hectare | H140: 4.807925308 | I140: 5 | J140: 5.330285054 | K140: =ROUND(J140,0) -> 5 | L140: 5.468661575 | M140: =ROUND(L140,0) -> 5 | N140: [Grilles TSNC 2020-2021.xlsx]Feuille de calcul'!$AD$138
A141: Travaux techniques | B141: Planification | C141: Recherche de secteur d'intervention potentiel (terrain) | D141: Traitement d'éducation de peuplement | E141: Fixe | F141: Hectare | H141: 9.116705303 | I141: 9 | J141: 10.10719487 | K141: 10 | L141: 10.36958205 | M141: 10 | N141: [Grilles TSNC 2020-2021.xlsx]Feuille de calcul'!$AD$139
A142: Travaux techniques | B142: Planification | C142: Recherche de secteur d'intervention trouvé (terrain) | D142: Traitement de préparation de site et régénération artificielle | E142: Fixe | F142: Hectare | H142: 11.19807482 | I142: 11 | J142: 12.41469595 | K142: 12 | L142: 12.73698687 | M142: 13 | N142: [Grilles TSNC 2020-2021.xlsx]Feuille de calcul'!$AD$140
A143: Travaux techniques | B143: Planification | C143: Recherche de secteur d'intervention trouvé (terrain) | D143: Traitement d'éducation de peuplement | E143: Fixe | F143: Hectare | H143: 16.20154717 | I143: 16 | J143: 17.96177337 | K143: 18 | L143: 18.42806883 | M143: 18 | N143: [Grilles TSNC 2020-2021.xlsx]Feuille de calcul'!$AD$141
A144: Travaux techniques | B144: Planification | C144: Confection du plan de sondage | E144: Fixe | F144: Hectare | H144: 1.881165099 | I144: 2 | J144: 2.085545338 | K144: 2 | L144: 2.139687004 | M144: =ROUND(L144,2) -> 2.14 | N144: [Grilles TSNC 2020-2021.xlsx]Feuille de calcul'!$AD$142
A145: Travaux techniques | B145: Planification | C145: Inventaire avant traitement | D145: Traitement de préparation de site (sauf drainage sylvicole) | E145: Variable | F145: PE | G145: PE + (Nb * Critère #7) + (Nb * (Critère #8) | H145: 30.63190083 | I145: 31 | J145: 33.95992091 | K145: 34 | L145: 34.84153524 | M145: 35 | N145: [Grilles TSNC 2020-2021.xlsx]Feuille de calcul'!$AD$143
A146: Travaux techniques | B146: Planification | C146: Inventaire avant traitement | D146: Traitement de préparation de site (sauf drainage sylvicole) | E146: Variable | F146: Critère | G146: Critère #7 | H146: - | I146: - | J146: 0.4656311359 | K146: =ROUND(J146,2) -> 0.47 | L146: 0.477719123 | M146: =ROUND(L146,2) -> 0.48 | N146: [Grilles TSNC 2020-2021.xlsx]Feuille de calcul'!$AD$144
A147: Travaux techniques | B147: Planification | C147: Inventaire avant traitement | D147: Traitement de préparation de site (sauf drainage sylvicole) | E147: Variable | F147: Critère | G147: Critère #8 | H147: - | I147: - | J147: 2.32815568 | K147: =ROUND(J147,2) -> 2.33 | L147: 2.388595615 | M147: =ROUND(L147,2) -> 2.39 | N147: [Grilles TSNC 2020-2021.xlsx]Feuille de calcul'!$AD$145
A148: Travaux techniques | B148: Planification | C148: Inventaire avant traitement | D148: Traitement de régénération artificielle | E148: Variable | F148: PE | G148: PE + (Nb * Critère #9) | H148: - | I148: - | J148: 25.68203404 | K148: =ROUND(J148,0) -> 26 | L148: 26.34875083 | M148: =ROUND(L148,0) -> 26 | N148: [Grilles TSNC 2020-2021.xlsx]Feuille de calcul'!$AD$146
A149: Travaux techniques | B149: Planification | C149: Inventaire avant traitement | D149: Traitement de régénération artificielle | E149: Variable | F149: Critère | G149: Critère #9 | H149: - | I149: - | J149: 0.4656311359 | K149: =ROUND(J149,2) -> 0.47 | L149: 0.477719123 | M149: =ROUND(L149,2) -> 0.48 | N149: [Grilles TSNC 2020-2021.xlsx]Feuille de calcul'!$AD$147
A150: Travaux techniques | B150: Planification | C150: Inventaire avant traitement | D150: Traitement de préparation de site (drainage sylvicole - plan et devis) | E150: Fixe | F150: Hectare | H150: 29.65002817 | I150: 30 | J150: 32.87137214 | K150: =ROUND(J150,0) -> 33 | L150: 33.72472727 | M150: =ROUND(L150,0) -> 34 | N150: [Grilles TSNC 2020-2021.xlsx]Feuille de calcul'!$AD$148
A151: Travaux techniques | B151: Planification | C151: Inventaire avant traitement | D151: Traitement d'éducation de peuplement (dégagement, nettoiement et éclaircie précommerciale) | E151: Variable | F151: PE | G151: PE + (Nb Critère #10) + (Nb Critère #11) + (Nb Critère #12) | H151: 93.69220216 | I151: 94 | J151: 96.88697706 | K151: =ROUND(J151,0) -> 97 | L151: 99.40220517 | M151: =ROUND(L151,0) -> 99 | N151: [Grilles TSNC 2020-2021.xlsx]Feuille de calcul'!$AD$149
A152: Travaux techniques | B152: Planification | C152: Inventaire avant traitement | D152: Traitement d'éducation de peuplement (dégagement, nettoiement et éclaircie précommerciale) | E152: Variable | F152: Critère | G152: Critère #10 | H152: 0.6405812439 | I152: 0.64 | J152: 0.6984467039 | K152: =ROUND(J152,2) -> 0.7 | L152: 0.7165786845 | M152: =ROUND(L152,2) -> 0.72 | N152: [Grilles TSNC 2020-2021.xlsx]Feuille de calcul'!$AD$150
A153: Travaux techniques | B153: Planification | C153: Inventaire avant traitement | D153: Traitement d'éducation de peuplement (dégagement, nettoiement et éclaircie précommerciale) | E153: Variable | F153: Critère | G153: Critère #11 | H153: 3.219763621 | I153: 3.22 | J153: 3.49223352 | K153: =ROUND(J153,2) -> 3.49 | L153: 3.582893423 | M153: =ROUND(L153,2) -> 3.58 | N153: [Grilles TSNC 2020-2021.xlsx]Feuille de calcul'!$AD$151
A154: Travaux techniques | B154: Planification | C154: Inventaire avant traitement | D154: Traitement d'éducation de peuplement (dégagement, nettoiement et éclaircie précommerciale) | E154: Variable | F154: Critère | G154: Critère #12 | H154: 6.439527242 | I154: 6.44 | J154: 6.984467039 | K154: =ROUND(J154,2) -> 6.98 | L154: 7.165786845 | M154: =ROUND(L154,2) -> 7.17 | N154: [Grilles TSNC 2020-2021.xlsx]Feuille de calcul'!$AD$152
A155: Travaux techniques | B155: Planification | C155: Inventaire avant traitement | D155: Traitement d'éducation (élagage et taille) | E155: Fixe | F155: Hectare | H155: 42.82781847 | I155: 43 | J155: 47.48087087 | K155: =ROUND(J155,0) -> 47 | L155: 48.71349495 | M155: =ROUND(L155,0) -> 49 | N155: [Grilles TSNC 2020-2021.xlsx]Feuille de calcul'!$AD$153
A156: Travaux techniques | B156: Planification | C156: Délimitation de secteurs | D156: Traitement de préparation de site et régénération artificielle | E156: Fixe | F156: Hectare | G156: Abandon pour la régénération en 2020-2021 | H156: 27.75330458 | I156: 28 | J156: 30.76857794 | K156: 31 | L156: Abandonné | M156: Abandonné | N156: Abandonné
A157: Travaux techniques | B157: Planification | C157: Délimitation de secteurs | D157: Traitement de préparation de site | E157: Fixe | F157: Hectare | G157: Taux disponible pour la technique seule à partir de 2020-2021 | L157: 31.56734363 | M157: 32 | N157: [Grilles TSNC 2020-2021.xlsx]Feuille de calcul'!$AD$155
A158: Travaux techniques | B158: Planification | C158: Délimitation de secteurs | D158: Traitement de préparation de site | E158: Fixe | F158: Hectare | G158: Taux intégré à la vérification à partir de 2020-2021 | L158: 10.49776702 | M158: 10 | N158: [Grilles TSNC 2020-2021.xlsx]Feuille de calcul'!$AD$156
A159: Travaux techniques | B159: Planification | C159: Délimitation de secteurs | D159: Traitement de préparation de site | E159: Fixe | F159: Mmicrosites | G159: Taux intégré à la vérification à partir de 2020-2021 | L159: 1.897033474 | M159: 2 | N159: [Grilles TSNC 2020-2021.xlsx]Feuille de calcul'!$AD$157
A160: Travaux techniques | B160: Planification | C160: Délimitation de secteurs | D160: Traitement de préparation de site | E160: Fixe | F160: kilomètre ou Mm³ | G160: Taux intégré à la vérification à partir de 2020-2021 | L160: 19.48304649 | M160: 19 | N160: [Grilles TSNC 2020-2021.xlsx]Feuille de calcul'!$AD$158
A161: Travaux techniques | B161: Planification | C161: Délimitation de secteurs | D161: Traitement d'éducation de peuplement | E161: Fixe | F161: Hectare | H161: 136.8028925 | I161: 137 | J161: 151.6659196 | K161: 152 | L161: 155.603233 | M161: =ROUND(L161,0) -> 156 | N161: [Grilles TSNC 2020-2021.xlsx]Feuille de calcul'!$AD$159
A162: Martelage | B162: Activités liées au martelage pour les traitements commerciaux | C162: Délimitation de secteurs | E162: Fixe | F162: Kilomètre délimité | H162: 75.85640034 | I162: 76 | J162: 84.09786157 | K162: 84 | L162: 86.29941398 | M162: 86 | N162: [Grilles TSNC 2020-2021.xlsx]Feuille de calcul'!$AD$160
A163: Martelage | B163: Activités liées au martelage pour les traitements commerciaux | C163: Martelage feuillus | D163: Référence FPr | E163: Fixe | F163: Hectare | H163: 143.0570511 | I163: 143 | J163: 158.5995647 | K163: 159 | L163: 162.7514569 | M163: 163 | N163: [Grilles TSNC 2020-2021.xlsx]Feuille de calcul'!$AD$161
A164: Martelage | B164: Activités liées au martelage pour les traitements commerciaux | C164: Martelage résineux | D164: Référence FPr | E164: Fixe | F164: Hectare | H164: 162.876243 | I164: 163 | J164: 180.572024 | K164: 181 | L164: 185.2991213 | M164: 185 | N164: [Grilles TSNC 2020-2021.xlsx]Feuille de calcul'!$AD$162
A165: Martelage | B165: Activités liées au martelage pour les traitements commerciaux | C165: Martelage à taux variable | E165: Variable | F165: Hectare | G165: Constante | H165: 144.2301161 | I165: 144.23 | J165: 159.9000781 | K165: =ROUND(J165,2) -> 159.9 | L165: 164.0860157 | M165: =ROUND(L165,2) -> 164.09 | N165: [Grilles TSNC 2020-2021.xlsx]Feuille de calcul'!$AD$163
A166: Martelage | B166: Activités liées au martelage pour les traitements commerciaux | C166: Martelage à taux variable | E166: Variable | F166: Hectare | G166: Variable 1 | H166: 35.68247104 | I166: 35.68 | J166: 39.55921315 | K166: =ROUND(J166,2) -> 39.56 | L166: 40.59481238 | M166: =ROUND(L166,2) -> 40.59 | N166: [Grilles TSNC 2020-2021.xlsx]Feuille de calcul'!$AD$164
A167: Martelage | B167: Activités liées au martelage pour les traitements commerciaux | C167: Martelage à taux variable | E167: Variable | F167: Hectare | G167: Variable 2 | H167: 4.092196416 | I167: 4.09 | J167: 4.536795394 | K167: =ROUND(J167,2) -> 4.54 | L167: 4.655561706 | M167: =ROUND(L167,2) -> 4.66 | N167: [Grilles TSNC 2020-2021.xlsx]Feuille de calcul'!$AD$165
A168: Martelage | B168: Activités liées au martelage pour les traitements commerciaux | C168: Martelage en éclaircie commerciale en peuplement résineux (ou mixte à tendance résineuse) | D168: Martelage négatif | E168: Fixe | F168: Hectare | G168: Constante | H168: 183.4482309 | I168: 183 | J168: 203.379067 | K168: =ROUND(J168,0) -> 203 | L168: 208.7032176 | M168: =ROUND(L168,0) -> 209 | N168: [Grilles TSNC 2020-2021.xlsx]Feuille de calcul'!$AD$166
A169: Martelage | B169: Activités liées au martelage pour les traitements commerciaux | C169: Martelage en éclaircie commerciale en peuplement résineux (ou mixte à tendance résineuse) | D169: Martelage positif | E169: Fixe | F169: Hectare | G169: Constante | H169: 95.61940559 | I169: 96 | J169: 106.0080296 | K169: =ROUND(J169,0) -> 106 | L169: 108.7831565 | M169: =ROUND(L169,0) -> 109 | N169: [Grilles TSNC 2020-2021.xlsx]Feuille de calcul'!$AD$167
A170: Martelage | B170: Activités liées au martelage pour les traitements commerciaux | C170: Inventaire après martelage | E170: Fixe | F170: Hectare | G170: Constante | H170: 23.22943928 | I170: 23 | J170: 25.75321476 | K170: =ROUND(J170,0) -> 26 | L170: 26.42739424 | M170: =ROUND(L170,0) -> 26 | N170: [Grilles TSNC 2020-2021.xlsx]Feuille de calcul'!$AD$168
A171: Martelage | B171: Valeur des activités liées au martelage pour les traitements commerciaux | C171: Martelage | E171: Variable | F171: Hectare | G171: Constante | H171: 8.916 | I171: 8.916 | J171: 8.916 | K171: 8.916 | L171: 8.916 | M171: 8.916 | N171: Pas de référence parce que pas utilisé

Sheet Menus (hidden)
A1: Onglet «Préparation de terrain»
A3: Traitement unique_INDIRECT_sans_underscore | B3: Traitement unique_INDIRECT | C3: Traitement | D3: Équipement | E3: Machinerie_INDIRECT_1 | F3: Machinerie_INDIRECT_2 | G3: Machinerie_INDIRECT_3 | H3: Taux | I3: Unité | J3: Variable_INDIRECT
A4: Déblaiement des résidus de coupe | B4: PRT_Déblaiement_des_résidus_de_coupe | C4: Déblaiement_des_résidus_de_coupe | D4: Abatteuse groupeuse après feux | H4: ='Calculs grille'!$M$14 -> 955 | I4: $/hectare | J4: PRT_PCT_Variable_DEBL
A5: Drainage sylvicole | B5: PRT_Drainage_sylvicole | C5: Déblaiement_des_résidus_de_coupe | D5: Bouteur avec pelle râteau | H5: ='Calculs grille'!$M$13 -> 807 | I5: $/hectare
A6: Fertilisation du peuplier hybride | B6: PRT_Fertilisation_du_peuplier_hybride | C6: Déblaiement_des_résidus_de_coupe | D6: Excavatrice ou débusqueuse ou abatteuse | E6: PRT_Excavatrice_ou_debusqueuse_ou_abatteuse_R | F6: PRT_Excavatrice_ou_debusqueuse_ou_abatteuse_TP | G6: PRT_Excavatrice_ou_debusqueuse_ou_abatteuse_VEH | H6: Variable | I6: $/hectare
A7: Scarifiage par hersage ou labour | B7: PRT_Scarifiage_par_hersage_ou_labour | C7: Scarifiage_par_monticule_avec_scarificateur | D7: Bracke M-36a avec débardeur | H7: ='Calculs grille'!$M$9 -> 343 | I7: $/hectare
A8: Scarifiage par mixage par placeau | B8: PRT_Scarifiage_par_mixage_par_placeau | C8: Scarifiage_par_monticule_avec_scarificateur | D8: Bracke M-36a avec porteur ou débardeur à six roues | H8: ='Calculs grille'!$M$10 -> 411 | I8: $/hectare
A9: Scarifiage par monticule avec scarificateur | B9: PRT_Scarifiage_par_monticule_avec_scarificateur | C9: Drainage_sylvicole | D9: Milieu boisé | H9: ='Calculs grille'!$M$16 -> 2750 | I9: $/km ou Mm³
A10: Scarifiage par monticule ou inversion par placeau ou décapage par placeau | B10: PRT_Scarifiage_par_monticule_ou_inversion_par_placeau_ou_décapage_par_placeau | C10: Drainage_sylvicole | D10: Milieu dénudé | H10: ='Calculs grille'!$M$15 -> 2475 | I10: $/km ou Mm³ | J10: PRT_PCT_Variable_MONT
A11: Scarifiage par sillon avec scarificateur | B11: PRT_Scarifiage_par_sillon_avec_scarificateur | C11: Scarifiage_par_monticule_ou_inversion_par_placeau_ou_décapage_par_placeau | D11: Excavatrice | E11: PRT_Excavatrice_R | F11: PRT_Excavatrice_TP | G11: PRT_Excavatrice_VEH | H11: Variable | I11: $/hectare
A12: Inscrire une valeur | B12: PRT_Inscrire_une_valeur | C12: Scarifiage_par hersage_ou_labour | D12: Herses forestières | H12: ='Calculs grille'!$M$11 -> 437 | I12: $/hectare
C13: Scarifiage_par_mixage_par_placeau | D13: Taupe ou pioche forestière | H13: ='Calculs grille'!$M$12 -> 636 | I13: $/Mmicrosites
C14: Fertilisation du peuplier hybride | D14: S/O | H14: ='Calculs grille'!$M$19 -> 587 | I14: $/hectare
C15: Scarifiage_par_sillon_avec_scarificateur | D15: Bracke T-26 avec débardeur, Types TTS hydrauliques, Donaren ou Requin | H15: ='Calculs grille'!$M$5 -> 335 | I15: $/hectare
C16: Scarifiage_par_sillon_avec_scarificateur | D16: Bracke T-26 avec porteur ou débardeur à six roues | H16: ='Calculs grille'!$M$7 -> 381 | I16: $/hectare
C17: Scarifiage_par_sillon_avec_scarificateur | D17: Rouleau écraseur et scarificateur à disques passifs | H17: ='Calculs grille'!$M$4 -> 777 | I17: $/hectare
C18: Scarifiage_par_sillon_avec_scarificateur | D18: Types TTS passifs | H18: ='Calculs grille'!$M$3 -> 228 | I18: $/hectare
C19: Scarifiage_par_sillon_avec_scarificateur | D19: Wadell | H19: ='Calculs grille'!$M$8 -> 401 | I19: $/hectare
C20: Inscrire_une_valeur | D20: Inscrire une valeur | H20: 0 | I20: -
A22: PA0
A23: Réduction selon la distance entre les passages | B23: Nb Microsite /ha désiré
A24: 3.5 | B24: 2800 et + microsites par hectare
A25: 4 | B25: 2200- 2799 microsites par hectare
A26: 4.5 | B26: 2000- 2199 microsites par hectare
A27: 5 | B27: 1600 - 1999 microsites par hectare
A28: Inscrire une valeur
A29: Constante 1 | B29: 1.4659
A30: Constante 2 | B30: -0.0765
A31: Formule référencée | B31: =" =ARRONDI("&B29&" EXP ("&B30&" * DP);4)" -> =ARRONDI(1,4659 EXP (-0,0765 * DP);4)
A33: HPT | B33: PRT_Majoration_HPT
A34: AVEC hébergement (inscrire un taux) | B34: 0
A35: AVEC hébergement (taux maximum) | B35: 0.092
A36: SANS hébergement | B36: 0
A38: HRA | B38: PRT_Majoration_HPT_MAN
A39: AVEC hébergement (inscrire un taux) | B39: 0
A40: AVEC hébergement (taux maximum) | B40: 0.223
A41: SANS hébergement | B41: 0
A43: HPVTM
A44: AVEC hébergement (inscrire un taux) | B44: 0
A45: AVEC hébergement (taux maximum) | B45: 0.177
A46: SANS hébergement | B46: 0
A48: DTEXE
A49: Distance < 175km OU durée du déplacement < 2h30 | B49: 0
A50: Distance ≥ 175km et ≤ 275km OU durée du déplacement ≥ 2h30 et ≤ 4h00 | B50: 0.035
A51: Distance > 275km OU durée du déplacement > 4h00 | B51: 0.106
A53: DTPVTM
A54: Distance < 175km OU durée du déplacement < 2h30 | B54: 0
A55: Distance ≥ 175km et ≤ 275km OU durée du déplacement ≥ 2h30 et ≤ 4h00 | B55: 0.06
A56: Distance > 275km OU durée du déplacement > 4h00 | B56: 0.18
A58: CEAF1 et ISO1
A59: CEAF1 | B59: 0.0042
A60: ISO1 | B60: 0.0051
A61: Pas de majoration | B61: 0
A63: Taux variable selon formule
A64: Constante | C64: 2.718
A65: TP : Type de couvert | B65: Type de couvert résineux-feuillus-mixtes — Débusqueuse | C65: 0 | D65: PRT_Debusqueuse_Type_de_peuplement_résineux_feuillus_mixtes_VEH
B66: Type de couvert feuillus ou mixtes — Excavatrice ou abatteuse | C66: 1 | D66: PRT_Excavatrice_Type_de_peuplement_feuillus_ou_mixtes_VEH
B67: Type de couvert résineux — Excavatrice ou abatteuse | C67: 0 | D67: PRT_Excavatrice_Type_de_peuplement_résineux_VEH
A68: TR : Type de procédé de récolte | B68: Peuplement brûlé : aucune récolte de bois | C68: 1 | D68: PRT_Peuplement_brule
B69: Peuplement brûlé : récolte de bois ou peuplement en régénération moins de 7m | C69: 0 | D69: PRT_Peuplement_brule
B70: Peuplement non brûlé : procédé de récolte par troncs entiers ou bois tronçonnés | C70: 1 | D70: PRT_Peuplement_vert
B71: Peuplement non brûlé : procédé de récolte par arbres entiers | C71: 0 | D71: PRT_Peuplement_vert
A72: PER : Type de perturbation | B72: Peuplement brûlé | C72: 1
B73: Peuplement non brûlé | C73: 0
A74: Type d'engin forestier | B74: Abatteuse lors de la récolte | C74: 3
B75: Excavatrice | C75: 2
B76: Débusqueuse | C76: 1
A78: Taux variable_1920
A79: Inscrire un pourcentage
A80: Déblaiement en plein
A81: Déblaiement partiel
A83: Taux variable_1920
A84: Inscrire un pourcentage
A85: Monticule ou placeau
A87: Question
A88: Oui | B88: PRT_Delimitation_des_secteurs_en_regie
A89: Non | B89: PRT_Delimitation_des_secteurs_tierce_partie
A91: Délimitation des secteur par une tierce partie
A92: 0
A93: ='Calculs grille'!$M$157 -> 32
A94: Calcul automatisé - Voir section « Totaux »
A96: Délimitation des secteur en régie selon unité de mesure du traitement
A97: ='Calculs grille'!$M$158 -> 10 | B97: $/ha
A98: ='Calculs grille'!$M$159 -> 2 | B98: $/Mmicrosites
A99: ='Calculs grille'!$M$160 -> 19 | B99: $/km ou $/Mm³
A101: Vérification
A102: Taux - mécanisé | B102: 0
B103: ='Calculs grille'!$M$128 -> 37
A104: Taux - manuel | B104: 0
B105: ='Calculs grille'!$M$131 -> 25
A106: Taux - Drainage | B106: 0
B107: ='Calculs grille'!$M$132 -> 47
A109: Critères
A110: Oui
A111: Non
A113: Codes_DICA
A114: AMEND_FER
A115: DEBL-PART
A116: DEBL-PLEIN
A117: DR_APP
A118: DR_SYS
A119: SCA_DECAP-PART
A120: SCA_DECAP-PLEIN
A121: SCA_HERS-PART
A122: SCA_HERS-PLEIN
A123: SCA_INV-PART
A124: SCA_INV-PLEIN
A125: SCA_MIX-PART
A126: SCA_MIX-PLEIN
A127: SCA_MONT-PART
A128: SCA_MONT-PLEIN
A129: SCA_SILL-PART
A130: SCA_SILL-PLEIN
A132: Codes_RATF
A133: AMENDFER
A134: AGR
A135: AGRP
A136: BPR
A137: BPRPA
A138: BRM36D
A139: BRM36DP
A140: BRM36P
A141: BRM36PP
A142: DH
A143: DHAD
A144: DHADP
A145: DHAP
A146: DHAPP
A147: DHP
A148: DO
A149: DOP
A150: DRAPPMB
A151: DRAPPMD
A152: DRAV
A153: DRAVP
A154: DRDV
A155: DRDVP
A156: DREV
A157: DREVP
A158: DRSYSMB
A159: DRSYSMD
A160: HERSE
A161: HERSEP
A162: REQ
A163: REQP
A164: ROUECA
A165: ROUECAP
A166: SCAIPV
A167: SCAIPVP
A168: SCAMV
A169: SCAMVP
A170: SCAPV
A171: SCAPVP
A172: TAUPIOF
A173: TAUPIOFP
A174: TTS
A175: TTSP
A176: WAD
A177: WADP
A179: Codes_DICA vs Codes_RATF | B179: Codes_RATF | C179: Indirect | D179: Description
A180: AMEND_FER | B180: AMENDFER | C180: PRT_RATF_AMEND_FER | D180: Amendement, fertilisation
A181: DEBL-PART | B181: AGRP | C181: PRT_RATF_DEBL_PART | D181: Déblaiement des résidus de coupe, abatteuse groupeuse, après feux, partiel
A182: DEBL-PART | B182: BPRPA | C182: PRT_RATF_DEBL_PART | D182: Déblaiement des résidus de coupe, bouteur avec pelle et râteau, partiel
A183: DEBL-PART | B183: DRAVP | C183: PRT_RATF_DEBL_PART | D183: Déblaiement des résidus des coupes avec abatteuse, partiel, Taux variable
A184: DEBL-PART | B184: DRDVP | C184: PRT_RATF_DEBL_PART | D184: Déblaiement des résidus de coupe avec débusqueuse, partiel, Taux variable
A185: DEBL-PART | B185: DREVP | C185: PRT_RATF_DEBL_PART | D185: Déblaiement des résidus de coupe avec excavatrice, partiel, Taux variable
A186: DEBL-PLEIN | B186: AGR | C186: PRT_RATF_DEBL_PLEIN | D186: Déblaiement des résidus de coupe avec abatteuse groupeuse, après feux, en plein
A187: DEBL-PLEIN | B187: BPR | C187: PRT_RATF_DEBL_PLEIN | D187: Déblaiement des résidus de coupe avec bouteur pelle râteau, en plein
A188: DEBL-PLEIN | B188: DRAV | C188: PRT_RATF_DEBL_PLEIN | D188: Déblaiement des résidus des coupes avec abatteuse, en plein, Taux variable
A189: DEBL-PLEIN | B189: DRDV | C189: PRT_RATF_DEBL_PLEIN | D189: Déblaiement des résidus de coupe avec débusqueuse, en plein, Taux variable
A190: DEBL-PLEIN | B190: DREV | C190: PRT_RATF_DEBL_PLEIN | D190: Déblaiement des résidus de coupe avec excavatrice, en plein, Taux variable
A191: DR_APP | B191: DRAPPMB | C191: PRT_RATF_DR_APP | D191: Drainage d'appoint, milieu boisé
A192: DR_APP | B192: DRAPPMD | C192: PRT_RATF_DR_APP | D192: Drainage d'appoint, milieu dénudé
A193: DR_SYS | B193: DRSYSMB | C193: PRT_RATF_DR_SYS | D193: Drainage systématique, milieu boisé
A194: DR_SYS | B194: DRSYSMD | C194: PRT_RATF_DR_SYS | D194: Drainage systématique, milieu dénudé
A195: SCA_DECAP-PART | B195: SCAPVP | C195: PRT_RATF_SCA_DECAP_PART | D195: Scarifiage décapage par placeau, avec excavatrice, partiel, taux variable
A196: SCA_DECAP-PLEIN | B196: SCAPV | C196: PRT_RATF_SCA_DECAP_PLEIN | D196: Scarifiage décapage par placeau, avec excavatrice, taux variable
A197: SCA_HERS-PART | B197: HERSEP | C197: PRT_RATF_SCA_HERS_PART | D197: Herse forestière, partiel
A198: SCA_HERS-PLEIN | B198: HERSE | C198: PRT_RATF_SCA_HERS_PLEIN | D198: Herse forestière
A199: SCA_INV-PART | B199: SCAIPVP | C199: PRT_RATF_SCA_INV_PART | D199: Scarifiage inversion par placeau avec excavatrice, partiel, taux variable
A200: SCA_INV-PLEIN | B200: SCAIPV | C200: PRT_RATF_SCA_INV_PLEIN | D200: Scarifiage inversion par placeau avec excavatrice, taux variable
A201: SCA_MIX-PART | B201: TAUPIOFP | C201: PRT_RATF_SCA_MIX_PART | D201: Scarifiage en mixage par placeau, taupe ou pioche forestière, partiel
A202: SCA_MIX-PLEIN | B202: TAUPIOF | C202: PRT_RATF_SCA_MIX_PLEIN | D202: Taupe ou pioche forestière
A203: SCA_MONT-PART | B203: BRM36DP | C203: PRT_RATF_SCA_MONT_PART | D203: Scarifiage en monticule avec scarificateur, Bracke M-36a avec débardeur, partiel
A204: SCA_MONT-PART | B204: BRM36PP | C204: PRT_RATF_SCA_MONT_PART | D204: Scarifiage en monticule avec scarificateur, Bracke M-36a avec porteur, partiel
A205: SCA_MONT-PART | B205: SCAMVP | C205: PRT_RATF_SCA_MONT_PART | D205: Scarifiage en monticule avec excavatrice, taux variable, partiel
A206: SCA_MONT-PLEIN | B206: BRM36D | C206: PRT_RATF_SCA_MONT_PLEIN | D206: Scarifiage en monticule avec scarificateur, Bracke M-36a avec débardeur
A207: SCA_MONT-PLEIN | B207: BRM36P | C207: PRT_RATF_SCA_MONT_PLEIN | D207: Scarifiage en monticule avec scarificateur, Bracke M-36a avec porteur
A208: SCA_MONT-PLEIN | B208: SCAMV | C208: PRT_RATF_SCA_MONT_PLEIN | D208: Scarifiage en monticule avec excavatrice, taux variable
A209: SCA_SILL-PART | B209: DHADP | C209: PRT_RATF_SCA_SILL_PART | D209: Scarifiage par sillon, Scarificateur à disques hydrauliques, Bracke T-26 avec débardeur, partiel
A210: SCA_SILL-PART | B210: DHAPP | C210: PRT_RATF_SCA_SILL_PART | D210: Scarifiage par sillon, Scarificateur à disques hydrauliques, Bracke T-26, avec porteur, partiel
A211: SCA_SILL-PART | B211: DHP | C211: PRT_RATF_SCA_SILL_PART | D211: Scarifiage par sillon, Scarificateur à disques hydrauliques, TTS hydraulique, partiel
A212: SCA_SILL-PART | B212: DOP | C212: PRT_RATF_SCA_SILL_PART | D212: Scarifiage par sillon, Scarificateur à disques hydrauliques, Donaren, partiel
A213: SCA_SILL-PART | B213: REQP | C213: PRT_RATF_SCA_SILL_PART | D213: Scarifiage par sillon, Scarificateur à disques hydrauliques, Requin, partiel
A214: SCA_SILL-PART | B214: ROUECAP | C214: PRT_RATF_SCA_SILL_PART | D214: Scarifiage par sillon, Rouleau écraseur et scarificateur à disques passifs, partiel
A215: SCA_SILL-PART | B215: TTSP | C215: PRT_RATF_SCA_SILL_PART | D215: Scarifiage par sillon, Scarificateur à disque TTS passifs, partiel
A216: SCA_SILL-PART | B216: WADP | C216: PRT_RATF_SCA_SILL_PART | D216: Scarifiage par sillon, Scarificateur à cônes hydrauliques, type Wadell, partiel
A217: SCA_SILL-PLEIN | B217: DH | C217: PRT_RATF_SCA_SILL_PLEIN | D217: Scarifiage par sillon, Scarificateur à disques hydrauliques, TTS hydraulique, en plein
A218: SCA_SILL-PLEIN | B218: DHAD | C218: PRT_RATF_SCA_SILL_PLEIN | D218: Scarifiage par sillon, Scarificateur à disques hydrauliques, Bracke T-26, avec débardeur, en plein
A219: SCA_SILL-PLEIN | B219: DHAP | C219: PRT_RATF_SCA_SILL_PLEIN | D219: Scarifiage par sillon, Scarificateur à disques hydrauliques, Bracke T-26, avec porteur, en plein
... 390 more rows

Sheet Formules (hidden)
A1: Famille | B1: Traitement | C1: Équation Texte | D1: Équation Référencée Onglet | E1: Valeur_prescription_1 | F1: Valeur_prescription_2 | G1: Valeur_prescription_3 | H1: Valeur_prescription_4 | I1: Valeur_prescription_5 | J1: Total
A2: Éducation de peuplement | B2: Dégagement mécanique | C2: Taux ($/ha) = 899,63 + (12,7 * RECFFE) + (0,0044 * DI) + (146,91 * MODE) | D2: ="Taux ($/ha) = "&TEXT('Calculs grille'!$M$59,"# ###,##")&" + ("&TEXT('Calculs grille'!$M$60,"##,#")&" * RECFFE) + ("&TEXT('Calculs grille'!$M$61,"0,####")&" * DI) + ("&TEXT('Calculs grille'!$M$62,"# ###,00")&" * MODE)" -> Taux ($/ha) = 899,63 + (12,7 * RECFFE) + (0,0044 * DI) + (146,91 * MODE) | E2: RECFFE | F2: DI | G2: MODE | J2: =E2&" - "&F2&" - "&G2 -> RECFFE - DI - MODE
A3: Éducation de peuplement | B3: Nettoiement - scénario sylvicole de base | C3: Taux ($/ha) = (934,28 + (0,0103 * DI) - (383,15 * SRLC)) | D3: ="Taux ($/ha) = ("&TEXT('Calculs grille'!$M$66,"# ###,00")&" + ("&TEXT('Calculs grille'!$M$67,"0,0000")&" * DI) - ("&ABS(TEXT('Calculs grille'!$M$68,"# ###,00"))&" * SRLC))" -> Taux ($/ha) = (934,28 + (0,0103 * DI) - (383,15 * SRLC)) | E3: DI | F3: SRLC | J3: =E3&" - "&F3 -> DI - SRLC
A4: Éducation de peuplement | B4: Nettoiement et EPC systématique - scénario sylvicole intensif ou d'élite | C4: Taux ($/ha) = 160,45 + (646,9 * ln (DI) - 5 228,89) * TP | D4: ="Taux ($/ha) = "&TEXT('Calculs grille'!$M$72,"# ###,##")&" + ("&TEXT('Calculs grille'!$M$73,"# ###,##")&" * ln (DI) - "&TEXT('Calculs grille'!$M$74,"# ###,##")&") * TP" -> Taux ($/ha) = 160,45 + (646,9 * ln (DI) - 5 228,89) * TP | E4: DI | F4: TP | J4: =E4&" - "&F4 -> DI - TP
A5: Éducation de peuplement | B5: EPC par puit de lumière ET Taille de formation avec martelage | C5: Taux ($/ha) = 0,484 * DENSTIGE * EXP (0,1452 * HTTIGE) + 40 * DENSTIGE / (0,1204 * DENSTIGE + 98,63) + 46,42 * TAIL + 846,31 | D5: ="Taux ($/ha) = "&TEXT('Calculs grille'!$M$78,"0,###")&" * DENSTIGE * EXP ("&TEXT('Calculs grille'!$M$79,"0,####")&" * HTTIGE) + "&'Calculs grille'!$M$80&" * DENSTIGE / ("&TEXT('Calculs grille'!$M$81,"0,####")&" * DENSTIGE + "&TEXT('Calculs grille'!$M$82,"0,00")&") + "&TEXT('Calculs grille'!M83,"0,00")&" * TAIL + "&TEXT('Calculs grille'!$M$84,"# ###,00") -> Taux ($/ha) = 0,484 * DENSTIGE * EXP (0,1452 * HTTIGE) + 40 * DENSTIGE / (0,1204 * DENSTIGE + 98,63) + 46,42 * TAIL + 846,31 | E5: DENSTIGE | F5: HTTIGE | G5: TAIL | J5: =E5&" - "&F5&" - "&G5 -> DENSTIGE - HTTIGE - TAIL
A6: Éducation de peuplement | B6: Élagage à des fins de qualité pour le pin blanc et le pin rouge | C6: Taux ($/ha) = ((0,026 * BRAN + 0,3779 + 0,6293 * LONGELA) + (-0,0629 * ln (DENSELA) + 0,5321)) * DENSELA) + MP + 601,91 | D6: ="Taux ($/ha) = (("&TEXT('Calculs grille'!$M$89,"0,000")&" * BRAN + "&TEXT('Calculs grille'!$M$90,"0,0000")&" + "&TEXT('Calculs grille'!$M$91,"0,0000")&" * LONGELA) + (-"&TEXT('Calculs grille'!$M$92,"0,####")&" * ln (DENSELA) + "&TEXT('Calculs grille'!$M$93,"0,####")&")) * DENSELA) + MP + "&TEXT('Calculs grille'!$M$96,"# ###,00") -> Taux ($/ha) = ((0,026 * BRAN + 0,3779 + 0,6293 * LONGELA) + (-0,0629 * ln (DENSELA) + 0,5321)) * DENSELA) + MP + 601,91 | E6: BRAN | F6: LONGDELA | G6: DENSELA | H6: MP | J6: =E6&" - "&F6&" - "&G6&" - "&H6 -> BRAN - LONGDELA - DENSELA - MP
A7: Éducation de peuplement | B7: Taille phytosanitaire | C7: Taux ($/ha) = ((0,0201 * BRAN + 0,0963 + (-0,0607 * ln (DENSELA) + 0,5148)) * DENSELA) + 0,1 * DENSCO + 0,4865 * DENSTF + 581,67 | D7: ="Taux ($/ha) = (("&TEXT('Calculs grille'!$M$97,"0,0000")&" * BRAN + "&TEXT('Calculs grille'!$M$98,"0,0000")&" + (-"&TEXT('Calculs grille'!$M$99,"0,0000")&" * ln (DENSELA) + "&TEXT('Calculs grille'!$M$100,"0,####")&")) * DENSELA) + "&TEXT('Calculs grille'!$M$101,"0,0")&" * DENSCO + "&TEXT('Calculs grille'!$M$102,"0,####")&" * DENSTF + "&'Calculs grille'!$M$103 -> Taux ($/ha) = ((0,0201 * BRAN + 0,0963 + (-0,0607 * ln (DENSELA) + 0,5148)) * DENSELA) + 0,1 * DENSCO + 0,4865 * DENSTF + 581,67 | E7: BRAN | F7: DENSELA | G7: DENSCO | H7: DENSTF | J7: =E7&" - "&F7&" - "&G7&" - "&H7 -> BRAN - DENSELA - DENSCO - DENSTF
A8: Préparation de terrain | B8: Excavatrice | C8: Taux ($/ha) = ((29 056 * R) / e EXP (1,683 * R - 0,299 * TP - 0,313 * TR + 0,17 * PER + 2,014)) * VEH | D8: ="Taux ($/ha) = (("&TEXT('Calculs grille'!$M$17,"## ####")&" * R) / e EXP (1,683 * R - 0,299 * TP - 0,313 * TR + 0,17 * PER + 2,014)) * VEH" -> Taux ($/ha) = ((29 056 * R) / e EXP (1,683 * R - 0,299 * TP - 0,313 * TR + 0,17 * PER + 2,014)) * VEH | E8: R | F8: TP | G8: TR | H8: PER | I8: VEH | J8: =E8&" - "&F8&" - "&G8&" - "&H8&" - "&I8 -> R - TP - TR - PER - VEH
A9: Préparation de terrain | B9: Excavatrice ou débusqueuse ou abatteuse | C9: Taux ($/ha) = ((29 056 * R) / e EXP (1,683 * R - 0,299 * TP - 0,313 * TR + 0,17 * PER + 2,014)) * VEH | D9: ="Taux ($/ha) = (("&TEXT('Calculs grille'!$M$17,"## ####")&" * R) / e EXP (1,683 * R - 0,299 * TP - 0,313 * TR + 0,17 * PER + 2,014)) * VEH" -> Taux ($/ha) = ((29 056 * R) / e EXP (1,683 * R - 0,299 * TP - 0,313 * TR + 0,17 * PER + 2,014)) * VEH | E9: R | F9: TP | G9: TR | H9: PER | I9: VEH | J9: =E9&" - "&F9&" - "&G9&" - "&H9&" - "&I9 -> R - TP - TR - PER - VEH
A10: Régénération artificielle | B10: Plantation uniforme et regarni en plein manuel sauf PEH | C10: Taux ($/Mplants) = 116,5 - (70,52 * PR) + (460 367 / (DE * DS)) + GABARIT | D10: ="Taux ($/Mplants) = "&TEXT('Calculs grille'!$M$35,"###,0")&" - ("&ABS(TEXT('Calculs grille'!$M$36,"0,00"))&" * PR) + ("&TEXT('Calculs grille'!$M$37,"## ###")&" / (DE * DS)) + GABARIT" -> Taux ($/Mplants) = 116,5 - (70,52 * PR) + (460 367 / (DE * DS)) + GABARIT | E10: PR | F10: DE | G10: DS | H10: Gabarit | J10: =E10&" - "&F10&" - "&G10&" - "&H10 -> PR - DE - DS - Gabarit
A11: Régénération artificielle | B11: Regarni de sentier et plantation d'enrichissement manuel sauf PEH | C11: Taux ($/Mplants) = 116,5 - (70,52 * PR) + (460 367 / (DE * DS)) + GABARIT | D11: ="Taux ($/Mplants) = "&TEXT('Calculs grille'!$M$35,"###,0")&" - ("&ABS(TEXT('Calculs grille'!$M$36,"0,00"))&" * PR) + ("&TEXT('Calculs grille'!$M$37,"## ###")&" / (DE * DS)) + GABARIT" -> Taux ($/Mplants) = 116,5 - (70,52 * PR) + (460 367 / (DE * DS)) + GABARIT | E11: PR | F11: DE | G11: DS | H11: Gabarit | J11: =E11&" - "&F11&" - "&G11&" - "&H11 -> PR - DE - DS - Gabarit
A12: Régénération artificielle | B12: Plantation uniforme et regarni en plein manuel sentier préparé sauf PEH | C12: Taux ($/Mplants) = 116,5 - (70,52 * PR) + (460 367 / (DE * DS)) + GABARIT | D12: ="Taux ($/Mplants) = "&TEXT('Calculs grille'!$M$35,"###,0")&" - ("&ABS(TEXT('Calculs grille'!$M$36,"0,00"))&" * PR) + ("&TEXT('Calculs grille'!$M$37,"## ###")&" / (DE * DS)) + GABARIT" -> Taux ($/Mplants) = 116,5 - (70,52 * PR) + (460 367 / (DE * DS)) + GABARIT | E12: PR | F12: DE | G12: DSA | H12: Gabarit | J12: =E12&" - "&F12&" - "&G12&" - "&H12 -> PR - DE - DSA - Gabarit
A13: Éclaircie commerciale EAF | B13: Éclaircie commerciale EAF | C13: Taux ($/m3) = (5,118 * VREC EXP -0,682) + 9,379 + (55,91 / P) | D13: ="Taux ($/m3) = ("&TEXT('Calculs grille'!$M$122,"0,000")&" * VREC EXP "&TEXT('Calculs grille'!$M$123,"0,000")&") + "&TEXT('Calculs grille'!$M$124,"0,000")&" + ("&TEXT('Calculs grille'!$M$126,"00,00")&" / P)" -> Taux ($/m3) = (5,118 * VREC EXP -0,682) + 9,379 + (55,91 / P) | E13: VREC | F13: P | J13: =E13&" - "&F13 -> VREC - P
A14: Martelage | B14: Martelage | C14: Taux ($/ha) = (164,09 - (40,59 * PF) + (4,66 * NbMSCROP)) * TC | D14: ="Taux ($/ha) = ("&TEXT('Calculs grille'!M$165,"0,00")&" - ("&TEXT('Calculs grille'!$M$166,"0,00")&" * PF) + ("&TEXT('Calculs grille'!$M$167,"0,00")&" * NbMSCROP)) * TC" -> Taux ($/ha) = (164,09 - (40,59 * PF) + (4,66 * NbMSCROP)) * TC | E14: NbMSCROP | F14: TC | J14: =E14&" - "&F14 -> NbMSCROP - TC
A15: Travaux de planification | B15: Inventaire avant traitement pour éducation de peuplement (dégagement, nettoiement et éclaircie précommerciale) | C15: Taux ($/PE) = 99 + (Nombre de critère #10 * 0,72) + (Nombre de critère #11 * 3,58) + (Nombre de critère #12 * 7,17) | D15: ="Taux ($/PE) = "&'Calculs grille'!$M$151&" + (Nombre de critère #10 * "&TEXT('Calculs grille'!$M$152,"0,00")&") + (Nombre de critère #11 * "&TEXT('Calculs grille'!$M$153,"0,00")&") + (Nombre de critère #12 * "&TEXT('Calculs grille'!$M$154,"0,00")&")" -> Taux ($/PE) = 99 + (Nombre de critère #10 * 0,72) + (Nombre de critère #11 * 3,58) + (Nombre de critère #12 * 7,17) | E15: Critères #10 | F15: Critères #11 | G15: Critères #12 | J15: =E15&" - "&F15&" - "&G15 -> Critères #10 - Critères #11 - Critères #12
A16: Travaux de planification | B16: Inventaire avant traitement pour préparation de terrain (sauf drainage sylvicole) | C16: Taux ($/PE) = 35 + (Nombre de critère #7 * 0,48) + (Nombre de critère #8 * 2,39) | D16: ="Taux ($/PE) = "&'Calculs grille'!$M$145&" + (Nombre de critère #7 * "&TEXT('Calculs grille'!$M$146,"0,00")&") + (Nombre de critère #8 * "&TEXT('Calculs grille'!$M$147,"0,00")&")" -> Taux ($/PE) = 35 + (Nombre de critère #7 * 0,48) + (Nombre de critère #8 * 2,39) | E16: Critères #7 | F16: Critères #8 | J16: =E16&" - "&F16 -> Critères #7 - Critères #8
A17: Travaux de planification | B17: Inventaire avant traitement pour régénération artificielle | C17: Taux ($/PE) = 26 + (Nombre de critère #9 * 0,48) | D17: ="Taux ($/PE) = "&'Calculs grille'!$M$148&" + (Nombre de critère #9 * "&TEXT('Calculs grille'!$M$149,"0,00")&")" -> Taux ($/PE) = 26 + (Nombre de critère #9 * 0,48) | E17: Critères #9 | J17: =E17 -> Critères #9

Sheet Majorations applicables (hidden)
A1: Total RechercheV | B1: Onglet | C1: Équipement ou modalité | D1: M1 | E1: M2 | F1: M3 | G1: M4 | H1: M5 | I1: M6 | J1: M7 | K1: Total
A2: =K2 -> PE2 - DMOD - HPT - CEAF1 - ISO1 | B2: Préparation de terrain | C2: Abatteuse groupeuse après feux | D2: PE2 | E2: DMOD | F2: HPT | G2: CEAF1 | H2: ISO1 | K2: =D2& " - "&E2&" - "&F2&" - "&G2&" - "&H2 -> PE2 - DMOD - HPT - CEAF1 - ISO1
A3: PE4 - DMOD - HPT - CEAF1 - ISO1 | B3: Préparation de terrain | C3: Bouteur avec pelle râteau | D3: PE4 | E3: DMOD | F3: HPT | G3: CEAF1 | H3: ISO1 | K3: =D3& " - "&E3&" - "&F3&" - "&G3&" - "&H3 -> PE4 - DMOD - HPT - CEAF1 - ISO1
A4: PE1 - DRAP - HPT - CEAF1 - ISO1 | B4: Préparation de terrain | C4: Bracke M-36a avec débardeur | D4: PE1 | E4: DRAP | F4: HPT | G4: CEAF1 | H4: ISO1 | K4: =D4& " - "&E4&" - "&F4&" - "&G4&" - "&H4 -> PE1 - DRAP - HPT - CEAF1 - ISO1
A5: PE1 - DRAP - HPT - CEAF1 - ISO1 | B5: Préparation de terrain | C5: Bracke M-36a avec porteur ou débardeur à six roues | D5: PE1 | E5: DRAP | F5: HPT | G5: CEAF1 | H5: ISO1 | K5: =D5& " - "&E5&" - "&F5&" - "&G5&" - "&H5 -> PE1 - DRAP - HPT - CEAF1 - ISO1
A6: PA0 - PA1 - PE1 - DRAP - HPT - CEAF1 - ISO1 | B6: Préparation de terrain | C6: Bracke T-26 avec porteur ou débardeur à six roues | D6: PA0 | E6: PA1 | F6: PE1 | G6: DRAP | H6: HPT | I6: CEAF1 | J6: ISO1 | K6: =D6& " - "&E6&" - "&F6&" - "&G6&" - "&H6&" - "&I6&" - "&J6 -> PA0 - PA1 - PE1 - DRAP - HPT - CEAF1 - ISO1
A7: HPT - CEAF1 - ISO1 | B7: Préparation de terrain | C7: Milieu boisé | D7: HPT | E7: CEAF1 | F7: ISO1 | K7: =D7& " - "&E7&" - "&F7 -> HPT - CEAF1 - ISO1
A8: HPT - CEAF1 - ISO1 | B8: Préparation de terrain | C8: Milieu dénudé | D8: HPT | E8: CEAF1 | F8: ISO1 | K8: =D8& " - "&E8&" - "&F8 -> HPT - CEAF1 - ISO1
A9: PA2 - PE2 - DRAP - HPT - CEAF1 - ISO1 | B9: Préparation de terrain | C9: Herses forestières | D9: PA2 | E9: PE2 | F9: DRAP | G9: HPT | H9: CEAF1 | I9: ISO1 | K9: =D9& " - "&E9&" - "&F9&" - "&G9&" - "&H9&" - "&I9 -> PA2 - PE2 - DRAP - HPT - CEAF1 - ISO1
A10: PE2 - DRAP - HPT - CEAF1 - ISO1 | B10: Préparation de terrain | C10: Rouleau écraseur et scarificateur à disques passifs | D10: PE2 | E10: DRAP | F10: HPT | G10: CEAF1 | H10: ISO1 | K10: =D10& " - "&E10&" - "&F10&" - "&G10&" - "&H10 -> PE2 - DRAP - HPT - CEAF1 - ISO1
A11: HRA - DTEXE - CEAF1 - ISO1 | B11: Préparation de terrain | C11: Taupe ou pioche forestière | D11: HRA | E11: DTEXE | F11: CEAF1 | G11: ISO1 | K11: =D11&" - "&E11&" - "&F11&" - "&G11 -> HRA - DTEXE - CEAF1 - ISO1
A12: PE2 - HRA - DTEXE - CEAF1 - ISO1 | B12: Préparation de terrain | C12: Fertilisation du peuplier hybride | D12: PE2 | E12: HRA | F12: DTEXE | G12: CEAF1 | H12: ISO1 | K12: =D12& " - "&E12&" - "&F12&" - "&G12&" - "&H12 -> PE2 - HRA - DTEXE - CEAF1 - ISO1
A13: PA0 - PA1 - PE1 - DRAP - HPT - CEAF1 - ISO1 | B13: Préparation de terrain | C13: Types TTS passifs | D13: PA0 | E13: PA1 | F13: PE1 | G13: DRAP | H13: HPT | I13: CEAF1 | J13: ISO1 | K13: =D13& " - "&E13&" - "&F13&" - "&G13&" - "&H13&" - "&I13&" - "&J13 -> PA0 - PA1 - PE1 - DRAP - HPT - CEAF1 - ISO1
A14: PA0 - PA1 - PE1 - DRAP - HPT - CEAF1 - ISO1 | B14: Préparation de terrain | C14: Bracke T-26 avec débardeur, Types TTS hydrauliques, Donaren ou Requin | D14: PA0 | E14: PA1 | F14: PE1 | G14: DRAP | H14: HPT | I14: CEAF1 | J14: ISO1 | K14: =D14& " - "&E14&" - "&F14&" - "&G14&" - "&H14&" - "&I14&" - "&J14 -> PA0 - PA1 - PE1 - DRAP - HPT - CEAF1 - ISO1
A15: PA0 - PA1 - PE1 - DRAP - HPT - CEAF1 - ISO1 | B15: Préparation de terrain | C15: Wadell | D15: PA0 | E15: PA1 | F15: PE1 | G15: DRAP | H15: HPT | I15: CEAF1 | J15: ISO1 | K15: =D15& " - "&E15&" - "&F15&" - "&G15&" - "&H15&" - "&I15&" - "&J15 -> PA0 - PA1 - PE1 - DRAP - HPT - CEAF1 - ISO1
A16: PE2 - DMOD - HPT - CEAF1 - ISO1 | B16: Préparation de terrain | C16: Excavatrice | D16: PE2 | E16: DMOD | F16: HPT | G16: CEAF1 | H16: ISO1 | K16: =D16&" - "&E16&" - "&F16&" - "&G16&" - "&H16 -> PE2 - DMOD - HPT - CEAF1 - ISO1
A17: PE2 ou PE3 - DMOD - HPT - CEAF1 - ISO1 | B17: Préparation de terrain | C17: Excavatrice ou débusqueuse ou abatteuse | D17: PE2 | E17: PE3 | F17: DMOD | G17: HPT | H17: CEAF1 | I17: ISO1 | K17: =D17& " ou "&E17&" - "&F17& " - "&G17&" - "&H17&" - "&I17 -> PE2 ou PE3 - DMOD - HPT - CEAF1 - ISO1
A18: =K18 -> DEGPM - PE2 - HEP - TC - DTEXE - CEAF3 - ISO3 | B18: Éducation de peuplement | C18: Dégagement mécanique | D18: DEGPM | E18: PE2 | F18: HEP | G18: TC | H18: DTEXE | I18: CEAF3 | J18: ISO3 | K18: =D18& " - "&E18&" - "&F18&" - "&G18&" - "&H18&" - "&I18&" - "&J18 -> DEGPM - PE2 - HEP - TC - DTEXE - CEAF3 - ISO3
A19: PE2 - HEP - TC - DTEXE - CEAF3 - ISO3 | B19: Éducation de peuplement | C19: Élagage à des fins de qualité pour le pin blanc et le pin rouge | D19: PE2 | E19: HEP | F19: TC | G19: DTEXE | H19: CEAF3 | I19: ISO3 | K19: =D19& " - "&E19&" - "&F19&" - "&G19&" - "&H19&" - "&I19 -> PE2 - HEP - TC - DTEXE - CEAF3 - ISO3
A20: PE2 - HEP - TC - DTEXE - CEAF3 - ISO3 | B20: Éducation de peuplement | C20: EPC par puit de lumière ET Taille de formation avec martelage | D20: PE2 | E20: HEP | F20: TC | G20: DTEXE | H20: CEAF3 | I20: ISO3 | K20: =D20& " - "&E20&" - "&F20&" - "&G20&" - "&H20&" - "&I20 -> PE2 - HEP - TC - DTEXE - CEAF3 - ISO3
A21: PE2 - HEP - TC - DTEXE - CEAF3 - ISO3 | B21: Éducation de peuplement | C21: Nettoiement - scénario sylvicole de base | D21: PE2 | E21: HEP | F21: TC | G21: DTEXE | H21: CEAF3 | I21: ISO3 | K21: =D21& " - "&E21&" - "&F21&" - "&G21&" - "&H21&" - "&I21 -> PE2 - HEP - TC - DTEXE - CEAF3 - ISO3
A22: PE2 - HEP - TC - DTEXE - CEAF3 - ISO3 | B22: Éducation de peuplement | C22: Nettoiement et EPC systématique - scénario sylvicole intensif ou d'élite | D22: PE2 | E22: HEP | F22: TC | G22: DTEXE | H22: CEAF3 | I22: ISO3 | K22: =D22& " - "&E22&" - "&F22&" - "&G22&" - "&H22&" - "&I22 -> PE2 - HEP - TC - DTEXE - CEAF3 - ISO3
A23: PE2 - HEP - TC - DTEXE - CEAF3 - ISO3 | B23: Éducation de peuplement | C23: Taille phytosanitaire | D23: PE2 | E23: HEP | F23: TC | G23: DTEXE | H23: CEAF3 | I23: ISO3 | K23: =D23& " - "&E23&" - "&F23&" - "&G23&" - "&H23&" - "&I23 -> PE2 - HEP - TC - DTEXE - CEAF3 - ISO3
A24: RAPM - HRA - TC - DTEXE - CEAF2 - ISO2 - TRA | B24: Régénération artificielle | C24: Plantation uniforme et regarni en plein manuel sauf PEH | D24: RAPM | E24: HRA | F24: TC | G24: DTEXE | H24: CEAF2 | I24: ISO2 | J24: TRA | K24: =D24& " - "&E24&" - "&F24&" - "&G24&" - "&H24&" - "&I24&" - "&J24 -> RAPM - HRA - TC - DTEXE - CEAF2 - ISO2 - TRA
A25: RAPM - HRA - TC - DTEXE - CEAF2 - ISO2 - TRA | B25: Régénération artificielle | C25: Regarni de sentier et plantation d'enrichissement manuel sauf PEH | D25: RAPM | E25: HRA | F25: TC | G25: DTEXE | H25: CEAF2 | I25: ISO2 | J25: TRA | K25: =D25& " - "&E25&" - "&F25&" - "&G25&" - "&H25&" - "&I25&" - "&J25 -> RAPM - HRA - TC - DTEXE - CEAF2 - ISO2 - TRA
A26: RAPM - HRA - TC - DTEXE - CEAF2 - ISO2 - TRA | B26: Régénération artificielle | C26: Plantation uniforme et regarni en plein manuel sentier préparé sauf PEH | D26: RAPM | E26: HRA | F26: TC | G26: DTEXE | H26: CEAF2 | I26: ISO2 | J26: TRA | K26: =D26& " - "&E26&" - "&F26&" - "&G26&" - "&H26&" - "&I26&" - "&J26 -> RAPM - HRA - TC - DTEXE - CEAF2 - ISO2 - TRA
A27: RAPM - HRA - TC - DTEXE - CEAF2 - ISO2 - TRA | B27: Régénération artificielle | C27: Plantation uniforme PEH | D27: RAPM | E27: HRA | F27: TC | G27: DTEXE | H27: CEAF2 | I27: ISO2 | J27: TRA | K27: =D27& " - "&E27&" - "&F27&" - "&G27&" - "&H27&" - "&I27&" - "&J27 -> RAPM - HRA - TC - DTEXE - CEAF2 - ISO2 - TRA
A28: HPT - CEAF2 - ISO2 - TRA | B28: Régénération artificielle | C28: Plantation uniforme et regarni mécanique (Scarificateur­planteur Bracke P­11a) | D28: HPT | E28: CEAF2 | F28: ISO2 | G28: TRA | K28: =D28& " - "&E28&" - "&F28&" - "&G28 -> HPT - CEAF2 - ISO2 - TRA
A29: PE2 - HRA - TC - DTEXE - CEAF2 - ISO2 | B29: Régénération artificielle | C29: Ensemencement terrestre manuel | D29: PE2 | E29: HRA | F29: TC | G29: DTEXE | H29: CEAF2 | I29: ISO2 | K29: =D29& " - "&E29&" - "&F29&" - "&G29&" - "&H29&" - "&I29 -> PE2 - HRA - TC - DTEXE - CEAF2 - ISO2
A30: PE2 - MAN - HECEAF | B30: Éclaircie commerciale EAF | C30: Éclaircie commerciale EAF | D30: PE2 | E30: MAN | F30: HECEAF | K30: =D30&" - "&E30&" - "&F30 -> PE2 - MAN - HECEAF
A31: HPVTM - DTPVTM | B31: Martelage | C31: Martelage | D31: HPVTM | E31: DTPVTM | K31: =D31&" - "&E31 -> HPVTM - DTPVTM
A32: HPVTM - DTPVTM | B32: Martelage positif - EC (résineux ou mixte résineux) | C32: Martelage positif - EC (résineux ou mixte résineux) | D32: HPVTM | E32: DTPVTM | K32: =D32&" - "&E32 -> HPVTM - DTPVTM
A33: HPVTM - DTPVTM | B33: Martelage négatif - EC (résineux ou mixte résineux) | C33: Martelage négatif - EC (résineux ou mixte résineux) | D33: HPVTM | E33: DTPVTM | K33: =D33&" - "&E33 -> HPVTM - DTPVTM
A35: PA1 (Valeurs nettes) | B35: PA1 - 2020-2021 (Valeurs brutes) | C35: PA1 - 2019-2020 (Valeurs nettes)
A36: =ROUND($C$36-(($C$36-$B$36)/2),3) -> 0.82 | B36: 0.749 | C36: 0.89
A38: PA2 (Valeurs nettes) | B38: PA2 - 2020-2021 (Valeurs brutes) | C38: PA2 - 2019-2020 (Valeurs nettes)
A39: =ROUND($C$39-(($C$39-$B$39)/2),3) -> 0.723 | B39: 0.656 | C39: 0.79
A41: PE1 | B41: 0
A42: Pente A | B42: 0
A43: Pente B | B43: 0
A44: Pente C | B44: 0.051
A45: Pente D | B45: 0.45
A46: Pente E et plus | B46: 1.46
A48: PE2
A49: Pente A | B49: 0
A50: Pente B | B50: 0
A51: Pente C | B51: 0.007
A52: Pente D | B52: 0.026
A53: Pente E et plus | B53: 0.061
A55: PE3
A56: Pente A | B56: 0
A57: Pente B | B57: 0
A58: Pente C | B58: 0.11
A59: Pente D | B59: 0.19
A60: Pente E et plus | B60: 0.23
A62: PE4
A63: Pente A | B63: 0
A64: Pente B | B64: 0
A65: Pente C | B65: 0.05
A66: Pente D | B66: 0.15
A67: Pente E et plus | B67: 0.19

Sheet RXF (hidden)
A1: Équipement ou modalité | B1: Onglet | C1: Taux total | D1: Taux sans vérif | E1: Grand total | F1: Vérification | G1: Grand total sans vérification
A2: ='Majorations applicables'!$C$2 -> Abatteuse groupeuse après feux | B2: ='Majorations applicables'!$B$2 -> Préparation de terrain | C2: ='Préparation de terrain'!$G$216 -> 0 | D2: ='Préparation de terrain'!$G$213 -> 0 | E2: ='Préparation de terrain'!$G$220 -> 0 | F2: ='Préparation de terrain'!$G$219 -> 0 | G2: =E2-F2 -> 0
A3: ='Majorations applicables'!$C$3 -> Bouteur avec pelle râteau | B3: ='Majorations applicables'!$B$3 -> Préparation de terrain | C3: ='Préparation de terrain'!$G$201 -> 0 | D3: ='Préparation de terrain'!$G$198 -> 0 | E3: ='Préparation de terrain'!$G$205 -> 0 | F3: ='Préparation de terrain'!$G$204 -> 0 | G3: 0
A4: ='Majorations applicables'!$C$4 -> Bracke M-36a avec débardeur | B4: ='Majorations applicables'!$B$4 -> Préparation de terrain | C4: ='Préparation de terrain'!$G$171 -> 0 | D4: ='Préparation de terrain'!$G$168 -> 0 | E4: ='Préparation de terrain'!$G$175 -> 0 | F4: ='Préparation de terrain'!$G$174 -> 0 | G4: 0
A5: ='Majorations applicables'!$C$5 -> Bracke M-36a avec porteur ou débardeur à six roues | B5: ='Majorations applicables'!$B$5 -> Préparation de terrain | C5: ='Préparation de terrain'!$G$171 -> 0 | D5: ='Préparation de terrain'!$G$168 -> 0 | E5: ='Préparation de terrain'!$G$175 -> 0 | F5: ='Préparation de terrain'!$G$174 -> 0 | G5: 0
A6: ='Majorations applicables'!$C$6 -> Bracke T-26 avec porteur ou débardeur à six roues | B6: ='Majorations applicables'!$B$6 -> Préparation de terrain | C6: ='Préparation de terrain'!$G$156 -> 0 | D6: ='Préparation de terrain'!$G$153 -> 0 | E6: ='Préparation de terrain'!$G$160 -> 0 | F6: ='Préparation de terrain'!$G$159 -> 0 | G6: 0
A7: ='Majorations applicables'!$C$7 -> Milieu boisé | B7: ='Majorations applicables'!$B$7 -> Préparation de terrain | C7: ='Préparation de terrain'!$G$228 -> 0 | D7: ='Préparation de terrain'!$G$225 -> 0 | E7: ='Préparation de terrain'!$G$232 -> 0 | F7: ='Préparation de terrain'!$G$231 -> 0 | G7: 0
A8: ='Majorations applicables'!$C$8 -> Milieu dénudé | B8: ='Majorations applicables'!$B$8 -> Préparation de terrain | C8: ='Préparation de terrain'!$G$228 -> 0 | D8: ='Préparation de terrain'!$G$225 -> 0 | E8: ='Préparation de terrain'!$G$232 -> 0 | F8: ='Préparation de terrain'!$G$231 -> 0 | G8: 0
A9: ='Majorations applicables'!$C$9 -> Herses forestières | B9: ='Majorations applicables'!$B$9 -> Préparation de terrain | C9: ='Préparation de terrain'!$G$186 -> 0 | D9: ='Préparation de terrain'!$G$183 -> 0 | E9: ='Préparation de terrain'!$G$190 -> 0 | F9: ='Préparation de terrain'!$G$189 -> 0 | G9: 0
A10: ='Majorations applicables'!$C$10 -> Rouleau écraseur et scarificateur à disques passifs | B10: ='Majorations applicables'!$B$10 -> Préparation de terrain | C10: ='Préparation de terrain'!$G$216 -> 0 | D10: ='Préparation de terrain'!$G$213 -> 0 | E10: ='Préparation de terrain'!$G$220 -> 0 | F10: ='Préparation de terrain'!$G$219 -> 0 | G10: 0
A11: ='Majorations applicables'!$C$11 -> Taupe ou pioche forestière | B11: ='Majorations applicables'!$B$11 -> Préparation de terrain | C11: ='Préparation de terrain'!$G$241 -> 0 | D11: ='Préparation de terrain'!$G$238 -> 0 | E11: ='Préparation de terrain'!$G$245 -> 0 | F11: ='Préparation de terrain'!$G$244 -> 0 | G11: 0
A12: ='Majorations applicables'!$C$13 -> Types TTS passifs | B12: ='Majorations applicables'!$B$13 -> Préparation de terrain | C12: ='Préparation de terrain'!$G$156 -> 0 | D12: ='Préparation de terrain'!$G$153 -> 0 | E12: ='Préparation de terrain'!$G$160 -> 0 | F12: ='Préparation de terrain'!$G$159 -> 0 | G12: 0
A13: ='Majorations applicables'!$C$14 -> Bracke T-26 avec débardeur, Types TTS hydrauliques, Donaren ou Requin | B13: ='Majorations applicables'!$B$14 -> Préparation de terrain | C13: ='Préparation de terrain'!$G$156 -> 0 | D13: ='Préparation de terrain'!$G$153 -> 0 | E13: ='Préparation de terrain'!$G$160 -> 0 | F13: ='Préparation de terrain'!$G$159 -> 0 | G13: 0
A14: ='Majorations applicables'!$C$15 -> Wadell | B14: ='Majorations applicables'!$B$15 -> Préparation de terrain | C14: ='Préparation de terrain'!$G$156 -> 0 | D14: ='Préparation de terrain'!$G$153 -> 0 | E14: ='Préparation de terrain'!$G$160 -> 0 | F14: ='Préparation de terrain'!$G$159 -> 0 | G14: 0
A15: S/O | B15: Préparation de terrain (Fertilisation du peuplier hybride) | C15: ='Préparation de terrain'!$G$271 -> 0 | D15: ='Préparation de terrain'!$G$268 -> 0 | E15: ='Préparation de terrain'!$G$275 -> 0 | F15: ='Préparation de terrain'!$G$274 -> 0 | G15: 0
A16: ='Majorations applicables'!$C$16 -> Excavatrice | B16: ='Majorations applicables'!$B$16 -> Préparation de terrain | C16: ='Préparation de terrain'!$G$256 -> 0 | D16: ='Préparation de terrain'!$G$253 -> 0 | E16: ='Préparation de terrain'!$G$260 -> 0 | F16: ='Préparation de terrain'!$G$259 -> 0 | G16: 0
A17: ='Majorations applicables'!$C$17 -> Excavatrice ou débusqueuse ou abatteuse | B17: ='Majorations applicables'!$B$17 -> Préparation de terrain | C17: ='Préparation de terrain'!$G$256 -> 0 | D17: ='Préparation de terrain'!$G$253 -> 0 | E17: ='Préparation de terrain'!$G$260 -> 0 | F17: ='Préparation de terrain'!$G$259 -> 0 | G17: 0
A18: ='Majorations applicables'!$C$18 -> Dégagement mécanique | B18: ='Majorations applicables'!$B$18 -> Éducation de peuplement | C18: ='Éducation de peuplement'!$G$139 -> 0 | D18: ='Éducation de peuplement'!$G$136 -> 0 | E18: ='Éducation de peuplement'!$G$144 -> 0 | F18: ='Éducation de peuplement'!$G$143 -> 0 | G18: 0
A19: ='Majorations applicables'!$C$19 -> Élagage à des fins de qualité pour le pin blanc et le pin rouge | B19: ='Majorations applicables'!$B$19 -> Éducation de peuplement | C19: ='Éducation de peuplement'!$G$203 -> 0 | D19: ='Éducation de peuplement'!$G$200 -> 0 | E19: ='Éducation de peuplement'!$G$207 -> 0 | F19: ='Éducation de peuplement'!$G$206 -> 0 | G19: 0
A20: ='Majorations applicables'!$C$20 -> EPC par puit de lumière ET Taille de formation avec martelage | B20: ='Majorations applicables'!$B$20 -> Éducation de peuplement | C20: ='Éducation de peuplement'!$G$187 -> 0 | D20: ='Éducation de peuplement'!$G$184 -> 0 | E20: ='Éducation de peuplement'!$G$192 -> 0 | F20: ='Éducation de peuplement'!$G$191 -> 0 | G20: 0
A21: ='Majorations applicables'!$C$21 -> Nettoiement - scénario sylvicole de base | B21: ='Majorations applicables'!$B$21 -> Éducation de peuplement | C21: ='Éducation de peuplement'!$G$155 -> 0 | D21: ='Éducation de peuplement'!$G$152 -> 0 | E21: ='Éducation de peuplement'!$G$160 -> 0 | F21: ='Éducation de peuplement'!$G$159 -> 0 | G21: 0
A22: ='Majorations applicables'!$C$22 -> Nettoiement et EPC systématique - scénario sylvicole intensif ou d'élite | B22: ='Majorations applicables'!$B$22 -> Éducation de peuplement | C22: ='Éducation de peuplement'!$G$171 -> 0 | D22: ='Éducation de peuplement'!$G$168 -> 0 | E22: ='Éducation de peuplement'!$G$176 -> 0 | F22: ='Éducation de peuplement'!$G$175 -> 0 | G22: 0
A23: ='Majorations applicables'!$C$23 -> Taille phytosanitaire | B23: ='Majorations applicables'!$B$23 -> Éducation de peuplement | C23: ='Éducation de peuplement'!$G$218 -> 0 | D23: ='Éducation de peuplement'!$G$215 -> 0 | E23: ='Éducation de peuplement'!$G$222 -> 0 | F23: ='Éducation de peuplement'!$G$221 -> 0 | G23: 0
A24: ='Majorations applicables'!$C$24 -> Plantation uniforme et regarni en plein manuel sauf PEH | B24: ='Majorations applicables'!$B$24 -> Régénération artificielle | C24: ='Régénération artificielle'!$G$93 -> 0 | D24: ='Régénération artificielle'!$G$89 -> 0 | E24: ='Régénération artificielle'!$G$97 -> 0 | F24: ='Régénération artificielle'!$G$96 -> 0 | G24: 0
A25: ='Majorations applicables'!$C$25 -> Regarni de sentier et plantation d'enrichissement manuel sauf PEH | B25: ='Majorations applicables'!$B$25 -> Régénération artificielle | C25: ='Régénération artificielle'!$G$107 -> 0 | D25: ='Régénération artificielle'!$G$103 -> 0 | E25: ='Régénération artificielle'!$G$111 -> 0 | F25: ='Régénération artificielle'!$G$110 -> 0 | G25: 0
A26: ='Majorations applicables'!$C$26 -> Plantation uniforme et regarni en plein manuel sentier préparé sauf PEH | B26: ='Majorations applicables'!$B$26 -> Régénération artificielle | C26: ='Régénération artificielle'!$G$121 -> 0 | D26: ='Régénération artificielle'!$G$117 -> 0 | E26: ='Régénération artificielle'!$G$126 -> 0 | F26: ='Régénération artificielle'!$G$125 -> 0 | G26: 0
A27: ='Majorations applicables'!$C$27 -> Plantation uniforme PEH | B27: ='Majorations applicables'!$B$27 -> Régénération artificielle | C27: ='Régénération artificielle'!$G$136 -> 0 | D27: ='Régénération artificielle'!$G$132 -> 0 | E27: ='Régénération artificielle'!$G$140 -> 0 | F27: ='Régénération artificielle'!$G$139 -> 0 | G27: 0
A28: ='Majorations applicables'!$C$28 -> Plantation uniforme et regarni mécanique (Scarificateur­planteur Bracke P­11a) | B28: ='Majorations applicables'!$B$28 -> Régénération artificielle | C28: ='Régénération artificielle'!$G$149 -> 0 | D28: ='Régénération artificielle'!$G$145 -> 0 | E28: ='Régénération artificielle'!$G$153 -> 0 | F28: ='Régénération artificielle'!$G$152 -> 0 | G28: 0
A29: ='Majorations applicables'!$C$29 -> Ensemencement terrestre manuel | B29: ='Majorations applicables'!$B$29 -> Régénération artificielle | C29: ='Régénération artificielle'!$G$164 -> 0 | D29: ='Régénération artificielle'!$G$161 -> 0 | E29: ='Régénération artificielle'!$G$168 -> 0 | F29: ='Régénération artificielle'!$G$167 -> 0 | G29: 0
A30: ='Majorations applicables'!$C$30 -> Éclaircie commerciale EAF | B30: ='Majorations applicables'!$B$30 -> Éclaircie commerciale EAF | C30: ='Éclaircie commerciale EAF'!$G$46 -> 0 | D30: N/A | E30: ='Éclaircie commerciale EAF'!$G$48 -> 0 | F30: N/A | G30: N/A
A31: ='Majorations applicables'!$C$31 -> Martelage | B31: ='Majorations applicables'!$B$31 -> Martelage | C31: =Martelage!$G$45 -> 0 | D31: =Martelage!$G$42 -> 0 | E31: =Martelage!$G$49 -> 0 | F31: =Martelage!$G$48 -> 0 | G31: =E31-F31 -> 0
A32: ='Majorations applicables'!$C$32 -> Martelage positif - EC (résineux ou mixte résineux) | B32: ='Majorations applicables'!$B$32 -> Martelage positif - EC (résineux ou mixte résineux) | C32: =Martelage!$G$57 -> 0 | D32: =Martelage!$G$54 -> 0 | E32: =Martelage!$G$61 -> 0 | F32: =Martelage!$G$60 -> 0 | G32: =E32-F32 -> 0
A33: ='Majorations applicables'!$C$33 -> Martelage négatif - EC (résineux ou mixte résineux) | B33: ='Majorations applicables'!$B$33 -> Martelage négatif - EC (résineux ou mixte résineux) | C33: =Martelage!$G$57 -> 0 | D33: =Martelage!$G$54 -> 0 | E33: =Martelage!$G$61 -> 0 | F33: =Martelage!$G$60 -> 0 | G33: =E33-F33 -> 0
A34: Travaux de planification | B34: Planification | C34: ='Travaux de planif et techniques'!$G$72 -> 0 | D34: N/A | E34: ='Travaux de planif et techniques'!$G$72 -> 0 | F34: N/A | G34: N/A

Sheet Log (hidden)
A1: Usager | B1: Accès | C1: OS | D1: Version Excel
A2: Pouliot, Simon (BMMB) | B2: 2020-04-02T06:14:29 | C2: Windows (32-bit) NT 6.01 | D2: 15
